Workbook

Sheet Deckblatt (S.1)

Sheet Infos Händler (S.2)
J1: a | L1: d
C2: =IF($J$1="a",(IF($L$1="D",VLOOKUP(48,Übersetzung!$A$2:$D$100,2),IF($L$1="F",VLOOKUP(48,Übersetzung!$A$2:$D$100,3),VLOOKUP(48,Übersetzung!$A$2:$D$100,4)))),(IF($L$1="D",VLOOKUP(125,Übersetzung!$A$2:$D$150,2),IF($L$1="F",VLOOKUP(125,Übersetzung!$A$2:$D$150,3),VLOOKUP(125,Übersetzung!$A$2:$D$150,4))))) -> Händlerpreisliste 2018
A7: =IF($L$1="D",VLOOKUP(153,Übersetzung!$A$2:$D$300,2),IF($L$1="F",VLOOKUP(153,Übersetzung!$A$2:$D$300,3),VLOOKUP(153,Übersetzung!$A$2:$D$300,4))) -> INHALT
A13: DuraPatina | B13: 3 | C13: DuraAkzent | D13: 6 | E13: DuraNatur | F13: 7 | G13: Rombofix 8
A19: =IF($L$1="D",VLOOKUP(169,Übersetzung!$A$2:$D$300,2),IF($L$1="F",VLOOKUP(169,Übersetzung!$A$2:$D$300,3),VLOOKUP(169,Übersetzung!$A$2:$D$300,4))) -> EcoGrau | B19: 9 | C19: CapeCod | D19: 10 | E19: =IF($L$1="D",VLOOKUP(170,Übersetzung!$A$2:$D$300,2),IF($L$1="F",VLOOKUP(170,Übersetzung!$A$2:$D$300,3),VLOOKUP(170,Übersetzung!$A$2:$D$300,4))) -> Zubehör | F19: 12
A21: =IF($L$1="D",VLOOKUP(154,Übersetzung!$A$2:$D$300,2),IF($L$1="F",VLOOKUP(154,Übersetzung!$A$2:$D$300,3),VLOOKUP(154,Übersetzung!$A$2:$D$300,4))) -> INFORMATIONEN
A23: =IF($L$1="D",VLOOKUP(160,Übersetzung!$A$2:$D$300,2),IF($L$1="F",VLOOKUP(160,Übersetzung!$A$2:$D$300,3),VLOOKUP(160,Übersetzung!$A$2:$D$300,4))) -> Preise:
A24: =IF($L$1="D",VLOOKUP(156,Übersetzung!$A$2:$D$300,2),IF($L$1="F",VLOOKUP(156,Übersetzung!$A$2:$D$300,3),VLOOKUP(156,Übersetzung!$A$2:$D$300,4))) -> Alle Preise in dieser Preisliste sind empfohlene VK-Preise bei Verkauf an den Verarbeiter. Sie verstehen sich zuzüglich der gesetzlichen MwSt.! Als Händler gewähren wir Ihnen auf diese Preise (außer Transportkosten) folgende Rabatte: - Profile, Unterkonstruktion, Rhombofix und Zuschläge: 15%. - Beistreichfarbe, Schrauben und Alu-Profile: 25%.
A26: =IF($L$1="D",VLOOKUP(161,Übersetzung!$A$2:$D$300,2),IF($L$1="F",VLOOKUP(161,Übersetzung!$A$2:$D$300,3),VLOOKUP(161,Übersetzung!$A$2:$D$300,4))) -> Transportkosten:
A27: =IF($L$1="D",VLOOKUP(157,Übersetzung!$A$2:$D$300,2),IF($L$1="F",VLOOKUP(157,Übersetzung!$A$2:$D$300,3),VLOOKUP(157,Übersetzung!$A$2:$D$300,4))) -> Pauschal 175,- € Ab einem netto Warenwert von 1.800,- €: Lieferung frei Haus!
A28: =IF($L$1="D",VLOOKUP(167,Übersetzung!$A$2:$D$300,2),IF($L$1="F",VLOOKUP(167,Übersetzung!$A$2:$D$300,3),VLOOKUP(167,Übersetzung!$A$2:$D$300,4))) -> Stapler zum Abladen muss vorhanden sein! Wir beliefern keine Baustellen!
A30: =IF($L$1="D",VLOOKUP(162,Übersetzung!$A$2:$D$300,2),IF($L$1="F",VLOOKUP(162,Übersetzung!$A$2:$D$300,3),VLOOKUP(162,Übersetzung!$A$2:$D$300,4))) -> Paketversand:
A31: =IF($L$1="D",VLOOKUP(158,Übersetzung!$A$2:$D$300,2),IF($L$1="F",VLOOKUP(158,Übersetzung!$A$2:$D$300,3),VLOOKUP(158,Übersetzung!$A$2:$D$300,4))) -> Zubehör (Beistreichfarbe, Schrauben, usw.) bis 19 kg - BELGIEN: 10,- € - LUXEMBURG, NIEDERLANDE & FRANKREICH: 15,- € Liefrezeit: 2 bis 3 Arbeitstage!
A33: =IF($L$1="D",VLOOKUP(163,Übersetzung!$A$2:$D$300,2),IF($L$1="F",VLOOKUP(163,Übersetzung!$A$2:$D$300,3),VLOOKUP(163,Übersetzung!$A$2:$D$300,4))) -> Lieferzeiten:
A34: =IF($L$1="D",VLOOKUP(159,Übersetzung!$A$2:$D$300,2),IF($L$1="F",VLOOKUP(159,Übersetzung!$A$2:$D$300,3),VLOOKUP(159,Übersetzung!$A$2:$D$300,4))) -> Siehe die jeweiligen Preislisten der verschiedenen Produktgruppen! Achtung: Auch Lagerware kann je nach Auftragslage kurzzeitig vergriffen sein! Einen genauen Liefertermin teilen wir Ihnen gerne auf Anfrage mit!
A36: =IF($L$1="D",VLOOKUP(165,Übersetzung!$A$2:$D$300,2),IF($L$1="F",VLOOKUP(165,Übersetzung!$A$2:$D$300,3),VLOOKUP(165,Übersetzung!$A$2:$D$300,4))) -> Farbtöne:
A37: =IF($L$1="D",VLOOKUP(166,Übersetzung!$A$2:$D$300,2),IF($L$1="F",VLOOKUP(166,Übersetzung!$A$2:$D$300,3),VLOOKUP(166,Übersetzung!$A$2:$D$300,4))) -> Bitte achten Sie darauf, immer die komplett benötigte Menge Ihres Projektes auf einmal zu bestellen! Holz ist ein natürlicher und lebendiger Rohstoff. Unterschiede in der Struktur sind naturgegeben. Bei späteren Nachlieferungen kann es deshalb zu Farbunterschieden kommen! Wir möchten darauf hinweisen, dass diese keinen Reklamationsgrund darstellen! Aufgrund einer neuen EU-Verordnung wurde das für die Behandlung verwendete Öl leicht modifiziert. Leichte Farbtonunterschiede zu alten Variante (vor 09/2015) sind möglich. Bitte bei Nachbestellungen zu älteren Lieferungen bitte immer unsere Auftragsbestätigungs-Nr angeben. Wir können immer noch in der alten Variante produzieren lassen.
A39: =IF($L$1="D",VLOOKUP(155,Übersetzung!$A$2:$D$300,2),IF($L$1="F",VLOOKUP(155,Übersetzung!$A$2:$D$300,3),VLOOKUP(155,Übersetzung!$A$2:$D$300,4))) -> KONTAKT
A41: W&R-TRADE PGmbH
A42: Morsheck 7a | E42: Fax.: +32 (0)80/42 94 19
A43: B - 4760 Büllingen | E43: info@wr-trade.eu
A44: Tel.: +32 (0)80/42 94 18 | E44: www.wr-trade.eu
A47: =IF($L$1="D",VLOOKUP(107,Übersetzung!$A$2:$D$149,2),IF($L$1="F",VLOOKUP(107,Übersetzung!$A$2:$D$149,3),VLOOKUP(107,Übersetzung!$A$2:$D$149,4))) -> Gültig ab 1. März 2018 ! | D47: =IF($L$1="D",VLOOKUP(152,Übersetzung!$A$2:$D$300,2),IF($L$1="F",VLOOKUP(152,Übersetzung!$A$2:$D$300,3),VLOOKUP(152,Übersetzung!$A$2:$D$300,4))) -> Seite: | E47: =_xlfn.SHEET(D73) & "/" & MargenVersionen!K6 -> 2/13 | G47: =IF($L$1="D",VLOOKUP(185,Übersetzung!$A$2:$D$300,2),IF($L$1="F",VLOOKUP(185,Übersetzung!$A$2:$D$300,3),VLOOKUP(185,Übersetzung!$A$2:$D$300,4))) -> v01

Sheet Infos Verarbeiter (S.2)
J1: b | L1: n
C2: =IF($J$1="a",(IF($L$1="D",VLOOKUP(48,Übersetzung!$A$2:$D$100,2),IF($L$1="F",VLOOKUP(48,Übersetzung!$A$2:$D$100,3),VLOOKUP(48,Übersetzung!$A$2:$D$100,4)))),(IF($L$1="D",VLOOKUP(125,Übersetzung!$A$2:$D$150,2),IF($L$1="F",VLOOKUP(125,Übersetzung!$A$2:$D$150,3),VLOOKUP(125,Übersetzung!$A$2:$D$150,4))))) -> Prijslijst aannemers 2018
A8: =IF($L$1="D",VLOOKUP(153,Übersetzung!$A$2:$D$300,2),IF($L$1="F",VLOOKUP(153,Übersetzung!$A$2:$D$300,3),VLOOKUP(153,Übersetzung!$A$2:$D$300,4))) -> INHOUD
A15: DuraPatina | B15: 3 | C15: DuraAkzent | D15: 5 | E15: DuraNatur | F15: 7 | G15: Rombofix 8
A23: =IF($L$1="D",VLOOKUP(169,Übersetzung!$A$2:$D$300,2),IF($L$1="F",VLOOKUP(169,Übersetzung!$A$2:$D$300,3),VLOOKUP(169,Übersetzung!$A$2:$D$300,4))) -> EcoGrijs | B23: 9 | C23: CapeCod | D23: 10 | E23: =IF($L$1="D",VLOOKUP(170,Übersetzung!$A$2:$D$300,2),IF($L$1="F",VLOOKUP(170,Übersetzung!$A$2:$D$300,3),VLOOKUP(170,Übersetzung!$A$2:$D$300,4))) -> Accessoires | F23: 12
A26: =IF($L$1="D",VLOOKUP(154,Übersetzung!$A$2:$D$300,2),IF($L$1="F",VLOOKUP(154,Übersetzung!$A$2:$D$300,3),VLOOKUP(154,Übersetzung!$A$2:$D$300,4))) -> INFORMATIES
A28: =IF($L$1="D",VLOOKUP(160,Übersetzung!$A$2:$D$300,2),IF($L$1="F",VLOOKUP(160,Übersetzung!$A$2:$D$300,3),VLOOKUP(160,Übersetzung!$A$2:$D$300,4))) -> Prijzen:
A29: =IF($L$1="D",VLOOKUP(181,Übersetzung!$A$2:$D$300,2),IF($L$1="F",VLOOKUP(181,Übersetzung!$A$2:$D$300,3),VLOOKUP(181,Übersetzung!$A$2:$D$300,4))) -> Alle prijzen in deze prijslijst zijn netto zonder btw!
A31: =IF($L$1="D",VLOOKUP(161,Übersetzung!$A$2:$D$300,2),IF($L$1="F",VLOOKUP(161,Übersetzung!$A$2:$D$300,3),VLOOKUP(161,Übersetzung!$A$2:$D$300,4))) -> Transportkosten:
A32: =IF($L$1="D",VLOOKUP(180,Übersetzung!$A$2:$D$300,2),IF($L$1="F",VLOOKUP(180,Übersetzung!$A$2:$D$300,3),VLOOKUP(180,Übersetzung!$A$2:$D$300,4))) -> Alle prijzen zijn vanaf magazijn Büllingen - Transportkosten op aanvraag!
A34: =IF($L$1="D",VLOOKUP(162,Übersetzung!$A$2:$D$300,2),IF($L$1="F",VLOOKUP(162,Übersetzung!$A$2:$D$300,3),VLOOKUP(162,Übersetzung!$A$2:$D$300,4))) -> Pakketverzending:
A35: =IF($L$1="D",VLOOKUP(158,Übersetzung!$A$2:$D$300,2),IF($L$1="F",VLOOKUP(158,Übersetzung!$A$2:$D$300,3),VLOOKUP(158,Übersetzung!$A$2:$D$300,4))) -> Accessoires (kleur voor het behandelen van de snijkanten, schroeven, enz.) tot 19 kg - BELGIË: 10,- € - LUXEMBURG, NEDERLAND & FRANKRIJK: 15,- € Levertijd: 2 tot 3 werkdagen!
A37: =IF($L$1="D",VLOOKUP(163,Übersetzung!$A$2:$D$300,2),IF($L$1="F",VLOOKUP(163,Übersetzung!$A$2:$D$300,3),VLOOKUP(163,Übersetzung!$A$2:$D$300,4))) -> Levertijd:
A38: =IF($L$1="D",VLOOKUP(159,Übersetzung!$A$2:$D$300,2),IF($L$1="F",VLOOKUP(159,Übersetzung!$A$2:$D$300,3),VLOOKUP(159,Übersetzung!$A$2:$D$300,4))) -> Zie de verschillende prijslijsten van de verschillende productseries! Opgelet: afhankelijk van de ordersituatie kunnen ook magazijngoederen gedurende een korte periode niet leverbaar zijn! Aarzel niet ons te contacteren voor een precieze levertermijn!
A40: =IF($L$1="D",VLOOKUP(165,Übersetzung!$A$2:$D$300,2),IF($L$1="F",VLOOKUP(165,Übersetzung!$A$2:$D$300,3),VLOOKUP(165,Übersetzung!$A$2:$D$300,4))) -> Kleuren:
A41: =IF($L$1="D",VLOOKUP(166,Übersetzung!$A$2:$D$300,2),IF($L$1="F",VLOOKUP(166,Übersetzung!$A$2:$D$300,3),VLOOKUP(166,Übersetzung!$A$2:$D$300,4))) -> Bestel altijd de volledig benodigde hoeveelheid van het project in één keer! Hout is een natuurlijk en levend product. Verschillen in de structuur zijn normaal. Bij latere leveringen kunnen er derhalve kleurverschillen optreden! We zouden er graag op wijzen dat deze geen reden voor een klacht zijn! Door een nieuw europees directief wordt de samenstelling van het behandelingsproduct licht veranderd. Kleine verschillen met de oude versie (vóór 09/2015) zijn mogelijk. Indien u voor een oude levering nabestelt, deel ons het nummer van onze orderbevestiging mee. Wij kunnen alltijd nog met de oude versie laten produceren.
A43: =IF($L$1="D",VLOOKUP(155,Übersetzung!$A$2:$D$300,2),IF($L$1="F",VLOOKUP(155,Übersetzung!$A$2:$D$300,3),VLOOKUP(155,Übersetzung!$A$2:$D$300,4))) -> CONTACT
A45: W&R-TRADE PGmbH
A46: Morsheck 7a | E46: Fax.: +32 (0)80/42 94 19
A47: B - 4760 Büllingen | E47: info@wr-trade.eu
A48: Tel.: +32 (0)80/42 94 18 | E48: www.wr-trade.eu
A52: =IF($L$1="D",VLOOKUP(107,Übersetzung!$A$2:$D$149,2),IF($L$1="F",VLOOKUP(107,Übersetzung!$A$2:$D$149,3),VLOOKUP(107,Übersetzung!$A$2:$D$149,4))) -> Geldig vanaf 1 maart 2018 ! | D52: =IF($L$1="D",VLOOKUP(152,Übersetzung!$A$2:$D$300,2),IF($L$1="F",VLOOKUP(152,Übersetzung!$A$2:$D$300,3),VLOOKUP(152,Übersetzung!$A$2:$D$300,4))) -> pagina: | E52: =_xlfn.SHEET(D73)-1 & "/" & MargenVersionen!K6 -> 2/13 | G52: =IF($L$1="D",VLOOKUP(185,Übersetzung!$A$2:$D$300,2),IF($L$1="F",VLOOKUP(185,Übersetzung!$A$2:$D$300,3),VLOOKUP(185,Übersetzung!$A$2:$D$300,4))) -> v01

Sheet DuraPatina (Lager - S.3)
J1: a | L1: d
B2: =IF($J$1="a",(IF($L$1="D",VLOOKUP(48,Übersetzung!$A$2:$D$100,2),IF($L$1="F",VLOOKUP(48,Übersetzung!$A$2:$D$100,3),VLOOKUP(48,Übersetzung!$A$2:$D$100,4)))),(IF($L$1="D",VLOOKUP(125,Übersetzung!$A$2:$D$150,2),IF($L$1="F",VLOOKUP(125,Übersetzung!$A$2:$D$150,3),VLOOKUP(125,Übersetzung!$A$2:$D$150,4))))) -> Händlerpreisliste 2018
L4: Leithändlerpreise 02/2018 | Q4: Umrechnung auf Nutzfläche (wo nötig)
L5: Leithändlerpreise 01/2013 | Q5: Leithändlerpreise 01/2013
A6: =IF($L$1="D",VLOOKUP(25,Übersetzung!$A$2:$D$100,2),IF($L$1="F",VLOOKUP(25,Übersetzung!$A$2:$D$100,3),VLOOKUP(25,Übersetzung!$A$2:$D$100,4))) -> LAGERWARE (nur in den Farbtönen - Kristallgrau / Lavagrau / Gletschergrau) - Bei der Qualität "Selekt" sind Verschnittlängen (200/250/300/350 cm) bis 10 % mitgehend! - Für Lieferungen ohne Kurzlängen berechnen wir 7% Aufpreis. - Bitte bei Bestellung angeben, ob Bestellmenge zzgl. oder inkl. Verschnitt ist. Wenn Sie nichts angeben, liefern wir inkl. Verschnittlängen. - Lieferzeit: ca. 2 Wochen (Genaue Lieferzeit auf Anfrage!) | K6: Marge W&R auf EK Habis | L6: Kommisions- Preis | M6: Anbruch-Preis ab 1 Paket | N6: Paketpreis | O6: 6 Pakete | Q6: Kommisions- Preis | R6: Anbruch-preis ab 1 Paket | S6: Paketpreis | T6: 6 Pakete
A7: =IF($L$1="D",VLOOKUP(1,Übersetzung!$A$2:$D$100,2),IF($L$1="F",VLOOKUP(1,Übersetzung!$A$2:$D$100,3),VLOOKUP(1,Übersetzung!$A$2:$D$100,4))) -> Profile | B7: =IF($L$1="D",VLOOKUP(91,Übersetzung!$A$2:$D$100,2),IF($L$1="F",VLOOKUP(91,Übersetzung!$A$2:$D$100,3),VLOOKUP(91,Übersetzung!$A$2:$D$100,4))) -> Qualität | C7: =IF($L$1="D",VLOOKUP(2,Übersetzung!$A$2:$D$100,2),IF($L$1="F",VLOOKUP(2,Übersetzung!$A$2:$D$100,3),VLOOKUP(2,Übersetzung!$A$2:$D$100,4))) -> Dimension in mm Stärke x Breite | D7: =IF($L$1="D",VLOOKUP(3,Übersetzung!$A$2:$D$100,2),IF($L$1="F",VLOOKUP(3,Übersetzung!$A$2:$D$100,3),VLOOKUP(3,Übersetzung!$A$2:$D$100,4))) -> Länge (m) | E7: =IF($L$1="D",VLOOKUP(4,Übersetzung!$A$2:$D$100,2),IF($L$1="F",VLOOKUP(4,Übersetzung!$A$2:$D$100,3),VLOOKUP(4,Übersetzung!$A$2:$D$100,4))) -> VPE Bund/Paket | F7: =IF($L$1="D",VLOOKUP(176,Übersetzung!$A$2:$D$301,2),IF($L$1="F",VLOOKUP(176,Übersetzung!$A$2:$D$301,3),VLOOKUP(176,Übersetzung!$A$2:$D$301,4))) -> Bedarf (m/m²) | G7: =IF($L$1="D",VLOOKUP(5,Übersetzung!$A$2:$D$100,2),IF($L$1="F",VLOOKUP(5,Übersetzung!$A$2:$D$100,3),VLOOKUP(5,Übersetzung!$A$2:$D$100,4))) -> Kommissions-preis (weniger als ein Paket) | H7: =IF($L$1="D",VLOOKUP(7,Übersetzung!$A$2:$D$100,2),IF($L$1="F",VLOOKUP(7,Übersetzung!$A$2:$D$100,3),VLOOKUP(7,Übersetzung!$A$2:$D$100,4))) -> Paketpreis | K7: =IF($J$1="A",VLOOKUP(1,MargenVersionen!$A$9:$G$12,2),IF($J$1="B",VLOOKUP(1,MargenVersionen!$A$9:$G$12,4),VLOOKUP(1,MargenVersionen!$A$9:$G$12,6))) -> 0.3 | L7: Hier die Preise eingeben! | Q7: Felder werden automatisch berechnet!
A8: =IF($L$1="D",VLOOKUP(16,Übersetzung!$A$2:$D$100,2),IF($L$1="F",VLOOKUP(16,Übersetzung!$A$2:$D$100,3),VLOOKUP(16,Übersetzung!$A$2:$D$100,4))) -> Rhombus 15° | B8: =IF($L$1="D",VLOOKUP(139,Übersetzung!$A$2:$D$301,2),IF($L$1="F",VLOOKUP(139,Übersetzung!$A$2:$D$301,3),VLOOKUP(139,Übersetzung!$A$2:$D$301,4))) -> Premium | C8: 23 x 75 | D8: 5 | E8: 4 / 224 | F8: 12,50* | G8: =L8+L8*$K$7 -> 4.42 | H8: 4.225 | L8: 3.4 | M8: 3.25 | N8: 3.1 | O8: 2.85
B9: =IF($L$1="D",VLOOKUP(138,Übersetzung!$A$2:$D$301,2),IF($L$1="F",VLOOKUP(138,Übersetzung!$A$2:$D$301,3),VLOOKUP(138,Übersetzung!$A$2:$D$301,4))) -> Selekt | C9: 21 x 65 | D9: 4,0 / 5,0 | F9: 14,29* | G9: 3.575 | H9: 3.38 | L9: 2.75 | M9: 2.6 | N9: 2.5 | O9: 2.3
A10: =IF($L$1="D",VLOOKUP(104,Übersetzung!$A$2:$D$149,2),IF($L$1="F",VLOOKUP(104,Übersetzung!$A$2:$D$149,3),VLOOKUP(104,Übersetzung!$A$2:$D$149,4))) -> Leistenbreite = Berechnungsbreite | B10: =IF($L$1="D",VLOOKUP(140,Übersetzung!$A$2:$D$301,2),IF($L$1="F",VLOOKUP(140,Übersetzung!$A$2:$D$301,3),VLOOKUP(140,Übersetzung!$A$2:$D$301,4))) -> Keilgezinkt | C10: 21 x 65 | D10: 4,0 / 5,0 / 6,0 | F10: 14,29* | G10: 3.77 | H10: 3.575 | L10: 2.9 | M10: 2.75 | N10: 2.6 | O10: 2.4
A11: =IF($L$1="D",VLOOKUP(11,Übersetzung!$A$2:$D$100,2),IF($L$1="F",VLOOKUP(11,Übersetzung!$A$2:$D$100,3),VLOOKUP(11,Übersetzung!$A$2:$D$100,4))) -> Glattkant | B11: =IF($L$1="D",VLOOKUP(138,Übersetzung!$A$2:$D$301,2),IF($L$1="F",VLOOKUP(138,Übersetzung!$A$2:$D$301,3),VLOOKUP(138,Übersetzung!$A$2:$D$301,4))) -> Selekt | C11: 21 x 116 | D11: 5 | E11: 1 / 112 | F11: 8.48 | G11: =L11+L11*$K$7 -> 46.8 | H11: =M11+M11*$K$7 -> 44.46 | L11: 36 | M11: 34.2 | N11: 32.5 | O11: 29.85
A12: =IF($L$1="D",VLOOKUP(103,Übersetzung!$A$2:$D$149,2),IF($L$1="F",VLOOKUP(103,Übersetzung!$A$2:$D$149,3),VLOOKUP(103,Übersetzung!$A$2:$D$149,4))) -> Brettbreite = Berechnungsbreite | C12: 21 x 140 | F12: 7.15 | G12: 46.8 | H12: =M12+M12*$K$7 -> 44.46 | L12: 36 | M12: 34.2 | N12: 32.5 | O12: 29.85
A13: =IF($L$1="D",VLOOKUP(10,Übersetzung!$A$2:$D$100,2),IF($L$1="F",VLOOKUP(10,Übersetzung!$A$2:$D$100,3),VLOOKUP(10,Übersetzung!$A$2:$D$100,4))) -> Trapez | B13: =IF($L$1="D",VLOOKUP(138,Übersetzung!$A$2:$D$3002,2),IF($L$1="F",VLOOKUP(138,Übersetzung!$A$2:$D$301,3),VLOOKUP(138,Übersetzung!$A$2:$D$301,4))) -> Selekt | C13: =IF($L$1="D",VLOOKUP(26,Übersetzung!$A$2:$D$100,2),IF($L$1="F",VLOOKUP(26,Übersetzung!$A$2:$D$100,3),VLOOKUP(26,Übersetzung!$A$2:$D$100,4))) -> 22 x 142 Deckmaß: 125 mm | D13: 4,0 / 5,0 | E13: 4 / 224 | F13: 8 | G13: =Q13+Q13*$K$7 -> 53.1648 | H13: =R13+R13*$K$7 -> 50.50656 | L13: 36 | M13: 34.2 | N13: 32.5 | O13: 29.85 | Q13: =L13*142/125 -> 40.896 | R13: =M13*142/125 -> 38.8512 | S13: =N13*142/125 -> 36.92 | T13: =O13*142/125 -> 33.9096
A14: =IF($L$1="D",VLOOKUP(102,Übersetzung!$A$2:$D$149,2),IF($L$1="F",VLOOKUP(102,Übersetzung!$A$2:$D$149,3),VLOOKUP(102,Übersetzung!$A$2:$D$149,4))) -> Deckmaß = Berechnungsbreite
A15: =IF($L$1="D",VLOOKUP(14,Übersetzung!$A$2:$D$100,2),IF($L$1="F",VLOOKUP(14,Übersetzung!$A$2:$D$100,3),VLOOKUP(14,Übersetzung!$A$2:$D$100,4))) -> Nimbus | B15: =IF($L$1="D",VLOOKUP(138,Übersetzung!$A$2:$D$301,2),IF($L$1="F",VLOOKUP(138,Übersetzung!$A$2:$D$301,3),VLOOKUP(138,Übersetzung!$A$2:$D$301,4))) -> Selekt | C15: =IF($L$1="D",VLOOKUP(27,Übersetzung!$A$2:$D$100,2),IF($L$1="F",VLOOKUP(27,Übersetzung!$A$2:$D$100,3),VLOOKUP(27,Übersetzung!$A$2:$D$100,4))) -> 21 x 92 Deckmaß: 80 mm | D15: 4,0 / 5,0 | E15: 4 / 160 | F15: 12.5 | G15: =Q15+Q15*$K$7 -> 58.4545 | H15: =R15+R15*$K$7 -> 55.53925 | L15: 39.1 | M15: 37.15 | N15: 35.2 | O15: 32.35 | Q15: =L15*92/80 -> 44.965 | R15: =M15*92/80 -> 42.7225 | S15: 40.48 | T15: 37.2025
A16: =IF($L$1="D",VLOOKUP(102,Übersetzung!$A$2:$D$149,2),IF($L$1="F",VLOOKUP(102,Übersetzung!$A$2:$D$149,3),VLOOKUP(102,Übersetzung!$A$2:$D$149,4))) -> Deckmaß = Berechnungsbreite
A17: =IF($L$1="D",VLOOKUP(175,Übersetzung!$A$2:$D$301,2),IF($L$1="F",VLOOKUP(175,Übersetzung!$A$2:$D$301,3),VLOOKUP(175,Übersetzung!$A$2:$D$301,4))) -> *Auf Basis einer Schattenfuge von 10mm!!! | F17: 8
A19: =IF($L$1="D",VLOOKUP(51,Übersetzung!$A$2:$D$100,2),IF($L$1="F",VLOOKUP(51,Übersetzung!$A$2:$D$100,3),VLOOKUP(51,Übersetzung!$A$2:$D$100,4))) -> Beistreichfarbe | F19: =IF($L$1="D",VLOOKUP(179,Übersetzung!$A$2:$D$301,2),IF($L$1="F",VLOOKUP(179,Übersetzung!$A$2:$D$301,3),VLOOKUP(179,Übersetzung!$A$2:$D$301,4))) -> Verbrauch (m²/Liter) | G19: =IF($L$1="D",VLOOKUP(20,Übersetzung!$A$2:$D$100,2),IF($L$1="F",VLOOKUP(20,Übersetzung!$A$2:$D$100,3),VLOOKUP(20,Übersetzung!$A$2:$D$100,4))) -> Gebinde 1L | H19: =IF($L$1="D",VLOOKUP(21,Übersetzung!$A$2:$D$100,2),IF($L$1="F",VLOOKUP(21,Übersetzung!$A$2:$D$100,3),VLOOKUP(21,Übersetzung!$A$2:$D$100,4))) -> Gebinde 5L | K19: =IF($J$1="A",VLOOKUP(4,MargenVersionen!$A$9:$G$12,2),IF($J$1="B",VLOOKUP(4,MargenVersionen!$A$9:$G$12,4),VLOOKUP(4,MargenVersionen!$A$9:$G$12,6))) -> 0.6
A20: =IF($L$1="D",VLOOKUP(35,Übersetzung!$A$2:$D$100,2),IF($L$1="F",VLOOKUP(35,Übersetzung!$A$2:$D$100,3),VLOOKUP(35,Übersetzung!$A$2:$D$100,4))) -> Zum Streichen von Schnittkanten. Für Farbtöne: Lavagrau, Gletschergrau, Kristallgrau, Basaltgrau, Tundragrau, Schiefergrau | F20: max. 70 | G20: =L20+L20*$K$19 -> 28.48 | H20: =M20+M20*$K$19 -> 113.92 | L20: 17.8 | M20: 71.2
A21: =IF($L$1="D",VLOOKUP(36,Übersetzung!$A$2:$D$100,2),IF($L$1="F",VLOOKUP(36,Übersetzung!$A$2:$D$100,3),VLOOKUP(36,Übersetzung!$A$2:$D$100,4))) -> Für angrenzende Bauteile aus Fichte gehobelt, z.Bsp. Sichtgebälk, Schalung, usw. Imprägnierlasur 3.01 für Farbtöne: Lavagrau, Gletschergrau, Kristallgrau, Basaltgrau, Tundragrau, Schiefergrau | F21: ca. 6,25 | G21: =L21+L21*$K$19 -> 28 | H21: =M21+M21*$K$19 -> 95.2 | L21: 17.5 | M21: 59.5
A61: =IF($L$1="D",VLOOKUP(107,Übersetzung!$A$2:$D$149,2),IF($L$1="F",VLOOKUP(107,Übersetzung!$A$2:$D$149,3),VLOOKUP(107,Übersetzung!$A$2:$D$149,4))) -> Gültig ab 1. März 2018 ! | D61: =IF($L$1="D",VLOOKUP(152,Übersetzung!$A$2:$D$300,2),IF($L$1="F",VLOOKUP(152,Übersetzung!$A$2:$D$300,3),VLOOKUP(152,Übersetzung!$A$2:$D$300,4))) -> Seite: | E61: =_xlfn.SHEET(D73)-1 & "/" & MargenVersionen!K6 -> 3/13 | H61: =IF($L$1="D",VLOOKUP(185,Übersetzung!$A$2:$D$300,2),IF($L$1="F",VLOOKUP(185,Übersetzung!$A$2:$D$300,3),VLOOKUP(185,Übersetzung!$A$2:$D$300,4))) -> v01

Sheet DuraPatina (Kom T1 - S.4)
J1: a | L1: d
B2: =IF($J$1="a",(IF($L$1="D",VLOOKUP(48,Übersetzung!$A$2:$D$100,2),IF($L$1="F",VLOOKUP(48,Übersetzung!$A$2:$D$100,3),VLOOKUP(48,Übersetzung!$A$2:$D$100,4)))),(IF($L$1="D",VLOOKUP(125,Übersetzung!$A$2:$D$150,2),IF($L$1="F",VLOOKUP(125,Übersetzung!$A$2:$D$150,3),VLOOKUP(125,Übersetzung!$A$2:$D$150,4))))) -> Händlerpreisliste 2018
K4: Leithändlerpreise 02/2018 | P4: Umrechnung auf Nutzfläche (wo nötig)
M5: Leithändlerpreise 01/2013 | R5: Leithändlerpreise 01/2013
A6: =IF($L$1="D",VLOOKUP(193,Übersetzung!$A$2:$D$301,2),IF($L$1="F",VLOOKUP(193,Übersetzung!$A$2:$D$301,3),VLOOKUP(193,Übersetzung!$A$2:$D$301,4))) -> KOMMISSIONSWARE
A7: =IF($L$1="D",VLOOKUP(133,Übersetzung!$A$2:$D$301,2),IF($L$1="F",VLOOKUP(133,Übersetzung!$A$2:$D$301,3),VLOOKUP(133,Übersetzung!$A$2:$D$301,4))) -> - Produktion ab 50m² (kleinere Mengen nur als Sammelauftrag möglich - Achtung: evt. längere Lieferzeit!). - Mindermengenzuschlag bis 100m² - Farbtöne Kristall, Lava & Gletscher: 55,- €. - Mindermengenzuschlag bis 100m² - Farbtöne Basalt, Tundra & Schiefer: 170,- €. - Verschnittlängen (200/250/300/350 cm) bis 10% mitgehend! - Für Lieferungen ohne Kurzlängen berechnen wir 7% Aufpreis. - Bitte bei Bestellung angeben, ob Bestellmenge zzgl. oder inkl. Verschnitt ist. Wenn Sie nichts angeben, liefern wir inkl. Verschnittlängen! - Lieferzeit: 6 - 8 Wochen (Genaue Lieferzeit auf Anfrage!). | J7: Marge W&R auf EK Habis | K7: Kommisions- Preis | L7: Anbruch-Preis ab 1 Paket | M7: Paketpreis | N7: 6 Pakete | P7: Kommisions- Preis | Q7: Anbruch-preis ab 1 Paket | R7: Paketpreis | S7: 6 Pakete
A8: =IF($L$1="D",VLOOKUP(1,Übersetzung!$A$2:$D$100,2),IF($L$1="F",VLOOKUP(1,Übersetzung!$A$2:$D$100,3),VLOOKUP(1,Übersetzung!$A$2:$D$100,4))) -> Profile | B8: =IF($L$1="D",VLOOKUP(91,Übersetzung!$A$2:$D$100,2),IF($L$1="F",VLOOKUP(91,Übersetzung!$A$2:$D$100,3),VLOOKUP(91,Übersetzung!$A$2:$D$100,4))) -> Qualität | C8: =IF($L$1="D",VLOOKUP(2,Übersetzung!$A$2:$D$100,2),IF($L$1="F",VLOOKUP(2,Übersetzung!$A$2:$D$100,3),VLOOKUP(2,Übersetzung!$A$2:$D$100,4))) -> Dimension in mm Stärke x Breite | D8: =IF($L$1="D",VLOOKUP(3,Übersetzung!$A$2:$D$100,2),IF($L$1="F",VLOOKUP(3,Übersetzung!$A$2:$D$100,3),VLOOKUP(3,Übersetzung!$A$2:$D$100,4))) -> Länge (m) | E8: =IF($L$1="D",VLOOKUP(4,Übersetzung!$A$2:$D$100,2),IF($L$1="F",VLOOKUP(4,Übersetzung!$A$2:$D$100,3),VLOOKUP(4,Übersetzung!$A$2:$D$100,4))) -> VPE Bund/Paket | F8: =IF($L$1="D",VLOOKUP(176,Übersetzung!$A$2:$D$301,2),IF($L$1="F",VLOOKUP(176,Übersetzung!$A$2:$D$301,3),VLOOKUP(176,Übersetzung!$A$2:$D$301,4))) -> Bedarf (m/m²) | G8: =IF($L$1="D",VLOOKUP(5,Übersetzung!$A$2:$D$100,2),IF($L$1="F",VLOOKUP(5,Übersetzung!$A$2:$D$100,3),VLOOKUP(5,Übersetzung!$A$2:$D$100,4))) -> Kommissions-preis (weniger als ein Paket) | H8: =IF($L$1="D",VLOOKUP(7,Übersetzung!$A$2:$D$100,2),IF($L$1="F",VLOOKUP(7,Übersetzung!$A$2:$D$100,3),VLOOKUP(7,Übersetzung!$A$2:$D$100,4))) -> Paketpreis | J8: =IF($J$1="A",VLOOKUP(1,MargenVersionen!$A$9:$G$12,2),IF($J$1="B",VLOOKUP(1,MargenVersionen!$A$9:$G$12,4),VLOOKUP(1,MargenVersionen!$A$9:$G$12,6))) -> 0.3 | K8: Hier die Preise eingeben! | P8: Felder werden automatisch berechnet!
A9: =IF($L$1="D",VLOOKUP(142,Übersetzung!$A$2:$D$301,2),IF($L$1="F",VLOOKUP(142,Übersetzung!$A$2:$D$301,3),VLOOKUP(142,Übersetzung!$A$2:$D$301,4))) -> Große Auswahl an Profilen! Die technische Machbarkeit muss geprüft werden! Bitte fragen Sie uns! | B9: =IF($L$1="D",VLOOKUP(138,Übersetzung!$A$2:$D$301,2),IF($L$1="F",VLOOKUP(138,Übersetzung!$A$2:$D$301,3),VLOOKUP(138,Übersetzung!$A$2:$D$301,4))) -> Selekt | C9: 21 x 40 | D9: 4,0 / 5,0 | E9: 4 / 224 | F9: / | G9: =K9+K9*$J$8 -> 2.795 | H9: 2.665 | K9: 2.15 | L9: 2.05 | M9: 1.95 | N9: 1.8
C10: 21 x 55 | D10: 4,0 / 5,0 | E10: 4 / 224 | F10: / | G10: 3.38 | H10: 3.185 | K10: 2.6 | L10: 2.45 | M10: 2.3 | N10: 2.1
C11: 21 x 65 | D11: 4,0 / 5,0 | E11: 4 / 224 | F11: / | G11: 3.575 | H11: 3.38 | K11: 2.75 | L11: 2.6 | M11: 2.5 | N11: 2.3
C12: 21 x 90 | D12: 4,0 / 5,0 | E12: 4 / 160 | F12: / | G12: 50.83 | H12: 48.295 | K12: 39.1 | L12: 37.15 | M12: 35.2 | N12: 32.35
C13: 21 x 116 | D13: 4,0 / 5,0 | E13: 4 / 112 | G13: 54.34 | H13: 51.61 | K13: 41.8 | L13: 39.7 | M13: 37.7 | N13: 34.7
C14: 21 x 140 | F14: /
C15: 21 x 170
C16: 26 x 40 | D16: 4,0 / 5,0 | E16: 4 / 224 | F16: / | G16: =K16+K16*$J$8 -> 3.38 | H16: =L16+L16*$J$8 -> 3.25 | K16: 2.6 | L16: 2.5 | M16: 2.4 | N16: 2.25
C17: 26 x 65 | D17: 4,0 / 5,0 | E17: 4 / 224 | F17: / | G17: 4.225 | H17: 4.03 | K17: 3.25 | L17: 3.1 | M17: 2.95 | N17: 2.75
C18: 26 x 140 | D18: 4,0 / 5,0 | E18: 4 /112 | F18: / | G18: 62.27 | H18: 59.15 | K18: 47.9 | L18: 45.5 | M18: 43.2 | N18: 39.8
C19: 40 x 40 | D19: 4,0 / 5,0 | E19: 4 / 224 | F19: / | G19: 4.55 | H19: 4.355 | K19: 3.5 | L19: 3.35 | M19: 3.2 | N19: 2.95
C20: 40 x 55 | D20: 4,0 / 5,0 | E20: 4 / 224 | F20: / | G20: 5.525 | H20: 5.265 | K20: 4.25 | L20: 4.05 | M20: 3.85 | N20: 3.55
C21: 40 x 65 | D21: 4,0 / 5,0 | E21: 4 / 224 | F21: / | G21: 6.37 | H21: 6.045 | K21: 4.9 | L21: 4.65 | M21: 4.4 | N21: 4.05
C22: 40 x 90 | D22: 4,0 / 5,0 | E22: 4 / 160 | F22: / | G22: 90.87 | H22: 86.45 | K22: 69.9 | L22: 66.5 | M22: 63.2 | N22: 58.2
C23: 40 x 116 | D23: 4,0 / 5,0 | E23: 4 / 112 | G23: 89.96 | H23: 85.475 | K23: 69.2 | L23: 65.75 | M23: 62.5 | N23: 57.5
C24: 40 x 140 | F24: /
C25: 40 x 170
C26: 50 x 40 | D26: 4,0 / 5,0 | E26: 4 / 224 | F26: / | G26: =K26+K26*$J$8 -> 5.655 | H26: 5.395 | K26: 4.35 | L26: 4.15 | M26: 3.95 | N26: 3.65
C27: 50 x 65 | D27: 4,0 / 5,0 | E27: 4 / 224 | F27: / | G27: 7.475 | H27: 7.15 | K27: 5.75 | L27: 5.5 | M27: 5.25 | N27: 4.85
C28: 50 x 140 | D28: 4,0 / 5,0 | E28: 4 / 112 | F28: / | G28: 106.34 | H28: 101.01 | K28: 81.8 | L28: 77.7 | M28: 73.8 | N28: 67.95
A29: =IF($L$1="D",VLOOKUP(103,Übersetzung!$A$2:$D$149,2),IF($L$1="F",VLOOKUP(103,Übersetzung!$A$2:$D$149,3),VLOOKUP(103,Übersetzung!$A$2:$D$149,4))) & "!!!" -> Brettbreite = Berechnungsbreite!!! | E29: =IF($L$1="D",VLOOKUP(192,Übersetzung!$A$2:$D$301,2),IF($L$1="F",VLOOKUP(192,Übersetzung!$A$2:$D$301,3),VLOOKUP(192,Übersetzung!$A$2:$D$301,4))) -> Beispielprofile finden Sie auf Seite 5.
A31: =IF($L$1="D",VLOOKUP(141,Übersetzung!$A$2:$D$301,2),IF($L$1="F",VLOOKUP(141,Übersetzung!$A$2:$D$301,3),VLOOKUP(141,Übersetzung!$A$2:$D$301,4))) -> Qualität: KEILGEZINKT
A33: =IF($L$1="D",VLOOKUP(15,Übersetzung!$A$2:$D$301,2),IF($L$1="F",VLOOKUP(15,Übersetzung!$A$2:$D$301,3),VLOOKUP(15,Übersetzung!$A$2:$D$301,4))) -> - Standardlängen von 3,0m bis 6,0m in Schritten von 10cm! - Keine Kurzlängen wie bei der Qualität "Selekt", dafür Mehrlieferungen bis 5% mitgehend! - Alle Dimensionen wie bei der Qualität "Selekt" möglich, außer 21x170mm und 40x170mm.
A34: =IF($L$1="D",VLOOKUP(190,Übersetzung!$A$2:$D$301,2),IF($L$1="F",VLOOKUP(190,Übersetzung!$A$2:$D$301,3),VLOOKUP(190,Übersetzung!$A$2:$D$301,4))) -> - Preisbasis: Qualität "Selekt" + 5% Aufschlag.
A35: =IF($L$1="D",VLOOKUP(191,Übersetzung!$A$2:$D$301,2),IF($L$1="F",VLOOKUP(191,Übersetzung!$A$2:$D$301,3),VLOOKUP(191,Übersetzung!$A$2:$D$301,4))) -> - Sonderlängen (z. Bsp. 3,54m oder 5,42m) sowie Überlängen (>6,0m) auf Anfrage möglich.
A37: =IF($L$1="D",VLOOKUP(9,Übersetzung!$A$2:$D$301,2),IF($L$1="F",VLOOKUP(9,Übersetzung!$A$2:$D$301,3),VLOOKUP(9,Übersetzung!$A$2:$D$301,4))) -> Qualität: PREMIUM
A39: =IF($L$1="D",VLOOKUP(1,Übersetzung!$A$2:$D$100,2),IF($L$1="F",VLOOKUP(1,Übersetzung!$A$2:$D$100,3),VLOOKUP(1,Übersetzung!$A$2:$D$100,4))) -> Profile | B39: =IF($L$1="D",VLOOKUP(91,Übersetzung!$A$2:$D$100,2),IF($L$1="F",VLOOKUP(91,Übersetzung!$A$2:$D$100,3),VLOOKUP(91,Übersetzung!$A$2:$D$100,4))) -> Qualität | C39: =IF($L$1="D",VLOOKUP(2,Übersetzung!$A$2:$D$100,2),IF($L$1="F",VLOOKUP(2,Übersetzung!$A$2:$D$100,3),VLOOKUP(2,Übersetzung!$A$2:$D$100,4))) -> Dimension in mm Stärke x Breite | D39: =IF($L$1="D",VLOOKUP(3,Übersetzung!$A$2:$D$100,2),IF($L$1="F",VLOOKUP(3,Übersetzung!$A$2:$D$100,3),VLOOKUP(3,Übersetzung!$A$2:$D$100,4))) -> Länge (m) | E39: =IF($L$1="D",VLOOKUP(4,Übersetzung!$A$2:$D$100,2),IF($L$1="F",VLOOKUP(4,Übersetzung!$A$2:$D$100,3),VLOOKUP(4,Übersetzung!$A$2:$D$100,4))) -> VPE Bund/Paket | F39: =IF($L$1="D",VLOOKUP(176,Übersetzung!$A$2:$D$301,2),IF($L$1="F",VLOOKUP(176,Übersetzung!$A$2:$D$301,3),VLOOKUP(176,Übersetzung!$A$2:$D$301,4))) -> Bedarf (m/m²) | G39: =IF($L$1="D",VLOOKUP(5,Übersetzung!$A$2:$D$100,2),IF($L$1="F",VLOOKUP(5,Übersetzung!$A$2:$D$100,3),VLOOKUP(5,Übersetzung!$A$2:$D$100,4))) -> Kommissions-preis (weniger als ein Paket) | H39: =IF($L$1="D",VLOOKUP(7,Übersetzung!$A$2:$D$100,2),IF($L$1="F",VLOOKUP(7,Übersetzung!$A$2:$D$100,3),VLOOKUP(7,Übersetzung!$A$2:$D$100,4))) -> Paketpreis | J39: =IF($J$1="A",VLOOKUP(1,MargenVersionen!$A$9:$G$12,2),IF($J$1="B",VLOOKUP(1,MargenVersionen!$A$9:$G$12,4),VLOOKUP(1,MargenVersionen!$A$9:$G$12,6))) -> 0.3
A40: =IF($L$1="D",VLOOKUP(100,Übersetzung!$A$2:$D$100,2),IF($L$1="F",VLOOKUP(100,Übersetzung!$A$2:$D$100,3),VLOOKUP(100,Übersetzung!$A$2:$D$100,4))) -> Deckleiste | B40: =IF($L$1="D",VLOOKUP(139,Übersetzung!$A$2:$D$301,2),IF($L$1="F",VLOOKUP(139,Übersetzung!$A$2:$D$301,3),VLOOKUP(139,Übersetzung!$A$2:$D$301,4))) -> Premium | C40: 23 x 75 | D40: 5 | E40: 4 /224 | F40: 11,77* | G40: =K40+K40*$J$39 -> 4.42 | H40: =L40+L40*$J$39 -> 4.225 | K40: 3.4 | L40: 3.25 | M40: 3.1 | N40: 2.85
A41: =IF($L$1="D",VLOOKUP(104,Übersetzung!$A$2:$D$149,2),IF($L$1="F",VLOOKUP(104,Übersetzung!$A$2:$D$149,3),VLOOKUP(104,Übersetzung!$A$2:$D$149,4))) -> Leistenbreite = Berechnungsbreite
A42: =IF($L$1="D",VLOOKUP(175,Übersetzung!$A$2:$D$301,2),IF($L$1="F",VLOOKUP(175,Übersetzung!$A$2:$D$301,3),VLOOKUP(175,Übersetzung!$A$2:$D$301,4))) -> *Auf Basis einer Schattenfuge von 10mm!!! | F42: 8
A53: =IF($L$1="D",VLOOKUP(107,Übersetzung!$A$2:$D$149,2),IF($L$1="F",VLOOKUP(107,Übersetzung!$A$2:$D$149,3),VLOOKUP(107,Übersetzung!$A$2:$D$149,4))) -> Gültig ab 1. März 2018 ! | D53: =IF($L$1="D",VLOOKUP(152,Übersetzung!$A$2:$D$300,2),IF($L$1="F",VLOOKUP(152,Übersetzung!$A$2:$D$300,3),VLOOKUP(152,Übersetzung!$A$2:$D$300,4))) -> Seite: | E53: =_xlfn.SHEET(D73)-1 & "/" & MargenVersionen!K6 -> 4/13 | H53: =IF($L$1="D",VLOOKUP(185,Übersetzung!$A$2:$D$300,2),IF($L$1="F",VLOOKUP(185,Übersetzung!$A$2:$D$300,3),VLOOKUP(185,Übersetzung!$A$2:$D$300,4))) -> v01

Sheet DuraPatina (Kom T2 - S.5)
J1: a | L1: n
B2: =IF($J$1="a",(IF($L$1="D",VLOOKUP(48,Übersetzung!$A$2:$D$100,2),IF($L$1="F",VLOOKUP(48,Übersetzung!$A$2:$D$100,3),VLOOKUP(48,Übersetzung!$A$2:$D$100,4)))),(IF($L$1="D",VLOOKUP(125,Übersetzung!$A$2:$D$150,2),IF($L$1="F",VLOOKUP(125,Übersetzung!$A$2:$D$150,3),VLOOKUP(125,Übersetzung!$A$2:$D$150,4))))) -> Prijslijst handelaars 2018
A6: =IF($L$1="D",VLOOKUP(194,Übersetzung!$A$2:$D$301,2),IF($L$1="F",VLOOKUP(194,Übersetzung!$A$2:$D$301,3),VLOOKUP(194,Übersetzung!$A$2:$D$301,4))) -> OP BESTELLING BESCHIKBAAR (voortzetting)
A7: =IF($L$1="D",VLOOKUP(133,Übersetzung!$A$2:$D$301,2),IF($L$1="F",VLOOKUP(133,Übersetzung!$A$2:$D$301,3),VLOOKUP(133,Übersetzung!$A$2:$D$301,4))) -> - Productie vanaf 50m² (kleinere hoeveelheden alleen maar als gegroepeerde bestelling mogelijk - Let op: eventueel langere levertermijn!). - Toeslag voor kleine hoeveelheden tot 100m² - kleuren kristal, lava & gletsjer: 55,- €. - Toeslag voor kleine hoeveelheden tot 100m² - kleuren basalt, toendra & leisteen: 170,- €. - Kortlengtes (200/250/300/350 cm) tot 10% getolereed. - Voor leveringen zonder kortlengtes berekenen wij 7% meerkosten! - Gelieve alltijd aan te geven of de bestelde hoeveelheid inclusief of zonder kortlengtes is. Als er niets aangegeven wordt, zullen wij uw hoeveelheden altijd inclusief kortlengtes leveren. - Levertijd 6 - 8 weken (Een precieze levertermijn op aanvraag!).
A10: =IF($L$1="D",VLOOKUP(137,Übersetzung!$A$2:$D$301,2),IF($L$1="F",VLOOKUP(137,Übersetzung!$A$2:$D$301,3),VLOOKUP(137,Übersetzung!$A$2:$D$301,4))) -> Alle profielen, die technisch mogelijk zijn, kunnen op bestelling gefabriciëert worden. Hier enkele voorbeelden. U vindt de prijzen op pagina 4.
A36: =IF($L$1="D",VLOOKUP(195,Übersetzung!$A$2:$D$301,2),IF($L$1="F",VLOOKUP(195,Übersetzung!$A$2:$D$301,3),VLOOKUP(195,Übersetzung!$A$2:$D$301,4))) -> 3D-gevelbekleding
A38: =IF($L$1="D",VLOOKUP(200,Übersetzung!$A$2:$D$301,2),IF($L$1="F",VLOOKUP(200,Übersetzung!$A$2:$D$301,3),VLOOKUP(200,Übersetzung!$A$2:$D$301,4))) -> Voorbeeldgevelbekleding in de kwaliteit "select" (3D-gevelbekleding is beschikbaar in een oneindelijk vele variaties. Voor uw persoonlijke variatie, contacteer ons!
A40: =IF($L$1="D",VLOOKUP(196,Übersetzung!$A$2:$D$301,2),IF($L$1="F",VLOOKUP(196,Übersetzung!$A$2:$D$301,3),VLOOKUP(196,Übersetzung!$A$2:$D$301,4))) & " 1" -> Profiel 1 | B40: 20x65mm
A41: =IF($L$1="D",VLOOKUP(196,Übersetzung!$A$2:$D$301,2),IF($L$1="F",VLOOKUP(196,Übersetzung!$A$2:$D$301,3),VLOOKUP(196,Übersetzung!$A$2:$D$301,4))) & " 2" -> Profiel 2 | B41: 60x40mm
A42: =IF($L$1="D",VLOOKUP(196,Übersetzung!$A$2:$D$301,2),IF($L$1="F",VLOOKUP(196,Übersetzung!$A$2:$D$301,3),VLOOKUP(196,Übersetzung!$A$2:$D$301,4))) & " 3" -> Profiel 3 | B42: 26x80mm
A43: =IF($L$1="D",VLOOKUP(196,Übersetzung!$A$2:$D$301,2),IF($L$1="F",VLOOKUP(196,Übersetzung!$A$2:$D$301,3),VLOOKUP(196,Übersetzung!$A$2:$D$301,4))) & " 4" -> Profiel 4 | B43: 20x140mm
A44: =IF($L$1="D",VLOOKUP(196,Übersetzung!$A$2:$D$301,2),IF($L$1="F",VLOOKUP(196,Übersetzung!$A$2:$D$301,3),VLOOKUP(196,Übersetzung!$A$2:$D$301,4))) & " 5" -> Profiel 5 | B44: 26x40mm
A45: =IF($L$1="D",VLOOKUP(196,Übersetzung!$A$2:$D$301,2),IF($L$1="F",VLOOKUP(196,Übersetzung!$A$2:$D$301,3),VLOOKUP(196,Übersetzung!$A$2:$D$301,4))) & " 6" -> Profiel 6 | B45: 20x65mm
A48: =IF($L$1="D",VLOOKUP(197,Übersetzung!$A$2:$D$301,2),IF($L$1="F",VLOOKUP(197,Übersetzung!$A$2:$D$301,3),VLOOKUP(197,Übersetzung!$A$2:$D$301,4))) -> Richtprijs voor 100m²: | B48: 88,10 €/m² | F48: =IF($L$1="D",VLOOKUP(198,Übersetzung!$A$2:$D$301,2),IF($L$1="F",VLOOKUP(198,Übersetzung!$A$2:$D$301,3),VLOOKUP(198,Übersetzung!$A$2:$D$301,4))) -> Verbruik per profiel: ca. 2,8 m'/m²
A50: =IF($L$1="D",VLOOKUP(199,Übersetzung!$A$2:$D$301,2),IF($L$1="F",VLOOKUP(199,Übersetzung!$A$2:$D$301,3),VLOOKUP(199,Übersetzung!$A$2:$D$301,4))) -> Voor deze 3D-gevelbekleding in DuraAkzent of DuraNatur (kwaliteit "select") berekenen wij meerkosten van 8%!
A61: =IF($L$1="D",VLOOKUP(107,Übersetzung!$A$2:$D$149,2),IF($L$1="F",VLOOKUP(107,Übersetzung!$A$2:$D$149,3),VLOOKUP(107,Übersetzung!$A$2:$D$149,4))) -> Geldig vanaf 1 maart 2018 ! | D61: =IF($L$1="D",VLOOKUP(152,Übersetzung!$A$2:$D$300,2),IF($L$1="F",VLOOKUP(152,Übersetzung!$A$2:$D$300,3),VLOOKUP(152,Übersetzung!$A$2:$D$300,4))) -> pagina: | E61: =_xlfn.SHEET(D73)-1 & "/" & MargenVersionen!K6 -> 5/13 | H61: =IF($L$1="D",VLOOKUP(185,Übersetzung!$A$2:$D$300,2),IF($L$1="F",VLOOKUP(185,Übersetzung!$A$2:$D$300,3),VLOOKUP(185,Übersetzung!$A$2:$D$300,4))) -> v01

Sheet DuraAkzent (S.6)
J1: a | L1: d
B2: =" " & IF($J$1="a",(IF($L$1="D",VLOOKUP(48,Übersetzung!$A$2:$D$100,2),IF($L$1="F",VLOOKUP(48,Übersetzung!$A$2:$D$100,3),VLOOKUP(48,Übersetzung!$A$2:$D$100,4)))),(IF($L$1="D",VLOOKUP(125,Übersetzung!$A$2:$D$150,2),IF($L$1="F",VLOOKUP(125,Übersetzung!$A$2:$D$150,3),VLOOKUP(125,Übersetzung!$A$2:$D$150,4))))) -> Händlerpreisliste 2018
J4: Leithändlerpreise 02/2018 | P4: Umrechnung auf Nutzfläche (wo nötig)
L5: Leithändlerpreise 01/2013 | Q5: Leithändlerpreise 01/2013
A6: =IF($L$1="D",VLOOKUP(193,Übersetzung!$A$2:$D$301,2),IF($L$1="F",VLOOKUP(193,Übersetzung!$A$2:$D$301,3),VLOOKUP(193,Übersetzung!$A$2:$D$301,4))) -> KOMMISSIONSWARE
A7: =IF($L$1="D",VLOOKUP(133,Übersetzung!$A$2:$D$301,2),IF($L$1="F",VLOOKUP(133,Übersetzung!$A$2:$D$301,3),VLOOKUP(133,Übersetzung!$A$2:$D$301,4))) -> - Produktion ab 50m² (kleinere Mengen nur als Sammelauftrag möglich - Achtung: evt. längere Lieferzeit!). - Mindermengenzuschlag bis 100m² - Farbtöne Kristall, Lava & Gletscher: 55,- €. - Mindermengenzuschlag bis 100m² - Farbtöne Basalt, Tundra & Schiefer: 170,- €. - Verschnittlängen (200/250/300/350 cm) bis 10% mitgehend! - Für Lieferungen ohne Kurzlängen berechnen wir 7% Aufpreis. - Bitte bei Bestellung angeben, ob Bestellmenge zzgl. oder inkl. Verschnitt ist. Wenn Sie nichts angeben, liefern wir inkl. Verschnittlängen! - Lieferzeit: 6 - 8 Wochen (Genaue Lieferzeit auf Anfrage!). | J7: Marge W&R auf EK Habis | K7: Kommisions- Preis | L7: Anbruch-Preis ab 1 Paket | M7: Paketpreis | N7: 6 Pakete | P7: Kommisions- Preis | Q7: Anbruch-preis ab 1 Paket | R7: Paketpreis | S7: 6 Pakete
A8: =IF($L$1="D",VLOOKUP(1,Übersetzung!$A$2:$D$100,2),IF($L$1="F",VLOOKUP(1,Übersetzung!$A$2:$D$100,3),VLOOKUP(1,Übersetzung!$A$2:$D$100,4))) -> Profile | B8: =IF($L$1="D",VLOOKUP(91,Übersetzung!$A$2:$D$100,2),IF($L$1="F",VLOOKUP(91,Übersetzung!$A$2:$D$100,3),VLOOKUP(91,Übersetzung!$A$2:$D$100,4))) -> Qualität | C8: =IF($L$1="D",VLOOKUP(2,Übersetzung!$A$2:$D$100,2),IF($L$1="F",VLOOKUP(2,Übersetzung!$A$2:$D$100,3),VLOOKUP(2,Übersetzung!$A$2:$D$100,4))) -> Dimension in mm Stärke x Breite | D8: =IF($L$1="D",VLOOKUP(3,Übersetzung!$A$2:$D$100,2),IF($L$1="F",VLOOKUP(3,Übersetzung!$A$2:$D$100,3),VLOOKUP(3,Übersetzung!$A$2:$D$100,4))) -> Länge (m) | E8: =IF($L$1="D",VLOOKUP(4,Übersetzung!$A$2:$D$100,2),IF($L$1="F",VLOOKUP(4,Übersetzung!$A$2:$D$100,3),VLOOKUP(4,Übersetzung!$A$2:$D$100,4))) -> VPE Bund/Paket | F8: =IF($L$1="D",VLOOKUP(176,Übersetzung!$A$2:$D$301,2),IF($L$1="F",VLOOKUP(176,Übersetzung!$A$2:$D$301,3),VLOOKUP(176,Übersetzung!$A$2:$D$301,4))) -> Bedarf (m/m²) | G8: =IF($L$1="D",VLOOKUP(5,Übersetzung!$A$2:$D$100,2),IF($L$1="F",VLOOKUP(5,Übersetzung!$A$2:$D$100,3),VLOOKUP(5,Übersetzung!$A$2:$D$100,4))) -> Kommissions-preis (weniger als ein Paket) | H8: =IF($L$1="D",VLOOKUP(7,Übersetzung!$A$2:$D$100,2),IF($L$1="F",VLOOKUP(7,Übersetzung!$A$2:$D$100,3),VLOOKUP(7,Übersetzung!$A$2:$D$100,4))) -> Paketpreis | J8: =IF($J$1="A",VLOOKUP(1,MargenVersionen!$A$9:$G$12,2),IF($J$1="B",VLOOKUP(1,MargenVersionen!$A$9:$G$12,4),VLOOKUP(1,MargenVersionen!$A$9:$G$12,6))) -> 0.3 | K8: Hier die Preise eingeben! | P8: Felder werden automatisch berechnet!
A9: =IF($L$1="D",VLOOKUP(142,Übersetzung!$A$2:$D$301,2),IF($L$1="F",VLOOKUP(142,Übersetzung!$A$2:$D$301,3),VLOOKUP(142,Übersetzung!$A$2:$D$301,4))) -> Große Auswahl an Profilen! Die technische Machbarkeit muss geprüft werden! Bitte fragen Sie uns! | B9: =IF($L$1="D",VLOOKUP(138,Übersetzung!$A$2:$D$301,2),IF($L$1="F",VLOOKUP(138,Übersetzung!$A$2:$D$301,3),VLOOKUP(138,Übersetzung!$A$2:$D$301,4))) -> Selekt | C9: 21 x 40 | D9: 4,0 / 5,0 | E9: 4 / 224 | F9: / | G9: =K9+K9*$J$8 -> 2.99 | H9: 2.86 | K9: 2.3 | L9: 2.2 | M9: 2.1 | N9: 1.95
C10: 21 x 55 | D10: 4,0 / 5,0 | E10: 4 / 224 | F10: / | G10: 3.64 | H10: 3.445 | K10: 2.8 | L10: 2.65 | M10: 2.5 | N10: 2.3
C11: 21 x 65 | D11: 4,0 / 5,0 | E11: 4 / 224 | F11: / | G11: 3.835 | H11: 3.64 | K11: 2.95 | L11: 2.8 | M11: 2.7 | N11: 2.45
C12: 21 x 90 | D12: 4,0 / 5,0 | E12: 4 / 160 | F12: / | G12: 54.47 | H12: 51.87 | K12: 41.9 | L12: 39.9 | M12: 37.9 | N12: 34.9
C13: 21 x 116 | D13: 4,0 / 5,0 | E13: 4 / 112 | G13: 58.76 | H13: 55.77 | K13: 45.2 | L13: 42.9 | M13: 40.7 | N13: 37.5
C14: 21 x 140 | F14: /
C15: 21 x 170
C16: 26 x 40 | D16: 4,0 / 5,0 | E16: 4 / 224 | F16: / | G16: =K16+K16*$J$8 -> 3.64 | H16: 3.51 | K16: 2.8 | L16: 2.7 | M16: 2.55 | N16: 2.35
C17: 26 x 65 | D17: 4,0 / 5,0 | E17: 4 / 224 | F17: / | G17: 4.55 | H17: 4.29 | K17: 3.5 | L17: 3.3 | M17: 3.15 | N17: 2.9
C18: 26 x 140 | D18: 4,0 / 5,0 | E18: 4 /112 | F18: / | G18: 66.95 | H18: 63.57 | K18: 51.5 | L18: 48.9 | M18: 46.5 | N18: 42.8
C19: 40 x 40 | D19: 4,0 / 5,0 | E19: 4 / 224 | F19: / | G19: 4.94 | H19: 4.68 | K19: 3.8 | L19: 3.6 | M19: 3.45 | N19: 3.2
C20: 40 x 55 | D20: 4,0 / 5,0 | E20: 4 / 224 | F20: / | G20: 5.98 | H20: 5.655 | K20: 4.6 | L20: 4.35 | M20: 4.15 | N20: 3.8
C21: 40 x 65 | D21: 4,0 / 5,0 | E21: 4 / 224 | F21: / | G21: 6.825 | H21: 6.435 | K21: 5.25 | L21: 4.95 | M21: 4.7 | N21: 4.3
C22: 40 x 90 | D22: 4,0 / 5,0 | E22: 4 / 160 | F22: / | G22: 98.15 | H22: 93.21 | K22: 75.5 | L22: 71.7 | M22: 68.1 | N22: 62.5
C23: 40 x 116 | D23: 4,0 / 5,0 | E23: 4 / 112 | G23: 94.25 | H23: 89.57 | K23: 72.5 | L23: 68.9 | M23: 65.5 | N23: 60.3
C24: 40 x 140 | F24: /
C25: 40 x 170
C26: 50 x 40 | D26: 4,0 / 5,0 | E26: 4 / 224 | F26: / | G26: =K26+K26*$J$8 -> 5.98 | H26: 5.655 | K26: 4.6 | L26: 4.35 | M26: 4.1 | N26: 3.8
C27: 50 x 65 | D27: 4,0 / 5,0 | E27: 4 / 224 | F27: / | G27: 8.06 | H27: 7.67 | K27: 6.2 | L27: 5.9 | M27: 5.6 | N27: 5.15
C28: 50 x 140 | D28: 4,0 / 5,0 | E28: 4 / 112 | F28: / | G28: 113.75 | H28: 108.03 | K28: 87.5 | L28: 83.1 | M28: 78.9 | N28: 72.5
A29: =IF($L$1="D",VLOOKUP(103,Übersetzung!$A$2:$D$149,2),IF($L$1="F",VLOOKUP(103,Übersetzung!$A$2:$D$149,3),VLOOKUP(103,Übersetzung!$A$2:$D$149,4))) & "!!!" -> Brettbreite = Berechnungsbreite!!! | E29: =IF($L$1="D",VLOOKUP(192,Übersetzung!$A$2:$D$301,2),IF($L$1="F",VLOOKUP(192,Übersetzung!$A$2:$D$301,3),VLOOKUP(192,Übersetzung!$A$2:$D$301,4))) -> Beispielprofile finden Sie auf Seite 5.
A31: =IF($L$1="D",VLOOKUP(141,Übersetzung!$A$2:$D$301,2),IF($L$1="F",VLOOKUP(141,Übersetzung!$A$2:$D$301,3),VLOOKUP(141,Übersetzung!$A$2:$D$301,4))) -> Qualität: KEILGEZINKT
A32: =IF($L$1="D",VLOOKUP(15,Übersetzung!$A$2:$D$301,2),IF($L$1="F",VLOOKUP(15,Übersetzung!$A$2:$D$301,3),VLOOKUP(15,Übersetzung!$A$2:$D$301,4))) -> - Standardlängen von 3,0m bis 6,0m in Schritten von 10cm! - Keine Kurzlängen wie bei der Qualität "Selekt", dafür Mehrlieferungen bis 5% mitgehend! - Alle Dimensionen wie bei der Qualität "Selekt" möglich, außer 21x170mm und 40x170mm.
A33: =IF($L$1="D",VLOOKUP(190,Übersetzung!$A$2:$D$301,2),IF($L$1="F",VLOOKUP(190,Übersetzung!$A$2:$D$301,3),VLOOKUP(190,Übersetzung!$A$2:$D$301,4))) -> - Preisbasis: Qualität "Selekt" + 5% Aufschlag.
A34: =IF($L$1="D",VLOOKUP(191,Übersetzung!$A$2:$D$301,2),IF($L$1="F",VLOOKUP(191,Übersetzung!$A$2:$D$301,3),VLOOKUP(191,Übersetzung!$A$2:$D$301,4))) -> - Sonderlängen (z. Bsp. 3,54m oder 5,42m) sowie Überlängen (>6,0m) auf Anfrage möglich.
A36: =IF($L$1="D",VLOOKUP(9,Übersetzung!$A$2:$D$301,2),IF($L$1="F",VLOOKUP(9,Übersetzung!$A$2:$D$301,3),VLOOKUP(9,Übersetzung!$A$2:$D$301,4))) -> Qualität: PREMIUM
A37: =IF($L$1="D",VLOOKUP(1,Übersetzung!$A$2:$D$100,2),IF($L$1="F",VLOOKUP(1,Übersetzung!$A$2:$D$100,3),VLOOKUP(1,Übersetzung!$A$2:$D$100,4))) -> Profile | B37: =IF($L$1="D",VLOOKUP(91,Übersetzung!$A$2:$D$100,2),IF($L$1="F",VLOOKUP(91,Übersetzung!$A$2:$D$100,3),VLOOKUP(91,Übersetzung!$A$2:$D$100,4))) -> Qualität | C37: =IF($L$1="D",VLOOKUP(2,Übersetzung!$A$2:$D$100,2),IF($L$1="F",VLOOKUP(2,Übersetzung!$A$2:$D$100,3),VLOOKUP(2,Übersetzung!$A$2:$D$100,4))) -> Dimension in mm Stärke x Breite | D37: =IF($L$1="D",VLOOKUP(3,Übersetzung!$A$2:$D$100,2),IF($L$1="F",VLOOKUP(3,Übersetzung!$A$2:$D$100,3),VLOOKUP(3,Übersetzung!$A$2:$D$100,4))) -> Länge (m) | E37: =IF($L$1="D",VLOOKUP(4,Übersetzung!$A$2:$D$100,2),IF($L$1="F",VLOOKUP(4,Übersetzung!$A$2:$D$100,3),VLOOKUP(4,Übersetzung!$A$2:$D$100,4))) -> VPE Bund/Paket | F37: =IF($L$1="D",VLOOKUP(176,Übersetzung!$A$2:$D$301,2),IF($L$1="F",VLOOKUP(176,Übersetzung!$A$2:$D$301,3),VLOOKUP(176,Übersetzung!$A$2:$D$301,4))) -> Bedarf (m/m²) | G37: =IF($L$1="D",VLOOKUP(5,Übersetzung!$A$2:$D$100,2),IF($L$1="F",VLOOKUP(5,Übersetzung!$A$2:$D$100,3),VLOOKUP(5,Übersetzung!$A$2:$D$100,4))) -> Kommissions-preis (weniger als ein Paket) | H37: =IF($L$1="D",VLOOKUP(7,Übersetzung!$A$2:$D$100,2),IF($L$1="F",VLOOKUP(7,Übersetzung!$A$2:$D$100,3),VLOOKUP(7,Übersetzung!$A$2:$D$100,4))) -> Paketpreis
A38: =IF($L$1="D",VLOOKUP(100,Übersetzung!$A$2:$D$100,2),IF($L$1="F",VLOOKUP(100,Übersetzung!$A$2:$D$100,3),VLOOKUP(100,Übersetzung!$A$2:$D$100,4))) -> Deckleiste | B38: =IF($L$1="D",VLOOKUP(139,Übersetzung!$A$2:$D$301,2),IF($L$1="F",VLOOKUP(139,Übersetzung!$A$2:$D$301,3),VLOOKUP(139,Übersetzung!$A$2:$D$301,4))) -> Premium | C38: 23 x 75 | D38: 5 | E38: 4 / 224 | F38: 11,77* | G38: =K38+K38*$J$38 -> 4.81 | H38: =L38+L38*$J$38 -> 4.55 | J38: =IF($J$1="A",VLOOKUP(1,MargenVersionen!$A$9:$G$12,2),IF($J$1="B",VLOOKUP(1,MargenVersionen!$A$9:$G$12,4),VLOOKUP(1,MargenVersionen!$A$9:$G$12,6))) -> 0.3 | K38: 3.7 | L38: 3.5 | M38: 3.3 | N38: 3.05
A39: =IF($L$1="D",VLOOKUP(104,Übersetzung!$A$2:$D$149,2),IF($L$1="F",VLOOKUP(104,Übersetzung!$A$2:$D$149,3),VLOOKUP(104,Übersetzung!$A$2:$D$149,4))) -> Leistenbreite = Berechnungsbreite
A40: =IF($L$1="D",VLOOKUP(175,Übersetzung!$A$2:$D$301,2),IF($L$1="F",VLOOKUP(175,Übersetzung!$A$2:$D$301,3),VLOOKUP(175,Übersetzung!$A$2:$D$301,4))) -> *Auf Basis einer Schattenfuge von 10mm!!! | F40: 8
A41: =IF($L$1="D",VLOOKUP(51,Übersetzung!$A$2:$D$100,2),IF($L$1="F",VLOOKUP(51,Übersetzung!$A$2:$D$100,3),VLOOKUP(51,Übersetzung!$A$2:$D$100,4))) -> Beistreichfarbe | F41: =IF($L$1="D",VLOOKUP(179,Übersetzung!$A$2:$D$301,2),IF($L$1="F",VLOOKUP(179,Übersetzung!$A$2:$D$301,3),VLOOKUP(179,Übersetzung!$A$2:$D$301,4))) -> Verbrauch (m²/Liter) | G41: =IF($L$1="D",VLOOKUP(20,Übersetzung!$A$2:$D$100,2),IF($L$1="F",VLOOKUP(20,Übersetzung!$A$2:$D$100,3),VLOOKUP(20,Übersetzung!$A$2:$D$100,4))) -> Gebinde 1L | H41: =IF($L$1="D",VLOOKUP(21,Übersetzung!$A$2:$D$100,2),IF($L$1="F",VLOOKUP(21,Übersetzung!$A$2:$D$100,3),VLOOKUP(21,Übersetzung!$A$2:$D$100,4))) -> Gebinde 5L
A42: =IF($L$1="D",VLOOKUP(206,Übersetzung!$A$2:$D$301,2),IF($L$1="F",VLOOKUP(206,Übersetzung!$A$2:$D$301,3),VLOOKUP(206,Übersetzung!$A$2:$D$301,4))) -> Zum Streichen von Schnittkanten und zum vollflächigen Überarbeiten. Für Farbton: Mattschwarz | F42: max. 70 | G42: =K42+K42*$J$42 -> 28.48 | H42: =L42+L42*$J$42 -> 113.92 | J42: =IF($J$1="A",VLOOKUP(4,MargenVersionen!$A$9:$G$12,2),IF($J$1="B",VLOOKUP(4,MargenVersionen!$A$9:$G$12,4),VLOOKUP(4,MargenVersionen!$A$9:$G$12,6))) -> 0.6 | K42: 17.8 | L42: 71.2
A59: =IF($L$1="D",VLOOKUP(107,Übersetzung!$A$2:$D$149,2),IF($L$1="F",VLOOKUP(107,Übersetzung!$A$2:$D$149,3),VLOOKUP(107,Übersetzung!$A$2:$D$149,4))) -> Gültig ab 1. März 2018 ! | D59: =IF($L$1="D",VLOOKUP(152,Übersetzung!$A$2:$D$300,2),IF($L$1="F",VLOOKUP(152,Übersetzung!$A$2:$D$300,3),VLOOKUP(152,Übersetzung!$A$2:$D$300,4))) -> Seite: | E59: =_xlfn.SHEET(D73)-1 & "/" & MargenVersionen!K6 -> 6/13 | H59: =IF($L$1="D",VLOOKUP(185,Übersetzung!$A$2:$D$300,2),IF($L$1="F",VLOOKUP(185,Übersetzung!$A$2:$D$300,3),VLOOKUP(185,Übersetzung!$A$2:$D$300,4))) -> v01

Sheet DuraNatur (S.7)
J1: a | L1: n
C2: =IF($J$1="a",(IF($L$1="D",VLOOKUP(48,Übersetzung!$A$2:$D$100,2),IF($L$1="F",VLOOKUP(48,Übersetzung!$A$2:$D$100,3),VLOOKUP(48,Übersetzung!$A$2:$D$100,4)))),(IF($L$1="D",VLOOKUP(125,Übersetzung!$A$2:$D$150,2),IF($L$1="F",VLOOKUP(125,Übersetzung!$A$2:$D$150,3),VLOOKUP(125,Übersetzung!$A$2:$D$150,4))))) -> Prijslijst handelaars 2018 | D2: =IF($L$1="D",VLOOKUP(3,Übersetzung!$A$2:$D$100,2),IF($L$1="F",VLOOKUP(3,Übersetzung!$A$2:$D$100,3),VLOOKUP(3,Übersetzung!$A$2:$D$100,4))) -> Lengte (m) | E2: =IF($L$1="D",VLOOKUP(3,Übersetzung!$A$2:$D$100,2),IF($L$1="F",VLOOKUP(3,Übersetzung!$A$2:$D$100,3),VLOOKUP(3,Übersetzung!$A$2:$D$100,4))) -> Lengte (m) | G2: =IF($L$1="D",VLOOKUP(3,Übersetzung!$A$2:$D$100,2),IF($L$1="F",VLOOKUP(3,Übersetzung!$A$2:$D$100,3),VLOOKUP(3,Übersetzung!$A$2:$D$100,4))) -> Lengte (m)
C3: =IF($L$1="D",VLOOKUP(3,Übersetzung!$A$2:$D$100,2),IF($L$1="F",VLOOKUP(3,Übersetzung!$A$2:$D$100,3),VLOOKUP(3,Übersetzung!$A$2:$D$100,4))) -> Lengte (m) | D3: =IF($L$1="D",VLOOKUP(3,Übersetzung!$A$2:$D$100,2),IF($L$1="F",VLOOKUP(3,Übersetzung!$A$2:$D$100,3),VLOOKUP(3,Übersetzung!$A$2:$D$100,4))) -> Lengte (m) | E3: =IF($L$1="D",VLOOKUP(3,Übersetzung!$A$2:$D$100,2),IF($L$1="F",VLOOKUP(3,Übersetzung!$A$2:$D$100,3),VLOOKUP(3,Übersetzung!$A$2:$D$100,4))) -> Lengte (m) | G3: =IF($L$1="D",VLOOKUP(3,Übersetzung!$A$2:$D$100,2),IF($L$1="F",VLOOKUP(3,Übersetzung!$A$2:$D$100,3),VLOOKUP(3,Übersetzung!$A$2:$D$100,4))) -> Lengte (m)
K4: Leithändlerpreise 03/2016 | P4: Umrechnung auf Nutzfläche (wo nötig)
L5: Leithändlerpreise 01/2013 | Q5: Leithändlerpreise 01/2013
A6: =IF($L$1="D",VLOOKUP(193,Übersetzung!$A$2:$D$301,2),IF($L$1="F",VLOOKUP(193,Übersetzung!$A$2:$D$301,3),VLOOKUP(193,Übersetzung!$A$2:$D$301,4))) -> OP BESTELLING BESCHIKBAAR
A7: =IF($L$1="D",VLOOKUP(133,Übersetzung!$A$2:$D$301,2),IF($L$1="F",VLOOKUP(133,Übersetzung!$A$2:$D$301,3),VLOOKUP(133,Übersetzung!$A$2:$D$301,4))) -> - Productie vanaf 50m² (kleinere hoeveelheden alleen maar als gegroepeerde bestelling mogelijk - Let op: eventueel langere levertermijn!). - Toeslag voor kleine hoeveelheden tot 100m² - kleuren kristal, lava & gletsjer: 55,- €. - Toeslag voor kleine hoeveelheden tot 100m² - kleuren basalt, toendra & leisteen: 170,- €. - Kortlengtes (200/250/300/350 cm) tot 10% getolereed. - Voor leveringen zonder kortlengtes berekenen wij 7% meerkosten! - Gelieve alltijd aan te geven of de bestelde hoeveelheid inclusief of zonder kortlengtes is. Als er niets aangegeven wordt, zullen wij uw hoeveelheden altijd inclusief kortlengtes leveren. - Levertijd 6 - 8 weken (Een precieze levertermijn op aanvraag!). | J7: Marge W&R auf EK Habis | K7: Kommisions- Preis | L7: Anbruch-Preis ab 1 Paket | M7: Paketpreis | N7: 6 Pakete | P7: Kommisions- Preis | Q7: Anbruch-preis ab 1 Paket | R7: Paketpreis | S7: 6 Pakete
A8: =IF($L$1="D",VLOOKUP(1,Übersetzung!$A$2:$D$100,2),IF($L$1="F",VLOOKUP(1,Übersetzung!$A$2:$D$100,3),VLOOKUP(1,Übersetzung!$A$2:$D$100,4))) -> Profielen | B8: =IF($L$1="D",VLOOKUP(91,Übersetzung!$A$2:$D$100,2),IF($L$1="F",VLOOKUP(91,Übersetzung!$A$2:$D$100,3),VLOOKUP(91,Übersetzung!$A$2:$D$100,4))) -> Kwaliteit | C8: =IF($L$1="D",VLOOKUP(2,Übersetzung!$A$2:$D$100,2),IF($L$1="F",VLOOKUP(2,Übersetzung!$A$2:$D$100,3),VLOOKUP(2,Übersetzung!$A$2:$D$100,4))) -> Afmeting in mm dikte x breedte | D8: =IF($L$1="D",VLOOKUP(3,Übersetzung!$A$2:$D$100,2),IF($L$1="F",VLOOKUP(3,Übersetzung!$A$2:$D$100,3),VLOOKUP(3,Übersetzung!$A$2:$D$100,4))) -> Lengte (m) | E8: =IF($L$1="D",VLOOKUP(4,Übersetzung!$A$2:$D$100,2),IF($L$1="F",VLOOKUP(4,Übersetzung!$A$2:$D$100,3),VLOOKUP(4,Übersetzung!$A$2:$D$100,4))) -> Verpakking per bundel/pakket | F8: =IF($L$1="D",VLOOKUP(176,Übersetzung!$A$2:$D$301,2),IF($L$1="F",VLOOKUP(176,Übersetzung!$A$2:$D$301,3),VLOOKUP(176,Übersetzung!$A$2:$D$301,4))) -> Verbruik (m/m²) | G8: =IF($L$1="D",VLOOKUP(5,Übersetzung!$A$2:$D$100,2),IF($L$1="F",VLOOKUP(5,Übersetzung!$A$2:$D$100,3),VLOOKUP(5,Übersetzung!$A$2:$D$100,4))) -> Prijs kleine hoeveelheid (minder dan één pakket) | H8: =IF($L$1="D",VLOOKUP(7,Übersetzung!$A$2:$D$100,2),IF($L$1="F",VLOOKUP(7,Übersetzung!$A$2:$D$100,3),VLOOKUP(7,Übersetzung!$A$2:$D$100,4))) -> Pakketprijs | J8: =IF($J$1="A",VLOOKUP(1,MargenVersionen!$A$9:$G$12,2),IF($J$1="B",VLOOKUP(1,MargenVersionen!$A$9:$G$12,4),VLOOKUP(1,MargenVersionen!$A$9:$G$12,6))) -> 0.3 | K8: Hier die Preise eingeben! | P8: Felder werden automatisch berechnet!
A9: =IF($L$1="D",VLOOKUP(142,Übersetzung!$A$2:$D$301,2),IF($L$1="F",VLOOKUP(142,Übersetzung!$A$2:$D$301,3),VLOOKUP(142,Übersetzung!$A$2:$D$301,4))) -> Groote keuze aan profielen! De technische haalbaarheid moet gecontrolleerd worden! Contacteer ons! | B9: =IF($L$1="D",VLOOKUP(138,Übersetzung!$A$2:$D$301,2),IF($L$1="F",VLOOKUP(138,Übersetzung!$A$2:$D$301,3),VLOOKUP(138,Übersetzung!$A$2:$D$301,4))) -> Select | C9: 21 x 40 | D9: 4,0 / 5,0 | E9: 4 / 224 | F9: / | G9: =K9+K9*$J$8 -> 2.99 | H9: 2.86 | K9: 2.3 | L9: 2.2 | M9: 2.1 | N9: 1.95
C10: 21 x 55 | D10: 4,0 / 5,0 | E10: 4 / 224 | F10: / | G10: 3.64 | H10: 3.445 | K10: 2.8 | L10: 2.65 | M10: 2.5 | N10: 2.3
C11: 21 x 65 | D11: 4,0 / 5,0 | E11: 4 / 224 | F11: / | G11: 3.835 | H11: 3.64 | K11: 2.95 | L11: 2.8 | M11: 2.7 | N11: 2.45
C12: 21 x 90 | D12: 4,0 / 5,0 | E12: 4 / 160 | F12: / | G12: 54.47 | H12: 51.87 | K12: 41.9 | L12: 39.9 | M12: 37.9 | N12: 34.9
C13: 21 x 116 | D13: 4,0 / 5,0 | E13: 4 / 112 | G13: 58.76 | H13: 55.77 | K13: 45.2 | L13: 42.9 | M13: 40.7 | N13: 37.5
C14: 21 x 140 | F14: /
C15: 21 x 170
C16: 26 x 40 | D16: 4,0 / 5,0 | E16: 4 / 224 | F16: / | G16: =K16+K16*$J$8 -> 3.64 | H16: 3.51 | K16: 2.8 | L16: 2.7 | M16: 2.55 | N16: 2.35
C17: 26 x 65 | D17: 4,0 / 5,0 | E17: 4 / 224 | F17: / | G17: 4.55 | H17: 4.29 | K17: 3.5 | L17: 3.3 | M17: 3.15 | N17: 2.9
C18: 26 x 140 | D18: 4,0 / 5,0 | E18: 4 /112 | F18: / | G18: 66.95 | H18: 63.57 | K18: 51.5 | L18: 48.9 | M18: 46.5 | N18: 42.8
C19: 40 x 40 | D19: 4,0 / 5,0 | E19: 4 / 224 | F19: / | G19: 4.94 | H19: 4.68 | K19: 3.8 | L19: 3.6 | M19: 3.45 | N19: 3.2
C20: 40 x 55 | D20: 4,0 / 5,0 | E20: 4 / 224 | F20: / | G20: 5.98 | H20: 5.655 | K20: 4.6 | L20: 4.35 | M20: 4.15 | N20: 3.8
C21: 40 x 65 | D21: 4,0 / 5,0 | E21: 4 / 224 | F21: / | G21: 6.825 | H21: 6.435 | K21: 5.25 | L21: 4.95 | M21: 4.7 | N21: 4.3
C22: 40 x 90 | D22: 4,0 / 5,0 | E22: 4 / 160 | F22: / | G22: 98.15 | H22: 93.21 | K22: 75.5 | L22: 71.7 | M22: 68.1 | N22: 62.5
C23: 40 x 116 | D23: 4,0 / 5,0 | E23: 4 / 112 | G23: 94.25 | H23: 89.57 | K23: 72.5 | L23: 68.9 | M23: 65.5 | N23: 60.3
C24: 40 x 140 | F24: /
C25: 40 x 170
C26: 50 x 40 | D26: 4,0 / 5,0 | E26: 4 / 224 | F26: / | G26: =K26+K26*$J$8 -> 5.98 | H26: 5.655 | K26: 4.6 | L26: 4.35 | M26: 4.1 | N26: 3.8
C27: 50 x 65 | D27: 4,0 / 5,0 | E27: 4 / 224 | F27: / | G27: 8.06 | H27: 7.67 | K27: 6.2 | L27: 5.9 | M27: 5.6 | N27: 5.15
C28: 50 x 140 | D28: 4,0 / 5,0 | E28: 4 / 112 | F28: / | G28: 113.75 | H28: 108.03 | K28: 87.5 | L28: 83.1 | M28: 78.9 | N28: 72.5
A29: =IF($L$1="D",VLOOKUP(103,Übersetzung!$A$2:$D$149,2),IF($L$1="F",VLOOKUP(103,Übersetzung!$A$2:$D$149,3),VLOOKUP(103,Übersetzung!$A$2:$D$149,4))) & "!!!" -> Plankbreedte = berekeningsmaat!!! | E29: =IF($L$1="D",VLOOKUP(192,Übersetzung!$A$2:$D$301,2),IF($L$1="F",VLOOKUP(192,Übersetzung!$A$2:$D$301,3),VLOOKUP(192,Übersetzung!$A$2:$D$301,4))) -> Voorbeeldprofielen vind u op pagina 5.
A31: =IF($L$1="D",VLOOKUP(141,Übersetzung!$A$2:$D$301,2),IF($L$1="F",VLOOKUP(141,Übersetzung!$A$2:$D$301,3),VLOOKUP(141,Übersetzung!$A$2:$D$301,4))) -> Kwaliteit: GEVINGERLAST
A33: =IF($L$1="D",VLOOKUP(15,Übersetzung!$A$2:$D$301,2),IF($L$1="F",VLOOKUP(15,Übersetzung!$A$2:$D$301,3),VLOOKUP(15,Übersetzung!$A$2:$D$301,4))) -> - Standaardlengtes van 3,0m tot 6,0m in stappen van 10cm! - Geen kortlengtes zoals bij de kwaliteit "select", maar tot 5% meerlevering mogelijk! - Alle afmetingen zoals bij de kwallteit "select", behalve 21x170mm en 40x170mm.
A34: =IF($L$1="D",VLOOKUP(190,Übersetzung!$A$2:$D$301,2),IF($L$1="F",VLOOKUP(190,Übersetzung!$A$2:$D$301,3),VLOOKUP(190,Übersetzung!$A$2:$D$301,4))) -> - Prijsbasis: Kwaliteit "select" + 5% toeslag.
A35: =IF($L$1="D",VLOOKUP(191,Übersetzung!$A$2:$D$301,2),IF($L$1="F",VLOOKUP(191,Übersetzung!$A$2:$D$301,3),VLOOKUP(191,Übersetzung!$A$2:$D$301,4))) -> - Speciale lengtes (bvb. 3,54m of 5,42m), alsook grotere lengtes (>6,0m) op aanvraag mogelijk.
A37: =IF($L$1="D",VLOOKUP(9,Übersetzung!$A$2:$D$301,2),IF($L$1="F",VLOOKUP(9,Übersetzung!$A$2:$D$301,3),VLOOKUP(9,Übersetzung!$A$2:$D$301,4))) -> Kwaliteit: PREMIUM
A39: =IF($L$1="D",VLOOKUP(1,Übersetzung!$A$2:$D$100,2),IF($L$1="F",VLOOKUP(1,Übersetzung!$A$2:$D$100,3),VLOOKUP(1,Übersetzung!$A$2:$D$100,4))) -> Profielen | B39: =IF($L$1="D",VLOOKUP(91,Übersetzung!$A$2:$D$100,2),IF($L$1="F",VLOOKUP(91,Übersetzung!$A$2:$D$100,3),VLOOKUP(91,Übersetzung!$A$2:$D$100,4))) -> Kwaliteit | C39: =IF($L$1="D",VLOOKUP(2,Übersetzung!$A$2:$D$100,2),IF($L$1="F",VLOOKUP(2,Übersetzung!$A$2:$D$100,3),VLOOKUP(2,Übersetzung!$A$2:$D$100,4))) -> Afmeting in mm dikte x breedte | D39: =IF($L$1="D",VLOOKUP(3,Übersetzung!$A$2:$D$100,2),IF($L$1="F",VLOOKUP(3,Übersetzung!$A$2:$D$100,3),VLOOKUP(3,Übersetzung!$A$2:$D$100,4))) -> Lengte (m) | E39: =IF($L$1="D",VLOOKUP(4,Übersetzung!$A$2:$D$100,2),IF($L$1="F",VLOOKUP(4,Übersetzung!$A$2:$D$100,3),VLOOKUP(4,Übersetzung!$A$2:$D$100,4))) -> Verpakking per bundel/pakket | F39: =IF($L$1="D",VLOOKUP(176,Übersetzung!$A$2:$D$301,2),IF($L$1="F",VLOOKUP(176,Übersetzung!$A$2:$D$301,3),VLOOKUP(176,Übersetzung!$A$2:$D$301,4))) -> Verbruik (m/m²) | G39: =IF($L$1="D",VLOOKUP(5,Übersetzung!$A$2:$D$100,2),IF($L$1="F",VLOOKUP(5,Übersetzung!$A$2:$D$100,3),VLOOKUP(5,Übersetzung!$A$2:$D$100,4))) -> Prijs kleine hoeveelheid (minder dan één pakket) | H39: =IF($L$1="D",VLOOKUP(7,Übersetzung!$A$2:$D$100,2),IF($L$1="F",VLOOKUP(7,Übersetzung!$A$2:$D$100,3),VLOOKUP(7,Übersetzung!$A$2:$D$100,4))) -> Pakketprijs
A40: =IF($L$1="D",VLOOKUP(100,Übersetzung!$A$2:$D$100,2),IF($L$1="F",VLOOKUP(100,Übersetzung!$A$2:$D$100,3),VLOOKUP(100,Übersetzung!$A$2:$D$100,4))) -> Deklijst | B40: =IF($L$1="D",VLOOKUP(139,Übersetzung!$A$2:$D$301,2),IF($L$1="F",VLOOKUP(139,Übersetzung!$A$2:$D$301,3),VLOOKUP(139,Übersetzung!$A$2:$D$301,4))) -> Premium | C40: 23 x 75 | D40: 5 | E40: 4 / 224 | F40: 11,77* | G40: =K40+K40*$J$40 -> 4.81 | H40: =L40+L40*$J$40 -> 4.55 | J40: =IF($J$1="A",VLOOKUP(1,MargenVersionen!$A$9:$G$12,2),IF($J$1="B",VLOOKUP(1,MargenVersionen!$A$9:$G$12,4),VLOOKUP(1,MargenVersionen!$A$9:$G$12,6))) -> 0.3 | K40: 3.7 | L40: 3.5 | M40: 3.3 | N40: 3.05
A41: =IF($L$1="D",VLOOKUP(104,Übersetzung!$A$2:$D$149,2),IF($L$1="F",VLOOKUP(104,Übersetzung!$A$2:$D$149,3),VLOOKUP(104,Übersetzung!$A$2:$D$149,4))) -> Breedte lijst = berekeningsmaat
A42: =IF($L$1="D",VLOOKUP(175,Übersetzung!$A$2:$D$301,2),IF($L$1="F",VLOOKUP(175,Übersetzung!$A$2:$D$301,3),VLOOKUP(175,Übersetzung!$A$2:$D$301,4))) -> *Op basis van een schaduwvoeg van 10mm!! | F42: 8
A44: =IF($L$1="D",VLOOKUP(51,Übersetzung!$A$2:$D$100,2),IF($L$1="F",VLOOKUP(51,Übersetzung!$A$2:$D$100,3),VLOOKUP(51,Übersetzung!$A$2:$D$100,4))) -> Verf | F44: =IF($L$1="D",VLOOKUP(179,Übersetzung!$A$2:$D$301,2),IF($L$1="F",VLOOKUP(179,Übersetzung!$A$2:$D$301,3),VLOOKUP(179,Übersetzung!$A$2:$D$301,4))) -> Verbruik (m²/liter) | G44: =IF($L$1="D",VLOOKUP(20,Übersetzung!$A$2:$D$100,2),IF($L$1="F",VLOOKUP(20,Übersetzung!$A$2:$D$100,3),VLOOKUP(20,Übersetzung!$A$2:$D$100,4))) -> Blik 1 l | H44: =IF($L$1="D",VLOOKUP(21,Übersetzung!$A$2:$D$100,2),IF($L$1="F",VLOOKUP(21,Übersetzung!$A$2:$D$100,3),VLOOKUP(21,Übersetzung!$A$2:$D$100,4))) -> Blik 5 l
A45: =IF($L$1="D",VLOOKUP(183,Übersetzung!$A$2:$D$301,2),IF($L$1="F",VLOOKUP(183,Übersetzung!$A$2:$D$301,3),VLOOKUP(183,Übersetzung!$A$2:$D$301,4))) -> Om de snijkanten en volledige oppervlakken te behandelen. Voor de kleuren: Arizona, Nubia, Savanna | F45: max. 70 | G45: =K45+K45*$J$45 -> 28.48 | H45: =L45+L45*$J$45 -> 113.92 | J45: =IF($J$1="A",VLOOKUP(4,MargenVersionen!$A$9:$G$12,2),IF($J$1="B",VLOOKUP(4,MargenVersionen!$A$9:$G$12,4),VLOOKUP(4,MargenVersionen!$A$9:$G$12,6))) -> 0.6 | K45: 17.8 | L45: 71.2
A46: =IF($L$1="D",VLOOKUP(184,Übersetzung!$A$2:$D$301,2),IF($L$1="F",VLOOKUP(184,Übersetzung!$A$2:$D$301,3),VLOOKUP(184,Übersetzung!$A$2:$D$301,4))) -> Voor aangrenzende bouwdelen uit geschaafde spar, bijv. zichtbare balken. Voor de kleuren: Arizona, Nubia, Savanna | F46: ca. 6,25 | G46: =K46+K46*$J$45 -> 28 | H46: =L46+L46*$J$45 -> 95.2 | K46: 17.5 | L46: 59.5
A56: =IF($L$1="D",VLOOKUP(107,Übersetzung!$A$2:$D$149,2),IF($L$1="F",VLOOKUP(107,Übersetzung!$A$2:$D$149,3),VLOOKUP(107,Übersetzung!$A$2:$D$149,4))) -> Geldig vanaf 1 maart 2018 ! | D56: =IF($L$1="D",VLOOKUP(152,Übersetzung!$A$2:$D$300,2),IF($L$1="F",VLOOKUP(152,Übersetzung!$A$2:$D$300,3),VLOOKUP(152,Übersetzung!$A$2:$D$300,4))) -> pagina: | E56: =_xlfn.SHEET(D73)-1 & "/" & MargenVersionen!K6 -> 7/13 | H56: =IF($L$1="D",VLOOKUP(185,Übersetzung!$A$2:$D$300,2),IF($L$1="F",VLOOKUP(185,Übersetzung!$A$2:$D$300,3),VLOOKUP(185,Übersetzung!$A$2:$D$300,4))) -> v01

Sheet Rombofix (S.8)
J1: a | L1: d
B2: =" " & IF($J$1="a",(IF($L$1="D",VLOOKUP(48,Übersetzung!$A$2:$D$100,2),IF($L$1="F",VLOOKUP(48,Übersetzung!$A$2:$D$100,3),VLOOKUP(48,Übersetzung!$A$2:$D$100,4)))),(IF($L$1="D",VLOOKUP(125,Übersetzung!$A$2:$D$150,2),IF($L$1="F",VLOOKUP(125,Übersetzung!$A$2:$D$150,3),VLOOKUP(125,Übersetzung!$A$2:$D$150,4))))) -> Händlerpreisliste 2018
A10: =IF($L$1="D",VLOOKUP(146,Übersetzung!$A$2:$D$301,2),IF($L$1="F",VLOOKUP(146,Übersetzung!$A$2:$D$301,3),VLOOKUP(146,Übersetzung!$A$2:$D$301,4))) -> ROMBOFIX - UNSICHTBARE BEFESTIGUNG
A13: =IF($L$1="D",VLOOKUP(147,Übersetzung!$A$2:$D$301,2),IF($L$1="F",VLOOKUP(147,Übersetzung!$A$2:$D$301,3),VLOOKUP(147,Übersetzung!$A$2:$D$301,4))) -> ROMBOFIX MONTAGEPACK:
A14: =IF($L$1="D",VLOOKUP(148,Übersetzung!$A$2:$D$301,2),IF($L$1="F",VLOOKUP(148,Übersetzung!$A$2:$D$301,3),VLOOKUP(148,Übersetzung!$A$2:$D$301,4))) -> * 100 Klammern inkl. Schrauben ø4,5 x 45mm * 15 Ausgleichs Clips * 1 Bit (TX20) * 10 Schrauben "BohrFix" FB ø4,2 x 22mm * Montageanleitung * Verbrauch für Rhombusleiste 21x65mm bei einem Abstand der Unterkonstruktion von 40-50cm: ca. 38-48 St./m² Bitte beachten Sie: - Bei dieser Sonderfräsung können bei allen Qualitäten zusätzlich bis 10% Kurzlängen anfallen! Eine Bestellung inklusive Kurzlängen ist nur in der Qualität "Selekt" möglich. - Erhältlich in den Längen 4,00m, 4,50m und 5,00m, je nach Verfügbarkeit!
K15: Leithändlerpreise 02/2018
C16: =IF($L$1="D",VLOOKUP(149,Übersetzung!$A$2:$D$301,2),IF($L$1="F",VLOOKUP(149,Übersetzung!$A$2:$D$301,3),VLOOKUP(149,Übersetzung!$A$2:$D$301,4))) -> Packpreis | E16: =IF($L$1="D",VLOOKUP(150,Übersetzung!$A$2:$D$301,2),IF($L$1="F",VLOOKUP(150,Übersetzung!$A$2:$D$301,3),VLOOKUP(150,Übersetzung!$A$2:$D$301,4))) -> Packpreis ab 25 Pack | J16: Marge W&R auf EK Habis | K16: Einzelpreis | L16: Paketpreis
A17: =IF($L$1="D",VLOOKUP(147,Übersetzung!$A$2:$D$301,2),IF($L$1="F",VLOOKUP(147,Übersetzung!$A$2:$D$301,3),VLOOKUP(147,Übersetzung!$A$2:$D$301,4))) -> ROMBOFIX MONTAGEPACK: | C17: =K17+(K17*$J$17) -> 66.825 | E17: =L17+(L17*$J$17) -> 60.75 | J17: =IF($J$1="A",VLOOKUP(2,MargenVersionen!$A$9:$G$12,2),IF($J$1="B",VLOOKUP(2,MargenVersionen!$A$9:$G$12,4),VLOOKUP(2,MargenVersionen!$A$9:$G$12,6))) -> 0.35 | K17: 49.5 | L17: 45
A18: =IF($L$1="D",VLOOKUP(151,Übersetzung!$A$2:$D$301,2),IF($L$1="F",VLOOKUP(151,Übersetzung!$A$2:$D$301,3),VLOOKUP(151,Übersetzung!$A$2:$D$301,4))) -> Zuschlag auf Rhombusleiste für Sonderfräsung: 0,34 €/lfm
A20: =IF($L$1="D",VLOOKUP(164,Übersetzung!$A$2:$D$301,2),IF($L$1="F",VLOOKUP(164,Übersetzung!$A$2:$D$301,3),VLOOKUP(164,Übersetzung!$A$2:$D$301,4))) -> Lieferzeit: 6 - 8 Wochen
A59: =IF($L$1="D",VLOOKUP(108,Übersetzung!$A$2:$D$107,2),IF($L$1="F",VLOOKUP(108,Übersetzung!$A$2:$D$107,3),VLOOKUP(108,Übersetzung!$A$2:$D$107,4))) -> Gültig ab 1. März 2018 ! | C59: =IF($L$1="D",VLOOKUP(152,Übersetzung!$A$2:$D$300,2),IF($L$1="F",VLOOKUP(152,Übersetzung!$A$2:$D$300,3),VLOOKUP(152,Übersetzung!$A$2:$D$300,4))) -> Seite: | D59: =_xlfn.SHEET(D73)-1 & "/" & MargenVersionen!K6 -> 8/13 | F59: =IF($L$1="D",VLOOKUP(185,Übersetzung!$A$2:$D$300,2),IF($L$1="F",VLOOKUP(185,Übersetzung!$A$2:$D$300,3),VLOOKUP(185,Übersetzung!$A$2:$D$300,4))) -> v01

Sheet EcoGrau (S.9)
I1: a | L1: d
B2: =IF($I$1="a",(IF($L$1="D",VLOOKUP(48,Übersetzung!$A$2:$D$100,2),IF($L$1="F",VLOOKUP(48,Übersetzung!$A$2:$D$100,3),VLOOKUP(48,Übersetzung!$A$2:$D$100,4)))),(IF($L$1="D",VLOOKUP(125,Übersetzung!$A$2:$D$150,2),IF($L$1="F",VLOOKUP(125,Übersetzung!$A$2:$D$150,3),VLOOKUP(125,Übersetzung!$A$2:$D$150,4))))) -> Händlerpreisliste 2018
L4: Leithändlerpreise 02/2018 | Q4: Umrechnung auf Nutzfläche (wo nötig)
A5: =IF($L$1="D",VLOOKUP(193,Übersetzung!$A$2:$D$301,2),IF($L$1="F",VLOOKUP(193,Übersetzung!$A$2:$D$301,3),VLOOKUP(193,Übersetzung!$A$2:$D$301,4))) -> KOMMISSIONSWARE | L5: Leithändlerpreise 01/2013 | Q5: Leithändlerpreise 01/2013
A6: =IF($L$1="D",VLOOKUP(133,Übersetzung!$A$2:$D$201,2),IF($L$1="F",VLOOKUP(133,Übersetzung!$A$2:$D$201,3),VLOOKUP(133,Übersetzung!$A$2:$D$201,4))) -> - Produktion ab 50m² (kleinere Mengen nur als Sammelauftrag möglich - Achtung: evt. längere Lieferzeit!). - Mindermengenzuschlag bis 100m² - Farbtöne Kristall, Lava & Gletscher: 55,- €. - Mindermengenzuschlag bis 100m² - Farbtöne Basalt, Tundra & Schiefer: 170,- €. - Verschnittlängen (200/250/300/350 cm) bis 10% mitgehend! - Für Lieferungen ohne Kurzlängen berechnen wir 7% Aufpreis. - Bitte bei Bestellung angeben, ob Bestellmenge zzgl. oder inkl. Verschnitt ist. Wenn Sie nichts angeben, liefern wir inkl. Verschnittlängen! - Lieferzeit: 6 - 8 Wochen (Genaue Lieferzeit auf Anfrage!). | K6: Marge W&R auf EK Habis | L6: Kommisions- Preis | M6: Anbruch-Preis ab 1 Paket | N6: Paketpreis | O6: 6 Pakete | Q6: Kommisions- Preis | R6: Anbruch-preis ab 1 Paket | S6: Paketpreis | T6: 6 Pakete
A7: =IF($L$1="D",VLOOKUP(1,Übersetzung!$A$2:$D$100,2),IF($L$1="F",VLOOKUP(1,Übersetzung!$A$2:$D$100,3),VLOOKUP(1,Übersetzung!$A$2:$D$100,4))) -> Profile | B7: =IF($L$1="D",VLOOKUP(91,Übersetzung!$A$2:$D$100,2),IF($L$1="F",VLOOKUP(91,Übersetzung!$A$2:$D$100,3),VLOOKUP(91,Übersetzung!$A$2:$D$100,4))) -> Qualität | C7: =IF($L$1="D",VLOOKUP(2,Übersetzung!$A$2:$D$100,2),IF($L$1="F",VLOOKUP(2,Übersetzung!$A$2:$D$100,3),VLOOKUP(2,Übersetzung!$A$2:$D$100,4))) -> Dimension in mm Stärke x Breite | D7: =IF($L$1="D",VLOOKUP(3,Übersetzung!$A$2:$D$100,2),IF($L$1="F",VLOOKUP(3,Übersetzung!$A$2:$D$100,3),VLOOKUP(3,Übersetzung!$A$2:$D$100,4))) -> Länge (m) | E7: =IF($L$1="D",VLOOKUP(4,Übersetzung!$A$2:$D$100,2),IF($L$1="F",VLOOKUP(4,Übersetzung!$A$2:$D$100,3),VLOOKUP(4,Übersetzung!$A$2:$D$100,4))) -> VPE Bund/Paket | F7: =IF($L$1="D",VLOOKUP(176,Übersetzung!$A$2:$D$301,2),IF($L$1="F",VLOOKUP(176,Übersetzung!$A$2:$D$301,3),VLOOKUP(176,Übersetzung!$A$2:$D$301,4))) -> Bedarf (m/m²) | G7: =IF($L$1="D",VLOOKUP(5,Übersetzung!$A$2:$D$100,2),IF($L$1="F",VLOOKUP(5,Übersetzung!$A$2:$D$100,3),VLOOKUP(5,Übersetzung!$A$2:$D$100,4))) -> Kommissions-preis (weniger als ein Paket) | H7: =IF($L$1="D",VLOOKUP(7,Übersetzung!$A$2:$D$100,2),IF($L$1="F",VLOOKUP(7,Übersetzung!$A$2:$D$100,3),VLOOKUP(7,Übersetzung!$A$2:$D$100,4))) -> Paketpreis | K7: =IF($I$1="A",VLOOKUP(1,MargenVersionen!$A$9:$G$12,2),IF($I$1="B",VLOOKUP(1,MargenVersionen!$A$9:$G$12,4),VLOOKUP(1,MargenVersionen!$A$9:$G$12,6))) -> 0.3 | L7: Hier die Preise eingeben! | Q7: Felder werden automatisch berechnet!
A8: =IF($L$1="D",VLOOKUP(132,Übersetzung!$A$2:$D$149,2),IF($L$1="F",VLOOKUP(132,Übersetzung!$A$2:$D$149,3),VLOOKUP(132,Übersetzung!$A$2:$D$149,4))) -> ECO GRAU - Fichte
A9: =IF($L$1="D",VLOOKUP(16,Übersetzung!$A$2:$D$100,2),IF($L$1="F",VLOOKUP(16,Übersetzung!$A$2:$D$100,3),VLOOKUP(16,Übersetzung!$A$2:$D$100,4))) -> Rhombus 15° | B9: Basic | C9: 21 x 65 | D9: 4,0 / 5,0 | E9: 4 / 224 | F9: 14,29* | G9: =L9+L9*$K$17 -> 1.6 | H9: =M9+M9*$K$17 -> 1.55 | L9: 1.6 | M9: 1.55 | N9: 1.45 | O9: 1.35
A10: =IF($L$1="D",VLOOKUP(104,Übersetzung!$A$2:$D$149,2),IF($L$1="F",VLOOKUP(104,Übersetzung!$A$2:$D$149,3),VLOOKUP(104,Übersetzung!$A$2:$D$149,4))) -> Leistenbreite = Berechnungsbreite
A11: =IF($L$1="D",VLOOKUP(100,Übersetzung!$A$2:$D$100,2),IF($L$1="F",VLOOKUP(100,Übersetzung!$A$2:$D$100,3),VLOOKUP(100,Übersetzung!$A$2:$D$100,4))) -> Deckleiste | B11: Basic | C11: 21 x 65 | D11: 4,0 / 5,0 | E11: 4 / 224 | F11: 13,34* | G11: =L11+L11*$L$41 -> 1.6 | H11: =M11+M11*$L$41 -> 1.55 | L11: 1.6 | M11: 1.55 | N11: 1.45 | O11: 1.35
A12: =IF($L$1="D",VLOOKUP(104,Übersetzung!$A$2:$D$149,2),IF($L$1="F",VLOOKUP(104,Übersetzung!$A$2:$D$149,3),VLOOKUP(104,Übersetzung!$A$2:$D$149,4))) -> Leistenbreite = Berechnungsbreite
A13: =IF($L$1="D",VLOOKUP(11,Übersetzung!$A$2:$D$100,2),IF($L$1="F",VLOOKUP(11,Übersetzung!$A$2:$D$100,3),VLOOKUP(11,Übersetzung!$A$2:$D$100,4))) -> Glattkant | B13: Basic | C13: 21 x 140 | D13: 4,0 / 5,0 | E13: 4 / 112 | F13: 7.14 | G13: =L13+L13*$K$7 -> 28.73 | H13: =M13+M13*$K$7 -> 27.235 | L13: 22.1 | M13: 20.95 | N13: 19.95 | O13: 18.95
A14: =IF($L$1="D",VLOOKUP(103,Übersetzung!$A$2:$D$149,2),IF($L$1="F",VLOOKUP(103,Übersetzung!$A$2:$D$149,3),VLOOKUP(103,Übersetzung!$A$2:$D$149,4))) -> Brettbreite = Berechnungsbreite
A15: =IF($L$1="D",VLOOKUP(10,Übersetzung!$A$2:$D$100,2),IF($L$1="F",VLOOKUP(10,Übersetzung!$A$2:$D$100,3),VLOOKUP(10,Übersetzung!$A$2:$D$100,4))) -> Trapez | B15: Basic | C15: =IF($L$1="D",VLOOKUP(26,Übersetzung!$A$2:$D$100,2),IF($L$1="F",VLOOKUP(26,Übersetzung!$A$2:$D$100,3),VLOOKUP(26,Übersetzung!$A$2:$D$100,4))) -> 22 x 142 Deckmaß: 125 mm | D15: 4,0 / 5,0 | E15: 4 / 112 | F15: 8 | G15: =Q15+Q15*$K$7 -> 34.85248 | H15: =R15+R15*$K$7 -> 33.08032 | L15: 23.6 | M15: 22.4 | N15: 21.3 | O15: 20.25 | Q15: =L15*142/125 -> 26.8096 | R15: =M15*142/125 -> 25.4464 | S15: =N15*142/125 -> 24.1968 | T15: =O15*142/125 -> 23.004
A16: =IF($L$1="D",VLOOKUP(102,Übersetzung!$A$2:$D$149,2),IF($L$1="F",VLOOKUP(102,Übersetzung!$A$2:$D$149,3),VLOOKUP(102,Übersetzung!$A$2:$D$149,4))) -> Deckmaß = Berechnungsbreite
A17: =IF($L$1="D",VLOOKUP(14,Übersetzung!$A$2:$D$100,2),IF($L$1="F",VLOOKUP(14,Übersetzung!$A$2:$D$100,3),VLOOKUP(14,Übersetzung!$A$2:$D$100,4))) -> Nimbus | B17: Basic | C17: =IF($L$1="D",VLOOKUP(27,Übersetzung!$A$2:$D$100,2),IF($L$1="F",VLOOKUP(27,Übersetzung!$A$2:$D$100,3),VLOOKUP(27,Übersetzung!$A$2:$D$100,4))) -> 21 x 92 Deckmaß: 80 mm | D17: 4,0 / 5,0 | E17: 4 / 160 | F17: 12.5 | G17: =Q17+Q17*$K$7 -> 37.30025 | H17: =R17+R17*$K$7 -> 35.4315 | L17: 24.95 | M17: 23.7 | N17: 22.5 | O17: 21.4 | Q17: =L17*92/80 -> 28.6925 | R17: =M17*92/80 -> 27.255 | S17: =N17*92/80 -> 25.875 | T17: =O17*92/80 -> 24.61
A18: =IF($L$1="D",VLOOKUP(102,Übersetzung!$A$2:$D$149,2),IF($L$1="F",VLOOKUP(102,Übersetzung!$A$2:$D$149,3),VLOOKUP(102,Übersetzung!$A$2:$D$149,4))) -> Deckmaß = Berechnungsbreite
A19: =IF($L$1="D",VLOOKUP(31,Übersetzung!$A$2:$D$100,2),IF($L$1="F",VLOOKUP(31,Übersetzung!$A$2:$D$100,3),VLOOKUP(31,Übersetzung!$A$2:$D$100,4))) -> Doppelrhombus 15° Schräge | B19: Basic | C19: =IF($L$1="D",VLOOKUP(106,Übersetzung!$A$2:$D$149,2),IF($L$1="F",VLOOKUP(106,Übersetzung!$A$2:$D$149,3),VLOOKUP(106,Übersetzung!$A$2:$D$149,4))) -> 21 x 140 Deckmaß: 128 mm | D19: 4,0 / 5,0 | E19: 4 / 112 | F19: 7.82 | G19: =Q19+Q19*$K$7 -> 34.8359375 | H19: =R19+R19*$K$7 -> 32.9875 | L19: 24.5 | M19: 23.2 | N19: 21.95 | O19: 20.9 | Q19: =L19*140/128 -> 26.796875 | R19: =M19*140/128 -> 25.375 | S19: =N19*140/128 -> 24.0078125 | T19: =O19*140/128 -> 22.859375
A20: =IF($L$1="D",VLOOKUP(102,Übersetzung!$A$2:$D$149,2),IF($L$1="F",VLOOKUP(102,Übersetzung!$A$2:$D$149,3),VLOOKUP(102,Übersetzung!$A$2:$D$149,4))) -> Deckmaß = Berechnungsbreite
A21: =IF($L$1="D",VLOOKUP(175,Übersetzung!$A$2:$D$301,2),IF($L$1="F",VLOOKUP(175,Übersetzung!$A$2:$D$301,3),VLOOKUP(175,Übersetzung!$A$2:$D$301,4))) -> *Auf Basis einer Schattenfuge von 10mm!!! | F21: 8
A23: =IF($L$1="D",VLOOKUP(131,Übersetzung!$A$2:$D$301,2),IF($L$1="F",VLOOKUP(131,Übersetzung!$A$2:$D$301,3),VLOOKUP(131,Übersetzung!$A$2:$D$301,4))) -> ECO GRAU - Weisstanne
A24: =IF($L$1="D",VLOOKUP(1,Übersetzung!$A$2:$D$100,2),IF($L$1="F",VLOOKUP(1,Übersetzung!$A$2:$D$100,3),VLOOKUP(1,Übersetzung!$A$2:$D$100,4))) -> Profile | B24: =IF($L$1="D",VLOOKUP(91,Übersetzung!$A$2:$D$100,2),IF($L$1="F",VLOOKUP(91,Übersetzung!$A$2:$D$100,3),VLOOKUP(91,Übersetzung!$A$2:$D$100,4))) -> Qualität | C24: =IF($L$1="D",VLOOKUP(2,Übersetzung!$A$2:$D$100,2),IF($L$1="F",VLOOKUP(2,Übersetzung!$A$2:$D$100,3),VLOOKUP(2,Übersetzung!$A$2:$D$100,4))) -> Dimension in mm Stärke x Breite | D24: =IF($L$1="D",VLOOKUP(3,Übersetzung!$A$2:$D$100,2),IF($L$1="F",VLOOKUP(3,Übersetzung!$A$2:$D$100,3),VLOOKUP(3,Übersetzung!$A$2:$D$100,4))) -> Länge (m) | E24: =IF($L$1="D",VLOOKUP(4,Übersetzung!$A$2:$D$100,2),IF($L$1="F",VLOOKUP(4,Übersetzung!$A$2:$D$100,3),VLOOKUP(4,Übersetzung!$A$2:$D$100,4))) -> VPE Bund/Paket | F24: =IF($L$1="D",VLOOKUP(176,Übersetzung!$A$2:$D$301,2),IF($L$1="F",VLOOKUP(176,Übersetzung!$A$2:$D$301,3),VLOOKUP(176,Übersetzung!$A$2:$D$301,4))) -> Bedarf (m/m²) | G24: =IF($L$1="D",VLOOKUP(5,Übersetzung!$A$2:$D$100,2),IF($L$1="F",VLOOKUP(5,Übersetzung!$A$2:$D$100,3),VLOOKUP(5,Übersetzung!$A$2:$D$100,4))) -> Kommissions-preis (weniger als ein Paket) | H24: =IF($L$1="D",VLOOKUP(7,Übersetzung!$A$2:$D$100,2),IF($L$1="F",VLOOKUP(7,Übersetzung!$A$2:$D$100,3),VLOOKUP(7,Übersetzung!$A$2:$D$100,4))) -> Paketpreis | K24: =IF($I$1="A",VLOOKUP(1,MargenVersionen!$A$9:$G$12,2),IF($I$1="B",VLOOKUP(1,MargenVersionen!$A$9:$G$12,4),VLOOKUP(1,MargenVersionen!$A$9:$G$12,6))) -> 0.3
A25: =IF($L$1="D",VLOOKUP(142,Übersetzung!$A$2:$D$301,2),IF($L$1="F",VLOOKUP(142,Übersetzung!$A$2:$D$301,3),VLOOKUP(142,Übersetzung!$A$2:$D$301,4))) -> Große Auswahl an Profilen! Die technische Machbarkeit muss geprüft werden! Bitte fragen Sie uns! | B25: =IF($L$1="D",VLOOKUP(138,Übersetzung!$A$2:$D$301,2),IF($L$1="F",VLOOKUP(138,Übersetzung!$A$2:$D$301,3),VLOOKUP(138,Übersetzung!$A$2:$D$301,4))) -> Selekt | C25: 21 x 40 | D25: 4,0 / 5,0 | E25: 4 / 224 | F25: / | G25: =L25+L25*$K$24 -> 2.21 | H25: 2.08 | L25: 1.7 | M25: 1.6 | N25: 1.5 | O25: 1.4
C26: 21 x 55 | D26: 4,0 / 5,0 | E26: 4 / 224 | F26: / | G26: 2.665 | H26: 2.535 | L26: 2.05 | M26: 1.95 | N26: 1.85 | O26: 1.7
C27: 21 x 65 | D27: 4,0 / 5,0 | E27: 4 / 224 | F27: / | G27: 2.795 | H27: 2.665 | L27: 2.15 | M27: 2.05 | N27: 1.95 | O27: 1.8
C28: 21 x 90 | D28: 4,0 / 5,0 | E28: 4 / 160 | F28: / | G28: 41.73 | H28: 39.65 | L28: 32.1 | M28: 30.5 | N28: 28.95 | O28: 26.7
C29: 21 x 116 | D29: 4,0 / 5,0 | E29: 4 / 112 | G29: 39.91 | H29: 37.96 | L29: 30.7 | M29: 29.2 | N29: 27.75 | O29: 25.55
C30: 21 x 140 | F30: /
C31: 21 x 170
C32: 26 x 40 | D32: 4,0 / 5,0 | E32: 4 / 224 | F32: / | G32: =L32+L32*$K$24 -> 2.73 | H32: 2.6 | L32: 2.1 | M32: 2 | N32: 1.9 | O32: 1.75
C33: 26 x 65 | D33: 4,0 / 5,0 | E33: 4 / 224 | F33: / | G33: 3.25 | H33: 3.12 | L33: 2.5 | M33: 2.4 | N33: 2.3 | O33: 2.1
C34: 26 x 140 | D34: 4,0 / 5,0 | E34: 4 /112 | F34: / | G34: 46.605 | H34: 44.265 | L34: 35.85 | M34: 34.05 | N34: 32.35 | O34: 29.8
C35: 40 x 40 | D35: 4,0 / 5,0 | E35: 4 / 224 | F35: / | G35: 3.64 | H35: 3.445 | L35: 2.8 | M35: 2.65 | N35: 2.5 | O35: 2.4
C36: 40 x 55 | D36: 4,0 / 5,0 | E36: 4 / 224 | F36: / | G36: 4.68 | H36: 4.42 | L36: 3.6 | M36: 3.4 | N36: 3.2 | O36: 2.95
C37: 40 x 65 | D37: 4,0 / 5,0 | E37: 4 / 224 | F37: / | G37: 5.395 | H37: 5.135 | L37: 4.15 | M37: 3.95 | N37: 3.75 | O37: 3.45
C38: 40 x 90 | D38: 4,0 / 5,0 | E38: 4 / 160 | F38: / | G38: 76.18 | H38: 72.41 | L38: 58.6 | M38: 55.7 | N38: 52.9 | O38: 48.7
C39: 40 x 116 | D39: 4,0 / 5,0 | E39: 4 / 112 | G39: 76.18 | H39: 72.41 | L39: 58.6 | M39: 55.7 | N39: 52.9 | O39: 48.7
C40: 40 x 140 | F40: /
C41: 40 x 170
C42: 50 x 40 | D42: 4,0 / 5,0 | E42: 4 / 224 | F42: / | G42: =L42+L42*$K$24 -> 4.94 | H42: 4.68 | L42: 3.8 | M42: 3.6 | N42: 3.4 | O42: 3.1
C43: 50 x 65 | D43: 4,0 / 5,0 | E43: 4 / 224 | F43: / | G43: 6.76 | H43: 6.435 | L43: 5.2 | M43: 4.95 | N43: 4.7 | O43: 4.3
C44: 50 x 140 | D44: 4,0 / 5,0 | E44: 4 / 112 | F44: / | G44: 93.86 | H44: 89.05 | L44: 72.2 | M44: 68.5 | N44: 64.9 | O44: 59.7
A45: =IF($L$1="D",VLOOKUP(103,Übersetzung!$A$2:$D$149,2),IF($L$1="F",VLOOKUP(103,Übersetzung!$A$2:$D$149,3),VLOOKUP(103,Übersetzung!$A$2:$D$149,4))) & "!!!" -> Brettbreite = Berechnungsbreite!!! | E45: =IF($L$1="D",VLOOKUP(192,Übersetzung!$A$2:$D$301,2),IF($L$1="F",VLOOKUP(192,Übersetzung!$A$2:$D$301,3),VLOOKUP(192,Übersetzung!$A$2:$D$301,4))) -> Beispielprofile finden Sie auf Seite 5.
A47: =IF($L$1="D",VLOOKUP(141,Übersetzung!$A$2:$D$301,2),IF($L$1="F",VLOOKUP(141,Übersetzung!$A$2:$D$301,3),VLOOKUP(141,Übersetzung!$A$2:$D$301,4))) -> Qualität: KEILGEZINKT
A48: =IF($L$1="D",VLOOKUP(204,Übersetzung!$A$2:$D$301,2),IF($L$1="F",VLOOKUP(204,Übersetzung!$A$2:$D$301,3),VLOOKUP(204,Übersetzung!$A$2:$D$301,4))) -> - Alle Dimensionen wie bei ECOGRAU Weisstanne in der Qualität "BASIC" möglich, außer 21x170mm und 40x170mm.
A49: =IF($L$1="D",VLOOKUP(205,Übersetzung!$A$2:$D$301,2),IF($L$1="F",VLOOKUP(205,Übersetzung!$A$2:$D$301,3),VLOOKUP(205,Übersetzung!$A$2:$D$301,4))) -> - Preisbasis: Qualität Basic + 10% Aufschlag.
A50: =IF($L$1="D",VLOOKUP(34,Übersetzung!$A$2:$D$100,2),IF($L$1="F",VLOOKUP(34,Übersetzung!$A$2:$D$100,3),VLOOKUP(34,Übersetzung!$A$2:$D$100,4))) -> *Schindeln: Premiumqualität bei Überlappung 50%
A51: =IF($L$1="D",VLOOKUP(51,Übersetzung!$A$2:$D$100,2),IF($L$1="F",VLOOKUP(51,Übersetzung!$A$2:$D$100,3),VLOOKUP(51,Übersetzung!$A$2:$D$100,4))) -> Beistreichfarbe
A52: =IF($L$1="D",VLOOKUP(19,Übersetzung!$A$2:$D$100,2),IF($L$1="F",VLOOKUP(19,Übersetzung!$A$2:$D$100,3),VLOOKUP(19,Übersetzung!$A$2:$D$100,4))) -> Zum Streichen von Schnittkanten und zum vollflächigen Überarbeiten (Reichweite für Schnittkanten ca. 70m² Giebelbekleidung pro Liter) | G52: =IF($L$1="D",VLOOKUP(179,Übersetzung!$A$2:$D$301,2),IF($L$1="F",VLOOKUP(179,Übersetzung!$A$2:$D$301,3),VLOOKUP(179,Übersetzung!$A$2:$D$301,4))) -> Verbrauch (m²/Liter) | H52: =IF($L$1="D",VLOOKUP(20,Übersetzung!$A$2:$D$100,2),IF($L$1="F",VLOOKUP(20,Übersetzung!$A$2:$D$100,3),VLOOKUP(20,Übersetzung!$A$2:$D$100,4))) -> Gebinde 1L | K52: =IF($I$1="A",VLOOKUP(4,MargenVersionen!$A$9:$G$12,2),IF($I$1="B",VLOOKUP(4,MargenVersionen!$A$9:$G$12,4),VLOOKUP(4,MargenVersionen!$A$9:$G$12,6))) -> 0.6
A53: =IF($L$1="D",VLOOKUP(134,Übersetzung!$A$2:$D$301,2),IF($L$1="F",VLOOKUP(134,Übersetzung!$A$2:$D$301,3),VLOOKUP(134,Übersetzung!$A$2:$D$301,4))) -> Eisgrau, Sandgrau, Betongrau, Steingrau, Graphitgrau | G53: max. 70 | H53: =L53+L53*$K$52 -> 28.48 | L53: 17.8
A59: =IF($L$1="D",VLOOKUP(107,Übersetzung!$A$2:$D$149,2),IF($L$1="F",VLOOKUP(107,Übersetzung!$A$2:$D$149,3),VLOOKUP(107,Übersetzung!$A$2:$D$149,4))) -> Gültig ab 1. März 2018 ! | D59: =IF($L$1="D",VLOOKUP(152,Übersetzung!$A$2:$D$300,2),IF($L$1="F",VLOOKUP(152,Übersetzung!$A$2:$D$300,3),VLOOKUP(152,Übersetzung!$A$2:$D$300,4))) -> Seite: | E59: 9/12 | H59: =IF($L$1="D",VLOOKUP(185,Übersetzung!$A$2:$D$300,2),IF($L$1="F",VLOOKUP(185,Übersetzung!$A$2:$D$300,3),VLOOKUP(185,Übersetzung!$A$2:$D$300,4))) -> v01

Sheet CapeCod (S.10)
I1: a | L1: d
B2: =IF($I$1="a",(IF($L$1="D",VLOOKUP(48,Übersetzung!$A$2:$D$100,2),IF($L$1="F",VLOOKUP(48,Übersetzung!$A$2:$D$100,3),VLOOKUP(48,Übersetzung!$A$2:$D$100,4)))),(IF($L$1="D",VLOOKUP(125,Übersetzung!$A$2:$D$150,2),IF($L$1="F",VLOOKUP(125,Übersetzung!$A$2:$D$150,3),VLOOKUP(125,Übersetzung!$A$2:$D$150,4))))) -> Händlerpreisliste 2018 | I2: Leithändlerpreise 02/2018 | O2: Umrechnung auf Nutzfläche (wo nötig)
H3: Marge W&R auf EK Habis | I3: Hier die Preise eingeben! | O3: Felder werden automatisch berechnet!
A5: =IF($L$1="D",VLOOKUP(1,Übersetzung!$A$2:$D$100,2),IF($L$1="F",VLOOKUP(1,Übersetzung!$A$2:$D$100,3),VLOOKUP(1,Übersetzung!$A$2:$D$100,4))) -> Profile | B5: =IF($L$1="D",VLOOKUP(2,Übersetzung!$A$2:$D$100,2),IF($L$1="F",VLOOKUP(2,Übersetzung!$A$2:$D$100,3),VLOOKUP(2,Übersetzung!$A$2:$D$100,4))) -> Dimension in mm Stärke x Breite | C5: =IF($L$1="D",VLOOKUP(4,Übersetzung!$A$2:$D$100,2),IF($L$1="F",VLOOKUP(4,Übersetzung!$A$2:$D$100,3),VLOOKUP(4,Übersetzung!$A$2:$D$100,4))) -> VPE Bund/Paket | D5: =IF($L$1="D",VLOOKUP(176,Übersetzung!$A$2:$D$301,2),IF($L$1="F",VLOOKUP(176,Übersetzung!$A$2:$D$301,3),VLOOKUP(176,Übersetzung!$A$2:$D$301,4))) -> Bedarf (m/m²) | E5: =IF($L$1="D",VLOOKUP(5,Übersetzung!$A$2:$D$100,2),IF($L$1="F",VLOOKUP(5,Übersetzung!$A$2:$D$100,3),VLOOKUP(5,Übersetzung!$A$2:$D$100,4))) -> Kommissions-preis (weniger als ein Paket) | F5: =IF($L$1="D",VLOOKUP(7,Übersetzung!$A$2:$D$100,2),IF($L$1="F",VLOOKUP(7,Übersetzung!$A$2:$D$100,3),VLOOKUP(7,Übersetzung!$A$2:$D$100,4))) -> Paketpreis | H5: =IF($I$1="A",VLOOKUP(1,MargenVersionen!$A$9:$G$12,2),IF($I$1="B",VLOOKUP(1,MargenVersionen!$A$9:$G$12,4),VLOOKUP(1,MargenVersionen!$A$9:$G$12,6))) -> 0.3 | I5: Kommisions- Preis | J5: Anbruch-preis ab 1 Paket | K5: Paketpreis | L5: 6 Pakete | O5: Kommisions- Preis | P5: Anbruch-preis ab 1 Paket | Q5: Paketpreis | R5: 6 Pakete
A6: =IF($L$1="D",VLOOKUP(37,Übersetzung!$A$2:$D$100,2),IF($L$1="F",VLOOKUP(37,Übersetzung!$A$2:$D$100,3),VLOOKUP(37,Übersetzung!$A$2:$D$100,4))) -> Bevel | B6: =IF($L$1="D",VLOOKUP(93,Übersetzung!$A$2:$D$100,2),IF($L$1="F",VLOOKUP(93,Übersetzung!$A$2:$D$100,3),VLOOKUP(93,Übersetzung!$A$2:$D$100,4))) -> 24 x 137 Deckmaß: 124 mm | C6: 6 / 252 | D6: 8.07 | E6: =O6+O6*$H$5 -> 38.06169355 | F6: =P6+P6*$H$5 -> 36.12270161 | I6: 26.5 | J6: 25.15 | K6: 23.9 | L6: 21.6 | O6: =I6*137/124 -> 29.27822581 | P6: =J6*137/124 -> 27.78669355 | Q6: 26.40564516 | R6: 23.86451613
A7: =IF($L$1="D",VLOOKUP(102,Übersetzung!$A$2:$D$149,2),IF($L$1="F",VLOOKUP(102,Übersetzung!$A$2:$D$149,3),VLOOKUP(102,Übersetzung!$A$2:$D$149,4))) -> Deckmaß = Berechnungsbreite
A8: =IF($L$1="D",VLOOKUP(38,Übersetzung!$A$2:$D$100,2),IF($L$1="F",VLOOKUP(38,Übersetzung!$A$2:$D$100,3),VLOOKUP(38,Übersetzung!$A$2:$D$100,4))) -> Channel Profil | B8: =IF($L$1="D",VLOOKUP(94,Übersetzung!$A$2:$D$100,2),IF($L$1="F",VLOOKUP(94,Übersetzung!$A$2:$D$100,3),VLOOKUP(94,Übersetzung!$A$2:$D$100,4))) -> 18,5 x 137 Deckmaß: 124 mm | C8: 6 / 210 | D8: 8.07 | E8: =O8+O8*$H$5 -> 40.93427419 | F8: =P8+P8*$H$5 -> 38.85165323 | I8: 28.5 | J8: 27.05 | K8: 25.7 | L8: 22.95 | O8: =I8*137/124 -> 31.48790323 | P8: =J8*137/124 -> 29.8858871 | Q8: 28.39435484 | R8: 25.35604839
A9: =IF($L$1="D",VLOOKUP(102,Übersetzung!$A$2:$D$149,2),IF($L$1="F",VLOOKUP(102,Übersetzung!$A$2:$D$149,3),VLOOKUP(102,Übersetzung!$A$2:$D$149,4))) -> Deckmaß = Berechnungsbreite
A10: =IF($L$1="D",VLOOKUP(11,Übersetzung!$A$2:$D$100,2),IF($L$1="F",VLOOKUP(11,Übersetzung!$A$2:$D$100,3),VLOOKUP(11,Übersetzung!$A$2:$D$100,4))) -> Glattkant | B10: 18,5 x 137 | C10: 1 / 210 | D10: 7.15 | E10: =I10+I10*$H$5 -> 38.935 | F10: =J10+J10*$H$5 -> 37.05 | I10: 29.95 | J10: 28.5 | K10: 27.1 | L10: 24.4
B11: 18,5 x 178 | C11: 1 / 150 | D11: 5.62 | E11: 38.935 | F11: 37.05 | I11: 29.95 | J11: 28.5 | K11: 27.1 | L11: 24.4
A12: =IF($L$1="D",VLOOKUP(103,Übersetzung!$A$2:$D$149,2),IF($L$1="F",VLOOKUP(103,Übersetzung!$A$2:$D$149,3),VLOOKUP(103,Übersetzung!$A$2:$D$149,4))) -> Brettbreite = Berechnungsbreite
A13: =IF($L$1="D",VLOOKUP(12,Übersetzung!$A$2:$D$100,2),IF($L$1="F",VLOOKUP(12,Übersetzung!$A$2:$D$100,3),VLOOKUP(12,Übersetzung!$A$2:$D$100,4))) -> Deckleiste | B13: 18,5 x 65 | C13: 6 / 420 | D13: 13,34* | E13: =I13+I13*$H$5 -> 46.93 | F13: =J13+J13*$H$5 -> 44.59 | I13: 36.1 | J13: 34.3 | K13: 32.6 | L13: 29.3
A14: =IF($L$1="D",VLOOKUP(103,Übersetzung!$A$2:$D$149,2),IF($L$1="F",VLOOKUP(103,Übersetzung!$A$2:$D$149,3),VLOOKUP(103,Übersetzung!$A$2:$D$149,4))) -> Brettbreite = Berechnungsbreite
A15: =IF($L$1="D",VLOOKUP(39,Übersetzung!$A$2:$D$100,2),IF($L$1="F",VLOOKUP(39,Übersetzung!$A$2:$D$100,3),VLOOKUP(39,Übersetzung!$A$2:$D$100,4))) -> Rhombus 20° | B15: 18,5 x 65 | C15: 6 / 420 | D15: 14,29* | E15: =I15+I15*$H$5 -> 3.445 | F15: =J15+J15*$H$5 -> 3.25 | I15: 2.65 | J15: 2.5 | K15: 2.35 | L15: 2.1
A16: =IF($L$1="D",VLOOKUP(104,Übersetzung!$A$2:$D$149,2),IF($L$1="F",VLOOKUP(104,Übersetzung!$A$2:$D$149,3),VLOOKUP(104,Übersetzung!$A$2:$D$149,4))) -> Leistenbreite = Berechnungsbreite
A17: =IF($L$1="D",VLOOKUP(92,Übersetzung!$A$2:$D$100,2),IF($L$1="F",VLOOKUP(92,Übersetzung!$A$2:$D$100,3),VLOOKUP(92,Übersetzung!$A$2:$D$100,4))) -> Doppelrhombus | B17: =IF($L$1="D",VLOOKUP(95,Übersetzung!$A$2:$D$100,2),IF($L$1="F",VLOOKUP(95,Übersetzung!$A$2:$D$100,3),VLOOKUP(95,Übersetzung!$A$2:$D$100,4))) -> 18,5 x 137 Deckmaß: 124 mm | C17: 6 / 210 | D17: 8.07 | E17: =O17+O17*$H$5 -> 40.14431452 | F17: =P17+P17*$H$5 -> 38.20532258 | I17: 27.95 | J17: 26.6 | K17: 25.25 | L17: 22.7 | O17: =I17*137/124 -> 30.88024194 | P17: =J17*137/124 -> 29.38870968 | Q17: 27.89717742 | R17: 25.07983871
A18: =IF($L$1="D",VLOOKUP(102,Übersetzung!$A$2:$D$149,2),IF($L$1="F",VLOOKUP(102,Übersetzung!$A$2:$D$149,3),VLOOKUP(102,Übersetzung!$A$2:$D$149,4))) -> Deckmaß = Berechnungsbreite
A19: =IF($L$1="D",VLOOKUP(175,Übersetzung!$A$2:$D$301,2),IF($L$1="F",VLOOKUP(175,Übersetzung!$A$2:$D$301,3),VLOOKUP(175,Übersetzung!$A$2:$D$301,4))) -> *Auf Basis einer Schattenfuge von 10mm!!! | D19: 8
A22: =IF($L$1="D",VLOOKUP(40,Übersetzung!$A$2:$D$100,2),IF($L$1="F",VLOOKUP(40,Übersetzung!$A$2:$D$100,3),VLOOKUP(40,Übersetzung!$A$2:$D$100,4))) -> Standardfarben:
A24: =IF($L$1="D",VLOOKUP(125,Übersetzung!$A$2:$D$124,2),IF($L$1="F",VLOOKUP(125,Übersetzung!$A$2:$D$124,3),VLOOKUP(125,Übersetzung!$A$2:$D$124,4))) -> Abschlussprofile (Länge 3,04m)
A25: =IF($L$1="D",VLOOKUP(41,Übersetzung!$A$2:$D$100,2),IF($L$1="F",VLOOKUP(41,Übersetzung!$A$2:$D$100,3),VLOOKUP(41,Übersetzung!$A$2:$D$100,4))) -> Außenecken
A26: =IF($L$1="D",VLOOKUP(42,Übersetzung!$A$2:$D$100,2),IF($L$1="F",VLOOKUP(42,Übersetzung!$A$2:$D$100,3),VLOOKUP(42,Übersetzung!$A$2:$D$100,4))) -> (für eine Außenecke benötigt man 2 Teile) | B26: a) 32 x 108 | C26: 1 / 20 | E26: =CONCATENATE(ROUND(I26+I26*$H$5,2),$N$32) -> 32,76 €/Stk. | F26: =CONCATENATE(ROUND(K26+K26*$H$5,2),$N$32) -> 28,08 €/Stk. | I26: 25.2 | K26: 21.6 | L26: 19.4
A27: =IF($L$1="D",VLOOKUP(41,Übersetzung!$A$2:$D$100,2),IF($L$1="F",VLOOKUP(41,Übersetzung!$A$2:$D$100,3),VLOOKUP(41,Übersetzung!$A$2:$D$100,4))) -> Außenecken | B27: b) 32 x 140 | C27: 1 / 20 | E27: =CONCATENATE(ROUND(I27+I27*$H$5,2),$N$32) -> 32,76 €/Stk. | F27: =CONCATENATE(ROUND(K27+K27*$H$5,2),$N$32) -> 28,08 €/Stk. | I27: 25.2 | K27: 21.6 | L27: 19.4
A28: =IF($L$1="D",VLOOKUP(43,Übersetzung!$A$2:$D$100,2),IF($L$1="F",VLOOKUP(43,Übersetzung!$A$2:$D$100,3),VLOOKUP(43,Übersetzung!$A$2:$D$100,4))) -> Eckbrett | B28: 35 x 86 | C28: 1 / 20 | E28: =CONCATENATE(ROUND(I28+I28*$H$5,2),$N$32) -> 23,27 €/Stk. | F28: =CONCATENATE(ROUND(K28+K28*$H$5,2),$N$32) -> 20,93 €/Stk. | I28: 17.9 | K28: 16.1 | L28: 14.5
A29: =IF($L$1="D",VLOOKUP(44,Übersetzung!$A$2:$D$100,2),IF($L$1="F",VLOOKUP(44,Übersetzung!$A$2:$D$100,3),VLOOKUP(44,Übersetzung!$A$2:$D$100,4))) -> Innenecke | B29: 32 x 32 | C29: 1 / 20 | E29: =CONCATENATE(ROUND(I29+I29*$H$5,2),$N$32) -> 17,42 €/Stk. | F29: =CONCATENATE(ROUND(K29+K29*$H$5,2),$N$32) -> 15,73 €/Stk. | I29: 13.4 | K29: 12.1 | L29: 10.9
A30: =IF($L$1="D",VLOOKUP(45,Übersetzung!$A$2:$D$100,2),IF($L$1="F",VLOOKUP(45,Übersetzung!$A$2:$D$100,3),VLOOKUP(45,Übersetzung!$A$2:$D$100,4))) -> Edelstahlnägel | B30: =IF($L$1="D",VLOOKUP(44,Übersetzung!$A$2:$D$100,2),IF($L$1="F",VLOOKUP(44,Übersetzung!$A$2:$D$100,3),VLOOKUP(44,Übersetzung!$A$2:$D$100,4))) -> Innenecke | C30: =IF($L$1="D",VLOOKUP(44,Übersetzung!$A$2:$D$100,2),IF($L$1="F",VLOOKUP(44,Übersetzung!$A$2:$D$100,3),VLOOKUP(44,Übersetzung!$A$2:$D$100,4))) -> Innenecke | E30: =IF($L$1="D",VLOOKUP(44,Übersetzung!$A$2:$D$100,2),IF($L$1="F",VLOOKUP(44,Übersetzung!$A$2:$D$100,3),VLOOKUP(44,Übersetzung!$A$2:$D$100,4))) -> Innenecke | F30: =IF($L$1="D",VLOOKUP(44,Übersetzung!$A$2:$D$100,2),IF($L$1="F",VLOOKUP(44,Übersetzung!$A$2:$D$100,3),VLOOKUP(44,Übersetzung!$A$2:$D$100,4))) -> Innenecke
A31: =IF($L$1="D",VLOOKUP(46,Übersetzung!$A$2:$D$100,2),IF($L$1="F",VLOOKUP(46,Übersetzung!$A$2:$D$100,3),VLOOKUP(46,Übersetzung!$A$2:$D$100,4))) -> Nägel farbig beschichtet mit Hammerschutz | B31: ø2,7 x 64 | C31: =CONCATENATE("Box 680 ",N31) -> Box 680 Stk. | D31: =CONCATENATE("20",N31,"/m²") -> 20 Stk./m² | E31: =CONCATENATE(ROUND(I31+I31*$H$31,2),$N$31) -> 74,72 Stk. | H31: =IF($I$1="A",VLOOKUP(4,MargenVersionen!$A$9:$G$12,2),IF($I$1="B",VLOOKUP(4,MargenVersionen!$A$9:$G$12,4),VLOOKUP(4,MargenVersionen!$A$9:$G$12,6))) -> 0.6 | I31: 46.7 | J31: 40.3 | L31: 37.8 | N31: =IF($L$1="D",VLOOKUP(203,Übersetzung!$A$2:$D$299,2),IF($L$1="F",VLOOKUP(203,Übersetzung!$A$2:$D$299,3),VLOOKUP(203,Übersetzung!$A$2:$D$299,4))) -> Stk.
A32: =IF($L$1="D",VLOOKUP(47,Übersetzung!$A$2:$D$100,2),IF($L$1="F",VLOOKUP(47,Übersetzung!$A$2:$D$100,3),VLOOKUP(47,Übersetzung!$A$2:$D$100,4))) -> Original Cape Cod Farbe* | B32: =IF($L$1="D",VLOOKUP(46,Übersetzung!$A$2:$D$100,2),IF($L$1="F",VLOOKUP(46,Übersetzung!$A$2:$D$100,3),VLOOKUP(46,Übersetzung!$A$2:$D$100,4))) -> Nägel farbig beschichtet mit Hammerschutz | C32: =IF($L$1="D",VLOOKUP(46,Übersetzung!$A$2:$D$100,2),IF($L$1="F",VLOOKUP(46,Übersetzung!$A$2:$D$100,3),VLOOKUP(46,Übersetzung!$A$2:$D$100,4))) -> Nägel farbig beschichtet mit Hammerschutz | E32: =IF($L$1="D",VLOOKUP(46,Übersetzung!$A$2:$D$100,2),IF($L$1="F",VLOOKUP(46,Übersetzung!$A$2:$D$100,3),VLOOKUP(46,Übersetzung!$A$2:$D$100,4))) -> Nägel farbig beschichtet mit Hammerschutz | F32: =IF($L$1="D",VLOOKUP(46,Übersetzung!$A$2:$D$100,2),IF($L$1="F",VLOOKUP(46,Übersetzung!$A$2:$D$100,3),VLOOKUP(46,Übersetzung!$A$2:$D$100,4))) -> Nägel farbig beschichtet mit Hammerschutz | N32: =IF($L$1="D",VLOOKUP(202,Übersetzung!$A$2:$D$299,2),IF($L$1="F",VLOOKUP(202,Übersetzung!$A$2:$D$299,3),VLOOKUP(202,Übersetzung!$A$2:$D$299,4))) -> €/Stk.
A33: =IF($L$1="D",VLOOKUP(174,Übersetzung!$A$2:$D$299,2),IF($L$1="F",VLOOKUP(174,Übersetzung!$A$2:$D$299,3),VLOOKUP(174,Übersetzung!$A$2:$D$299,4))) -> Zum Streichen von Schnittkanten und zum vollflächigen Überarbeiten | B33: =IF($L$1="D",VLOOKUP(20,Übersetzung!$A$2:$D$100,2),IF($L$1="F",VLOOKUP(20,Übersetzung!$A$2:$D$100,3),VLOOKUP(20,Übersetzung!$A$2:$D$100,4))) -> Gebinde 1L | C33: 1 / 6 | D33: 1 L / ±70m² | E33: =CONCATENATE(ROUND(I33+I33*$H$31,2),$N$33) -> 23,68 €/Gebinde | F33: =CONCATENATE(ROUND(K33+K33*$H$31,2),$N$33) -> 21,28 €/Gebinde | I33: 14.8 | K33: 13.3 | L33: 11.95 | N33: =IF($L$1="D",VLOOKUP(201,Übersetzung!$A$2:$D$299,2),IF($L$1="F",VLOOKUP(201,Übersetzung!$A$2:$D$299,3),VLOOKUP(201,Übersetzung!$A$2:$D$299,4))) -> €/Gebinde
B34: =IF($L$1="D",VLOOKUP(96,Übersetzung!$A$2:$D$100,2),IF($L$1="F",VLOOKUP(96,Übersetzung!$A$2:$D$100,3),VLOOKUP(96,Übersetzung!$A$2:$D$100,4))) -> Gebinde 3,75L | C34: 1 / 2 | D34: 1 L / ±70m² | E34: =CONCATENATE(ROUND(I34+I34*$H$31,2),$N$33) -> 87,2 €/Gebinde | F34: =CONCATENATE(ROUND(K34+K34*$H$31,2),$N$33) -> 78,4 €/Gebinde | I34: 54.5 | K34: 49 | L34: 44.1
A35: =IF($L$1="D",VLOOKUP(49,Übersetzung!$A$2:$D$299,2),IF($L$1="F",VLOOKUP(49,Übersetzung!$A$2:$D$299,3),VLOOKUP(49,Übersetzung!$A$2:$D$299,4))) -> Kombigrund*
A36: =IF($L$1="D",VLOOKUP(50,Übersetzung!$A$2:$D$299,2),IF($L$1="F",VLOOKUP(50,Übersetzung!$A$2:$D$299,3),VLOOKUP(50,Übersetzung!$A$2:$D$299,4))) -> Fungizider Isoliergrund "deckend" weiss - angegebener Verbrauch für 2 Anstriche | B36: =IF($L$1="D",VLOOKUP(97,Übersetzung!$A$2:$D$100,2),IF($L$1="F",VLOOKUP(97,Übersetzung!$A$2:$D$100,3),VLOOKUP(97,Übersetzung!$A$2:$D$100,4))) -> Gebinde 2,5L | D36: 150 g/m² | E36: =I36+I36*$H$31 -> 22.72 | I36: 14.2
B37: =IF($L$1="D",VLOOKUP(98,Übersetzung!$A$2:$D$100,2),IF($L$1="F",VLOOKUP(98,Übersetzung!$A$2:$D$100,3),VLOOKUP(98,Übersetzung!$A$2:$D$100,4))) -> Gebinde 20L | D37: 150 g/m² | E37: =I37+I37*$H$31 -> 15.76 | I37: 9.85
A38: =IF($L$1="D",VLOOKUP(173,Übersetzung!$A$2:$D$299,2),IF($L$1="F",VLOOKUP(173,Übersetzung!$A$2:$D$299,3),VLOOKUP(173,Übersetzung!$A$2:$D$299,4))) -> Wetterschutzfarbe* | B38: =IF($L$1="D",VLOOKUP(46,Übersetzung!$A$2:$D$100,2),IF($L$1="F",VLOOKUP(46,Übersetzung!$A$2:$D$100,3),VLOOKUP(46,Übersetzung!$A$2:$D$100,4))) -> Nägel farbig beschichtet mit Hammerschutz | C38: =IF($L$1="D",VLOOKUP(46,Übersetzung!$A$2:$D$100,2),IF($L$1="F",VLOOKUP(46,Übersetzung!$A$2:$D$100,3),VLOOKUP(46,Übersetzung!$A$2:$D$100,4))) -> Nägel farbig beschichtet mit Hammerschutz | E38: =IF($L$1="D",VLOOKUP(46,Übersetzung!$A$2:$D$100,2),IF($L$1="F",VLOOKUP(46,Übersetzung!$A$2:$D$100,3),VLOOKUP(46,Übersetzung!$A$2:$D$100,4))) -> Nägel farbig beschichtet mit Hammerschutz | F38: =IF($L$1="D",VLOOKUP(46,Übersetzung!$A$2:$D$100,2),IF($L$1="F",VLOOKUP(46,Übersetzung!$A$2:$D$100,3),VLOOKUP(46,Übersetzung!$A$2:$D$100,4))) -> Nägel farbig beschichtet mit Hammerschutz
A39: =IF($L$1="D",VLOOKUP(52,Übersetzung!$A$2:$D$299,2),IF($L$1="F",VLOOKUP(52,Übersetzung!$A$2:$D$299,3),VLOOKUP(52,Übersetzung!$A$2:$D$299,4))) -> Für angrenzende Bauteile wie z.B. Sichtgebälk, Fensterlaibungen etc. Nicht zum Ausbessern in der Fläche! Wasserverdünnbar Reinacrylbasis, nach CapeCod-Farbton - angegebener Verbrauch für 2 Anstriche. | B39: =IF($L$1="D",VLOOKUP(20,Übersetzung!$A$2:$D$100,2),IF($L$1="F",VLOOKUP(20,Übersetzung!$A$2:$D$100,3),VLOOKUP(20,Übersetzung!$A$2:$D$100,4))) -> Gebinde 1L | D39: 130 g/m² | E39: =I39+I39*$H$31 -> 23.2 | I39: 14.5
B40: =IF($L$1="D",VLOOKUP(97,Übersetzung!$A$2:$D$100,2),IF($L$1="F",VLOOKUP(97,Übersetzung!$A$2:$D$100,3),VLOOKUP(97,Übersetzung!$A$2:$D$100,4))) -> Gebinde 2,5L | D40: 130 g/m² | E40: =I40+I40*$H$31 -> 20.32 | I40: 12.7
B41: =IF($L$1="D",VLOOKUP(99,Übersetzung!$A$2:$D$100,2),IF($L$1="F",VLOOKUP(99,Übersetzung!$A$2:$D$100,3),VLOOKUP(99,Übersetzung!$A$2:$D$100,4))) -> Gebinde 12L | D41: 130 g/m² | E41: =I41+I41*$H$31 -> 18.72 | I41: 11.7
E43: =I43+I43*$H$5 -> 1.17 | I43: 0.9 | O43: 0.9
A44: =IF($L$1="D",VLOOKUP(59,Übersetzung!$A$2:$D$100,2),IF($L$1="F",VLOOKUP(59,Übersetzung!$A$2:$D$100,3),VLOOKUP(59,Übersetzung!$A$2:$D$100,4))) -> *Lieferzeit 1 Woche per Paketdienst
A45: =IF($L$1="D",VLOOKUP(55,Übersetzung!$A$2:$D$100,2),IF($L$1="F",VLOOKUP(55,Übersetzung!$A$2:$D$100,3),VLOOKUP(55,Übersetzung!$A$2:$D$100,4))) -> Sonderfarbe nach Muster, NCS, RAL ab 50m² möglich an 335,-€ pauschal; ab 100m² ohne Aufschlag
A47: =IF($L$1="D",VLOOKUP(57,Übersetzung!$A$2:$D$100,2),IF($L$1="F",VLOOKUP(57,Übersetzung!$A$2:$D$100,3),VLOOKUP(57,Übersetzung!$A$2:$D$100,4))) -> Cape Cod Fassadenprofile mit 15 Jahren Garantie | B47: =IF($L$1="D",VLOOKUP(46,Übersetzung!$A$2:$D$100,2),IF($L$1="F",VLOOKUP(46,Übersetzung!$A$2:$D$100,3),VLOOKUP(46,Übersetzung!$A$2:$D$100,4))) -> Nägel farbig beschichtet mit Hammerschutz | C47: =IF($L$1="D",VLOOKUP(46,Übersetzung!$A$2:$D$100,2),IF($L$1="F",VLOOKUP(46,Übersetzung!$A$2:$D$100,3),VLOOKUP(46,Übersetzung!$A$2:$D$100,4))) -> Nägel farbig beschichtet mit Hammerschutz | E47: =IF($L$1="D",VLOOKUP(46,Übersetzung!$A$2:$D$100,2),IF($L$1="F",VLOOKUP(46,Übersetzung!$A$2:$D$100,3),VLOOKUP(46,Übersetzung!$A$2:$D$100,4))) -> Nägel farbig beschichtet mit Hammerschutz | F47: =IF($L$1="D",VLOOKUP(46,Übersetzung!$A$2:$D$100,2),IF($L$1="F",VLOOKUP(46,Übersetzung!$A$2:$D$100,3),VLOOKUP(46,Übersetzung!$A$2:$D$100,4))) -> Nägel farbig beschichtet mit Hammerschutz
A48: =IF($L$1="D",VLOOKUP(58,Übersetzung!$A$2:$D$100,2),IF($L$1="F",VLOOKUP(58,Übersetzung!$A$2:$D$100,3),VLOOKUP(58,Übersetzung!$A$2:$D$100,4))) -> Lodgepole Kiefer endbehandelt, feiner Bandsägeschnitt, KD auf ca. 12% HF, feinastig, frei von Astlöchern, losen Astknoten und anderen strukturellen Defekten.
A73: =IF($L$1="D",VLOOKUP(107,Übersetzung!$A$2:$D$149,2),IF($L$1="F",VLOOKUP(107,Übersetzung!$A$2:$D$149,3),VLOOKUP(107,Übersetzung!$A$2:$D$149,4))) -> Gültig ab 1. März 2018 ! | C73: =IF($L$1="D",VLOOKUP(152,Übersetzung!$A$2:$D$300,2),IF($L$1="F",VLOOKUP(152,Übersetzung!$A$2:$D$300,3),VLOOKUP(152,Übersetzung!$A$2:$D$300,4))) -> Seite: | D73: =_xlfn.SHEET(D73)-1 & "/" & MargenVersionen!K6 -> 10/13 | F73: =IF($L$1="D",VLOOKUP(185,Übersetzung!$A$2:$D$300,2),IF($L$1="F",VLOOKUP(185,Übersetzung!$A$2:$D$300,3),VLOOKUP(185,Übersetzung!$A$2:$D$300,4))) -> v01

Sheet CapeCod-Lagerprogramm (S.11)
P1: d
D3: =IF($P$1="D",VLOOKUP(24,Übersetzung!$A$2:$D$100,2),IF($P$1="F",VLOOKUP(24,Übersetzung!$A$2:$D$100,3),VLOOKUP(24,Übersetzung!$A$2:$D$100,4))) -> Lagerware
B9: =IF($P$1="D",VLOOKUP(73,Übersetzung!$A$2:$D$100,2),IF($P$1="F",VLOOKUP(73,Übersetzung!$A$2:$D$100,3),VLOOKUP(73,Übersetzung!$A$2:$D$100,4))) -> Meerblau | C9: =IF($P$1="D",VLOOKUP(74,Übersetzung!$A$2:$D$100,2),IF($P$1="F",VLOOKUP(74,Übersetzung!$A$2:$D$100,3),VLOOKUP(74,Übersetzung!$A$2:$D$100,4))) -> Eisblau | D9: =IF($P$1="D",VLOOKUP(75,Übersetzung!$A$2:$D$100,2),IF($P$1="F",VLOOKUP(75,Übersetzung!$A$2:$D$100,3),VLOOKUP(75,Übersetzung!$A$2:$D$100,4))) -> Mango | E9: =IF($P$1="D",VLOOKUP(76,Übersetzung!$A$2:$D$100,2),IF($P$1="F",VLOOKUP(76,Übersetzung!$A$2:$D$100,3),VLOOKUP(76,Übersetzung!$A$2:$D$100,4))) -> Granat | F9: =IF($P$1="D",VLOOKUP(77,Übersetzung!$A$2:$D$100,2),IF($P$1="F",VLOOKUP(77,Übersetzung!$A$2:$D$100,3),VLOOKUP(77,Übersetzung!$A$2:$D$100,4))) -> Terracotta | G9: =IF($P$1="D",VLOOKUP(78,Übersetzung!$A$2:$D$100,2),IF($P$1="F",VLOOKUP(78,Übersetzung!$A$2:$D$100,3),VLOOKUP(78,Übersetzung!$A$2:$D$100,4))) -> Sandelholz | H9: =IF($P$1="D",VLOOKUP(79,Übersetzung!$A$2:$D$100,2),IF($P$1="F",VLOOKUP(79,Übersetzung!$A$2:$D$100,3),VLOOKUP(79,Übersetzung!$A$2:$D$100,4))) -> Weiß | I9: =IF($P$1="D",VLOOKUP(80,Übersetzung!$A$2:$D$100,2),IF($P$1="F",VLOOKUP(80,Übersetzung!$A$2:$D$100,3),VLOOKUP(80,Übersetzung!$A$2:$D$100,4))) -> Vik. Grau | J9: =IF($P$1="D",VLOOKUP(81,Übersetzung!$A$2:$D$100,2),IF($P$1="F",VLOOKUP(81,Übersetzung!$A$2:$D$100,3),VLOOKUP(81,Übersetzung!$A$2:$D$100,4))) -> Kaminrot | K9: =IF($P$1="D",VLOOKUP(82,Übersetzung!$A$2:$D$100,2),IF($P$1="F",VLOOKUP(82,Übersetzung!$A$2:$D$100,3),VLOOKUP(82,Übersetzung!$A$2:$D$100,4))) -> Vanille | L9: =IF($P$1="D",VLOOKUP(83,Übersetzung!$A$2:$D$100,2),IF($P$1="F",VLOOKUP(83,Übersetzung!$A$2:$D$100,3),VLOOKUP(83,Übersetzung!$A$2:$D$100,4))) -> Kieselgrau | M9: =IF($P$1="D",VLOOKUP(84,Übersetzung!$A$2:$D$100,2),IF($P$1="F",VLOOKUP(84,Übersetzung!$A$2:$D$100,3),VLOOKUP(84,Übersetzung!$A$2:$D$100,4))) -> Schwarz
A10: =IF($P$1="D",VLOOKUP(60,Übersetzung!$A$2:$D$100,2),IF($P$1="F",VLOOKUP(60,Übersetzung!$A$2:$D$100,3),VLOOKUP(60,Übersetzung!$A$2:$D$100,4))) -> Bevel Profil 24 x 137 mm | B10: 4,88m | C10: 4,88m | D10: 4,88m | E10: 4,88 m | F10: 4,88 m | G10: 4,88 m | H10: 4,88m | I10: 4,88m | J10: 4,88 m | K10: 4,88 m | L10: 4,88m | M10: 4,88m
A11: =IF($P$1="D",VLOOKUP(61,Übersetzung!$A$2:$D$100,2),IF($P$1="F",VLOOKUP(61,Übersetzung!$A$2:$D$100,3),VLOOKUP(61,Übersetzung!$A$2:$D$100,4))) -> Channel Profil 18,5 x 137 mm | H11: 4,88m | I11: 4,88m | J11: 4,88 m | L11: 4,88m
A13: =IF($P$1="D",VLOOKUP(62,Übersetzung!$A$2:$D$100,2),IF($P$1="F",VLOOKUP(62,Übersetzung!$A$2:$D$100,3),VLOOKUP(62,Übersetzung!$A$2:$D$100,4))) -> Glattkant 18,5 x 137 mm | B13: 4,88m | C13: 4,88m | D13: 4,88m | E13: 4,88m | F13: 4,88m | G13: 4,88m | H13: 4,88m | I13: 4,88m | J13: 4,88 m | K13: 4,88m | L13: 4,88m | M13: 4,88m
A15: =IF($P$1="D",VLOOKUP(63,Übersetzung!$A$2:$D$100,2),IF($P$1="F",VLOOKUP(63,Übersetzung!$A$2:$D$100,3),VLOOKUP(63,Übersetzung!$A$2:$D$100,4))) -> Glattkant 18,5 x 178 mm | B15: 4,88m | C15: 4,88m | D15: 4,88m | E15: 4,88m | F15: 4,88m | G15: 4,88m | H15: 4,88m | I15: 4,88m | J15: 4,88 m | L15: 4,88m | M15: 4,88m
K16: 4,88m
A17: =IF($P$1="D",VLOOKUP(64,Übersetzung!$A$2:$D$100,2),IF($P$1="F",VLOOKUP(64,Übersetzung!$A$2:$D$100,3),VLOOKUP(64,Übersetzung!$A$2:$D$100,4))) -> Deckleiste 18,5 x 65 mm | H17: 4,88m | I17: 4,88m | J17: 4,88 m | L17: 4,88m
A19: =IF($P$1="D",VLOOKUP(65,Übersetzung!$A$2:$D$100,2),IF($P$1="F",VLOOKUP(65,Übersetzung!$A$2:$D$100,3),VLOOKUP(65,Übersetzung!$A$2:$D$100,4))) -> Rhombusleiste 18,5 x 65 mm | H19: 4,88m | I19: 4,88m | J19: 4,88 m | L19: 4,88m
A21: =IF($P$1="D",VLOOKUP(66,Übersetzung!$A$2:$D$100,2),IF($P$1="F",VLOOKUP(66,Übersetzung!$A$2:$D$100,3),VLOOKUP(66,Übersetzung!$A$2:$D$100,4))) -> Doppelrhombus 18,5 x 137 mm | H21: 4,88 m | I21: 4,88 m | J21: 4,88 m | L21: 4,88 m
A23: =IF($P$1="D",VLOOKUP(67,Übersetzung!$A$2:$D$100,2),IF($P$1="F",VLOOKUP(67,Übersetzung!$A$2:$D$100,3),VLOOKUP(67,Übersetzung!$A$2:$D$100,4))) -> Außenecke 32 x 108 mm | H23: 3,04m | I23: 3,04m | J23: 3,04 m | L23: 3,04m
A25: =IF($P$1="D",VLOOKUP(68,Übersetzung!$A$2:$D$100,2),IF($P$1="F",VLOOKUP(68,Übersetzung!$A$2:$D$100,3),VLOOKUP(68,Übersetzung!$A$2:$D$100,4))) -> Außenecke 32 x 140 mm | H25: 3,04m | I25: 3,04m | J25: 3,04 m | L25: 3,04m
A27: =IF($P$1="D",VLOOKUP(69,Übersetzung!$A$2:$D$100,2),IF($P$1="F",VLOOKUP(69,Übersetzung!$A$2:$D$100,3),VLOOKUP(69,Übersetzung!$A$2:$D$100,4))) -> Eckbrett 35 x 86 mm | H27: 3,04m | I27: 3,04m | J27: 3,04 m | L27: 3,04m
A29: =IF($P$1="D",VLOOKUP(70,Übersetzung!$A$2:$D$100,2),IF($P$1="F",VLOOKUP(70,Übersetzung!$A$2:$D$100,3),VLOOKUP(70,Übersetzung!$A$2:$D$100,4))) -> Innenecke 32 x 32 mm | H29: 3,04m | I29: 3,04m | J29: 3,04 m | L29: 3,04m
A31: =IF($P$1="D",VLOOKUP(71,Übersetzung!$A$2:$D$100,2),IF($P$1="F",VLOOKUP(71,Übersetzung!$A$2:$D$100,3),VLOOKUP(71,Übersetzung!$A$2:$D$100,4))) -> Ausbesserungsfarbe | B31: 1l | C31: 1l | D31: 1l | E31: 1l | F31: 1l | G31: 1l | H31: 1l | I31: 1l | J31: 1l | K31: 1l | L31: 1l | M31: 1l
B32: 3,75l | C32: 3,75l | D32: 3,75l | E32: 3,75l | F32: 3,75l | G32: 3,75l | H32: 3,75l | I32: 3,75l | J32: 3,75l | K32: 3,75l | L32: 3,75l | M32: 3,75l
A34: =IF($P$1="D",VLOOKUP(129,Übersetzung!$A$2:$D$201,2),IF($P$1="F",VLOOKUP(129,Übersetzung!$A$2:$D$201,3),VLOOKUP(129,Übersetzung!$A$2:$D$201,4))) -> Alle Varianten, für welche keine Längen angegeben sind, können auf Kommission bestellt werden. Lieferzeit ca. 8 - 10 Wochen.
A36: =IF($P$1="D",VLOOKUP(107,Übersetzung!$A$2:$D$149,2),IF($P$1="F",VLOOKUP(107,Übersetzung!$A$2:$D$149,3),VLOOKUP(107,Übersetzung!$A$2:$D$149,4))) -> Gültig ab 1. März 2018 ! | F36: =IF($P$1="D",VLOOKUP(152,Übersetzung!$A$2:$D$300,2),IF($P$1="F",VLOOKUP(152,Übersetzung!$A$2:$D$300,3),VLOOKUP(152,Übersetzung!$A$2:$D$300,4))) -> Seite: | G36: =_xlfn.SHEET(D73)-1 & "/" & MargenVersionen!K6 -> 11/13 | M36: =IF($L$1="D",VLOOKUP(185,Übersetzung!$A$2:$D$300,2),IF($L$1="F",VLOOKUP(185,Übersetzung!$A$2:$D$300,3),VLOOKUP(185,Übersetzung!$A$2:$D$300,4))) -> v01

Sheet Zubehör (S.12)
K1: a | M1: d
B2: =" " & IF($K$1="a",(IF($M$1="D",VLOOKUP(48,Übersetzung!$A$2:$D$100,2),IF($M$1="F",VLOOKUP(48,Übersetzung!$A$2:$D$100,3),VLOOKUP(48,Übersetzung!$A$2:$D$100,4)))),(IF($M$1="D",VLOOKUP(125,Übersetzung!$A$2:$D$150,2),IF($M$1="F",VLOOKUP(125,Übersetzung!$A$2:$D$150,3),VLOOKUP(125,Übersetzung!$A$2:$D$150,4))))) -> Händlerpreisliste 2018
K4: Leithändlerpreise 02/2018
A6: =IF($M$1="D",VLOOKUP(122,Übersetzung!$A$2:$D$121,2),IF($M$1="F",VLOOKUP(122,Übersetzung!$A$2:$D$121,3),VLOOKUP(122,Übersetzung!$A$2:$D$121,4))) -> Nr. | B6: =IF($M$1="D",VLOOKUP(111,Übersetzung!$A$2:$D$110,2),IF($M$1="F",VLOOKUP(111,Übersetzung!$A$2:$D$110,3),VLOOKUP(111,Übersetzung!$A$2:$D$110,4))) -> ZUBEHÖR | D6: =IF($M$1="D",VLOOKUP(109,Übersetzung!$A$2:$D$108,2),IF($M$1="F",VLOOKUP(109,Übersetzung!$A$2:$D$108,3),VLOOKUP(109,Übersetzung!$A$2:$D$108,4))) -> Abmessungen (mm) | E6: =IF($M$1="D",VLOOKUP(3,Übersetzung!$A$2:$D$100,2),IF($M$1="F",VLOOKUP(3,Übersetzung!$A$2:$D$100,3),VLOOKUP(3,Übersetzung!$A$2:$D$100,4))) -> Länge (m) | F6: =IF($M$1="D",VLOOKUP(110,Übersetzung!$A$2:$D$109,2),IF($M$1="F",VLOOKUP(110,Übersetzung!$A$2:$D$109,3),VLOOKUP(110,Übersetzung!$A$2:$D$109,4))) -> Einzelpreis (/m) | G6: =IF($M$1="D",VLOOKUP(177,Übersetzung!$A$2:$D$301,2),IF($M$1="F",VLOOKUP(177,Übersetzung!$A$2:$D$301,3),VLOOKUP(177,Übersetzung!$A$2:$D$301,4))) -> Einzelpreis (ab 60 lfm) | J6: Marge W&R auf EK Habis | K6: Einzelpreis | L6: Paketpreis
A7: 1 | B7: =IF($M$1="D",VLOOKUP(112,Übersetzung!$A$2:$D$111,2),IF($M$1="F",VLOOKUP(112,Übersetzung!$A$2:$D$111,3),VLOOKUP(112,Übersetzung!$A$2:$D$111,4))) -> Außenecke (geschlossen) aus eloxiertem Aluminium | D7: 65 x 65 x 2 | E7: 6 | F7: =ROUND(K7+K7*$J$7,2) -> 12.4 | G7: 11.12 | J7: =IF($K$1="A",VLOOKUP(4,MargenVersionen!$A$9:$G$12,2),IF($K$1="B",VLOOKUP(4,MargenVersionen!$A$9:$G$12,4),VLOOKUP(4,MargenVersionen!$A$9:$G$12,6))) -> 0.6 | K7: 7.75 | L7: 6.95
A8: 2 | B8: =IF($M$1="D",VLOOKUP(113,Übersetzung!$A$2:$D$112,2),IF($M$1="F",VLOOKUP(113,Übersetzung!$A$2:$D$112,3),VLOOKUP(113,Übersetzung!$A$2:$D$112,4))) -> Außenecke (offen) aus eloxiertem Aluminium | D8: 65 x 65 x 2 | E8: 6 | F8: 10.56 | G8: 9.52 | K8: 6.6 | L8: 5.95
A9: 3 | B9: =IF($M$1="D",VLOOKUP(114,Übersetzung!$A$2:$D$113,2),IF($M$1="F",VLOOKUP(114,Übersetzung!$A$2:$D$113,3),VLOOKUP(114,Übersetzung!$A$2:$D$113,4))) -> Innenecke aus eloxiertem Aluminium | D9: 65 x 65 x 2 | E9: 6 | F9: 10.56 | G9: 9.52 | K9: 6.6 | L9: 5.95
A10: 4 | B10: =IF($M$1="D",VLOOKUP(115,Übersetzung!$A$2:$D$114,2),IF($M$1="F",VLOOKUP(115,Übersetzung!$A$2:$D$114,3),VLOOKUP(115,Übersetzung!$A$2:$D$114,4))) -> Trennprofil aus eloxiertem Aluminium | D10: 85 x 80 x 2 | E10: 6 | F10: 17.52 | G10: 15.92 | K10: 10.95 | L10: 9.95
G11: =IF($M$1="D",VLOOKUP(178,Übersetzung!$A$2:$D$301,2),IF($M$1="F",VLOOKUP(178,Übersetzung!$A$2:$D$301,3),VLOOKUP(178,Übersetzung!$A$2:$D$301,4))) -> Paketpreis (ab 330 Stück)
A12: 5 | B12: =IF($M$1="D",VLOOKUP(145,Übersetzung!$A$2:$D$301,2),IF($M$1="F",VLOOKUP(145,Übersetzung!$A$2:$D$301,3),VLOOKUP(145,Übersetzung!$A$2:$D$301,4))) -> Unterkonstruktion, Douglasie (KD), kalibriert, einseitig abgeschrägt, 4-seitig lackiert (Tiefschwarz) | D12: =IF($M$1="D",VLOOKUP(122,Übersetzung!$A$2:$D$301,2),IF($M$1="F",VLOOKUP(122,Übersetzung!$A$2:$D$301,3),VLOOKUP(122,Übersetzung!$A$2:$D$301,4))) -> 22 x 45 | E12: 4.5 | F12: =ROUND(K12+K12*$J$12,2) -> 1.76 | G12: =ROUND(L12+L12*$J$12,2) -> 1.47 | J12: =IF($K$1="A",VLOOKUP(1,MargenVersionen!$A$9:$G$12,2),IF($K$1="B",VLOOKUP(1,MargenVersionen!$A$9:$G$12,4),VLOOKUP(1,MargenVersionen!$A$9:$G$12,6))) -> 0.3 | K12: 1.35 | L12: 1.13
A13: 6 | B13: =IF($M$1="D",VLOOKUP(172,Übersetzung!$A$2:$D$301,2),IF($M$1="F",VLOOKUP(172,Übersetzung!$A$2:$D$301,3),VLOOKUP(172,Übersetzung!$A$2:$D$301,4))) -> Schrauben für DuraSidings, Edelstahl VA2, TX10, VPE 1000 Stück | D13: ø3,2x40 | E13: / | F13: =ROUND(K13+K13*$J$13,2) -> 89.6 | J13: =IF($K$1="A",VLOOKUP(4,MargenVersionen!$A$9:$G$12,2),IF($K$1="B",VLOOKUP(4,MargenVersionen!$A$9:$G$12,4),VLOOKUP(4,MargenVersionen!$A$9:$G$12,6))) -> 0.6 | K13: 56 | L13: /
A14: 7 | B14: =IF($M$1="D",VLOOKUP(182,Übersetzung!$A$2:$D$301,2),IF($M$1="F",VLOOKUP(182,Übersetzung!$A$2:$D$301,3),VLOOKUP(182,Übersetzung!$A$2:$D$301,4))) -> Zylinder-Senkkopf, Edelstahl V2A, mit schwarzem Kopf (lackiert in RAL9004 passend zu DuraAkzent), inkl. Spezialbit, VPE 500 Stück | D14: ø4,0x50 | E14: / | F14: =ROUND(K14+K14*$J$13,2) -> 76.64 | K14: 47.9 | L14: /
B16: =IF($M$1="D",VLOOKUP(117,Übersetzung!$A$2:$D$116,2),IF($M$1="F",VLOOKUP(117,Übersetzung!$A$2:$D$116,3),VLOOKUP(117,Übersetzung!$A$2:$D$116,4))) -> Zubehör Nr. 1 | C16: =IF($M$1="D",VLOOKUP(118,Übersetzung!$A$2:$D$117,2),IF($M$1="F",VLOOKUP(118,Übersetzung!$A$2:$D$117,3),VLOOKUP(118,Übersetzung!$A$2:$D$117,4))) -> Zubehör Nr. 2 | F16: =IF($M$1="D",VLOOKUP(119,Übersetzung!$A$2:$D$118,2),IF($M$1="F",VLOOKUP(119,Übersetzung!$A$2:$D$118,3),VLOOKUP(119,Übersetzung!$A$2:$D$118,4))) -> Zubehör Nr. 3
B28: =IF($M$1="D",VLOOKUP(120,Übersetzung!$A$2:$D$119,2),IF($M$1="F",VLOOKUP(120,Übersetzung!$A$2:$D$119,3),VLOOKUP(120,Übersetzung!$A$2:$D$119,4))) -> Zubehör Nr. 4 | C28: =IF($M$1="D",VLOOKUP(121,Übersetzung!$A$2:$D$120,2),IF($M$1="F",VLOOKUP(121,Übersetzung!$A$2:$D$120,3),VLOOKUP(121,Übersetzung!$A$2:$D$120,4))) -> Zubehör Nr. 5 | F28: =IF($M$1="D",VLOOKUP(171,Übersetzung!$A$2:$D$301,2),IF($M$1="F",VLOOKUP(171,Übersetzung!$A$2:$D$301,3),VLOOKUP(171,Übersetzung!$A$2:$D$301,4))) -> Zubehör Nr. 6
B40: =IF($M$1="D",VLOOKUP(186,Übersetzung!$A$2:$D$301,2),IF($M$1="F",VLOOKUP(186,Übersetzung!$A$2:$D$301,3),VLOOKUP(186,Übersetzung!$A$2:$D$301,4))) -> Zubehör Nr. 7
A51: =IF($M$1="D",VLOOKUP(108,Übersetzung!$A$2:$D$107,2),IF($M$1="F",VLOOKUP(108,Übersetzung!$A$2:$D$107,3),VLOOKUP(108,Übersetzung!$A$2:$D$107,4))) -> Gültig ab 1. März 2018 ! | D51: =IF($M$1="D",VLOOKUP(152,Übersetzung!$A$2:$D$300,2),IF($M$1="F",VLOOKUP(152,Übersetzung!$A$2:$D$300,3),VLOOKUP(152,Übersetzung!$A$2:$D$300,4))) -> Seite: | E51: =_xlfn.SHEET(D73)-1 & "/" & MargenVersionen!K6 -> 12/13 | G51: =IF($M$1="D",VLOOKUP(185,Übersetzung!$A$2:$D$300,2),IF($M$1="F",VLOOKUP(185,Übersetzung!$A$2:$D$300,3),VLOOKUP(185,Übersetzung!$A$2:$D$300,4))) -> v01

Sheet Endblatt (S.13)

Sheet Übersetzung
B1: D | C1: F | D1: N
A2: 1 | B2: Profile | C2: Profilés | D2: Profielen
A3: 2 | B3: Dimension in mm Stärke x Breite | C3: Dimensions en mm épaisseur x largeur | D3: Afmeting in mm dikte x breedte
A4: 3 | B4: Länge (m) | C4: Longueur (m) | D4: Lengte (m)
A5: 4 | B5: VPE Bund/Paket | C5: Unité d'emballage par faisceau/paquet | D5: Verpakking per bundel/pakket
A6: 5 | B6: Kommissions-preis (weniger als ein Paket) | C6: Prix pour petite quantité (moins qu'un paquet) | D6: Prijs kleine hoeveelheid (minder dan één pakket)
A7: 6 | B7: Anbruchpreis (Restmenge, die über ganze Pakete hinausgeht) | C7: Prix de paquet entamé (quantité restante au-delà de paquets entiers) | D7: Prijs aangebroken pakket (hoeveelheid groter dan één pak of meer paketten)
A8: 7 | B8: Paketpreis | C8: Prix par paquet | D8: Pakketprijs
A9: 8 | B9: Empf. VK-Preis inkl. MwSt. | C9: Prix de vente recommandé tvac | D9: Aanbevolen verkoopprijs incl. btw.
A10: 9 | B10: Qualität: PREMIUM | C10: Qualité: PREMIUM | D10: Kwaliteit: PREMIUM
A11: 10 | B11: Trapez | C11: Trapèze | D11: Trapezium
A12: 11 | B12: Glattkant | C12: Bords droits | D12: Gladde Kant
A13: 12 | B13: Deckleiste | C13: Cache | D13: Deklijst
A14: 14 | B14: Nimbus | C14: Nimbus | D14: Nimbus
A15: 15 | B15: - Standardlängen von 3,0m bis 6,0m in Schritten von 10cm! - Keine Kurzlängen wie bei der Qualität "Selekt", dafür Mehrlieferungen bis 5% mitgehend! - Alle Dimensionen wie bei der Qualität "Selekt" möglich, außer 21x170mm und 40x170mm. | C15: - Longueurs standards de 3,0m à 6,0m en pas de 10cm! - Pas de longueurs courtes comme pour la qualité "select", mais jusqu'à 5% de surplus possible! - Toutes les dimensions comme pour la qualité "select", sauf 21x170mm et 40x170mm. | D15: - Standaardlengtes van 3,0m tot 6,0m in stappen van 10cm! - Geen kortlengtes zoals bij de kwaliteit "select", maar tot 5% meerlevering mogelijk! - Alle afmetingen zoals bij de kwallteit "select", behalve 21x170mm en 40x170mm.
A16: 16 | B16: Rhombus 15° | C16: Losange 15° | D16: Ruit 15°
A17: 17
A18: 18 | B18: Beistreichfarben | C18: Peinture | D18: Verf
A19: 19 | B19: Zum Streichen von Schnittkanten und zum vollflächigen Überarbeiten (Reichweite für Schnittkanten ca. 70m² Giebelbekleidung pro Liter) | C19: Pour enduire les chants de coupe et pour l'application en surface (rendement pour chants de coupe env. 70m² de façade par litre) | D19: Om de snijkanten en volledige oppervlaktes te behandelen (verbruik voor snijkanten ±70m² gevelbekleding per liter)
A20: 20 | B20: Gebinde 1L | C20: Boîte 1L | D20: Blik 1 l
A21: 21 | B21: Gebinde 5L | C21: Boîte 5L | D21: Blik 5 l
A22: 22 | B22: Empf. VK, 1l inkl. MwSt. | C22: Prix de vente recommandé, 1L tvac | D22: Aanbevolen verkoopprijs 1l, incl. Btw
A23: 23 | B23: Empf. VK, 5l inkl. MwSt. | C23: Prix de vente recommandé, 5L tvac | D23: Aanbevolen verkoopprijs 5l, incl. Btw
A24: 24 | B24: Lagerware | C24: Marchandise de stock | D24: Magazijngoederen
A25: 25 | B25: LAGERWARE (nur in den Farbtönen - Kristallgrau / Lavagrau / Gletschergrau) - Bei der Qualität "Selekt" sind Verschnittlängen (200/250/300/350 cm) bis 10 % mitgehend! - Für Lieferungen ohne Kurzlängen berechnen wir 7% Aufpreis. - Bitte bei Bestellung angeben, ob Bestellmenge zzgl. oder inkl. Verschnitt ist. Wenn Sie nichts angeben, liefern wir inkl. Verschnittlängen. - Lieferzeit: ca. 2 Wochen (Genaue Lieferzeit auf Anfrage!) | C25: MARCHANDISE DE STOCK (uniquement dans les teintes gris cristal / gris lave / gris glacier) - Pour la qualité "Select" des longueurs courtes (200/250/300/350 cm) sont tolérées jusqu'à 10 %! - Pour des livraisons sans longueurs courtes nous facturons un supplément de 7%! - Prière d'indiquer si votre quantité commandée est hors longueurs courtes ou si elles sont comprises. Si vous ne spécifiez rien, nous partons du principe que les longueurs courtes sont comprises. - Délai de livraison: env. 2 semaines (Un délai précis peut être communiquer sur demande!) | D25: MAGAZIJNGOEDEREN (alleen in de kleuren kristal-, lava- en gletsjergrijs) - Voor de kwaliteit "select" zijn kortlengtes (200/250/300/350cm) tot 10% getolereerd. - Voor leveringen zonder kortlengten berekenen wij 7% meerkosten! - Gelieve alltijd aan te geven of de bestelde hoeveelheid inclusief of zonder kortlengtes is. Als er niets aangegeven wordt, zullen wij uw hoeveelheden altijd inclusief kortlengtes leveren. - Levertijd: ± 2 weken (Een precieze leveringstermijn op aanvraag!)
A26: 26 | B26: 22 x 142 Deckmaß: 125 mm | C26: 22 x 142 couverture: 125 mm | D26: 22 x 142 dekmaat: 125 mm
A27: 27 | B27: 21 x 92 Deckmaß: 80 mm | C27: 21 x 92 couverture: 80 mm | D27: 21 x 92 dekmaat: 80 mm
A28: 28 | B28: AUF BESTELLUNG | C28: Sur commande | D28: Op bestelling
A29: 29 | B29: ab 50 m² in den Farbtönen Kristallgrau/Lavagrau/Gletschergrau/Tundragrau/Basaltgrau/Schiefergrau | C29: A partir de 50 m² dans les couleures Gris Lave, Gris Glacier, Gris Cristal, Gris Basalte, Gris Ardoise, Gris Toundra | D29: Vanaf 50 m² in de kleuren lavagrijs, gletsjergrijs, kristalgrijs, basaltgrijs, leisteengrijs, toendragrijs
A30: 30 | B30: Keilgezinkt | C30: Aboutés micro dentures | D30: Gevingerlast
A31: 31 | B31: Doppelrhombus 15° Schräge | C31: Double Losange 15° | D31: Dubbele Ruit 15°
A32: 32
A33: 33 | B33: Kommissions- preis 50 - 150m² in € | C33: Prix de commission jusqu'à 150m² en €/surface utile | D33: Prijs tot 150m² in €/nuttige breedte
A34: 34 | B34: *Schindeln: Premiumqualität bei Überlappung 50% | C34: Bardeaux: qualité Premium pour chevauchement 50% | D34: Shingles: premium kwaliteit bij overlapping van 50%
A35: 35 | B35: Zum Streichen von Schnittkanten. Für Farbtöne: Lavagrau, Gletschergrau, Kristallgrau, Basaltgrau, Tundragrau, Schiefergrau | C35: Pour enduire les chants de coupe. Pour les teintes: Gris Lave, Gris Glacier, Gris Cristal, Gris Basalte, Gris Toundra, Gris Ardoise | D35: Om de snijkanten te behandelen. Voor de kleuren: lavagrijs, gletsjergrijs, kristalgrijs, basaltgrijs, toendragrijs, leisteengrijs
A36: 36 | B36: Für angrenzende Bauteile aus Fichte gehobelt, z.Bsp. Sichtgebälk, Schalung, usw. Imprägnierlasur 3.01 für Farbtöne: Lavagrau, Gletschergrau, Kristallgrau, Basaltgrau, Tundragrau, Schiefergrau | C36: Pour des éléments adjacents en épicéa raboté, comme p. ex. gîtage apparent. Lasure d'imprégnation 3.01 pour les teintes: Gris Lave, Gris Glacier, Gris Cristal, Gris Basalte, Gris Toundra, Gris Ardoise | D36: Voor aangrenzende bouwdelen uit geschaafd spar, bijv. zichtbare balken. Voor de kleuren: lavagrijs, gletsjergrijs, kristalgrijs, basaltgrijs, toendragrijs, leisteengrijs
A37: 37 | B37: Bevel | C37: Bevel | D37: Bevel
A38: 38 | B38: Channel Profil | C38: Channel | D38: Channel
A39: 39 | B39: Rhombus 20° | C39: Losange 20° | D39: Ruit 20°
A40: 40 | B40: Standardfarben: | C40: Couleurs standard: | D40: Standaardkleuren:
A41: 41 | B41: Außenecken | C41: Cornière extérieure | D41: Buitenhoek
A42: 42 | B42: (für eine Außenecke benötigt man 2 Teile) | C42: (il faut 2 pièces pour un coin extérieur) | D42: (2 delen voor een buitenhoek)
A43: 43 | B43: Eckbrett | C43: Planche cornière | D43: Hoekprofiel
A44: 44 | B44: Innenecke | C44: Cornière intérieure | D44: Binnenhoek
A45: 45 | B45: Edelstahlnägel | C45: Clous inox | D45: Nagels Inox
A46: 46 | B46: Nägel farbig beschichtet mit Hammerschutz | C46: Clous inox; clou à revêtement de couleur et protection d'impact | D46: Nagels zijn van roestvrij staal, gerild en voorzien van een bolle kop met poedercoating in kleur.
A47: 47 | B47: Original Cape Cod Farbe* | C47: Couleur originale Cape Cod* | D47: Originele CapeCod-Verf*
A48: 48 | B48: Händlerpreisliste 2018 | C48: Tarifs distributeurs 2018 | D48: Prijslijst handelaars 2018
A49: 49 | B49: Kombigrund* | C49: Couche de fond* | D49: Grondlaag* | E49: OK
A50: 50 | B50: Fungizider Isoliergrund "deckend" weiss - angegebener Verbrauch für 2 Anstriche | C50: Couche de fond isolante, fongicide, opacifiante, blanche - consommation indiquée valable pour deux couches | D50: Isolerende grondlaag, dekkend, wit - aangegeven verbruik voor twee lagen | E50: OK
A51: 51 | B51: Beistreichfarbe | C51: Peinture | D51: Verf
A52: 52 | B52: Für angrenzende Bauteile wie z.B. Sichtgebälk, Fensterlaibungen etc. Nicht zum Ausbessern in der Fläche! Wasserverdünnbar Reinacrylbasis, nach CapeCod-Farbton - angegebener Verbrauch für 2 Anstriche. | C52: Pour éléments adjacents comme p. ex. gîtage apparent, baies de fenêtre, etc. Ne convient pas pour les retouches en surface! En phase aqueuse à base d'acrylique, suivant teinte CapeCod - consommation indiquée valable pour deux couches. | D52: Voor aangrenzende bouwdelen zoals balken, kozijnen enz. Niet geschikt voor het herstellen van de oppervlakte. Op basis van water, op zuivere acrylbasis, volgens CapeCod-tint. Verbruik: ca. 130g/m² voor 2 lagen. | E52: OK
A53: 53 | B53: Mehrpreis, Fungizidschutz für Wetterschutzfarbe* | E53: OK
A54: 54 | E54: OK
A55: 55 | B55: Sonderfarbe nach Muster, NCS, RAL ab 50m² möglich an 335,-€ pauschal; ab 100m² ohne Aufschlag | C55: Couleur spéciale d´après NCS, RAL ou selon échantillon à partir de 50m² pour un forfait de 335,-€; à partir de 100m² sans coûts supplémentaires | D55: Alle kleuren mogelijk (keuze volgens RAL, NCS of stalen) vanaf 50m² voor een forfait van 335,-€; vanaf 100m² zonder bijkomende kosten
A56: 56 | B56: Lagerprogramm Europalager | E56: OK
A57: 57 | B57: Cape Cod Fassadenprofile mit 15 Jahren Garantie | C57: CapeCod, façades en bois massif avec 15 ans de garantie. | D57: CapeCod, massieve houten gevelbekleding met 15 jaar garantie!
A58: 58 | B58: Lodgepole Kiefer endbehandelt, feiner Bandsägeschnitt, KD auf ca. 12% HF, feinastig, frei von Astlöchern, losen Astknoten und anderen strukturellen Defekten. | C58: Lodgepole Pine, traitement de finition, aspect brut de sciage, sec séchoir, noeuds fins et exempt de trous de noeuds et d'autres défauts structurels. | D58: Lodgepole Pine, deze houtsoort heeft een fijne, rechte structuur, kleine vastgegroeide kwasten en laat zich makkelijk verwerken.
A59: 59 | B59: *Lieferzeit 1 Woche per Paketdienst | C59: *Délai de livraison: 1 semaine | D59: *Levertijd: 1 week
A60: 60 | B60: Bevel Profil 24 x 137 mm | C60: Bevel 24 x 137 mm | D60: Bevel 24 x 137 mm
A61: 61 | B61: Channel Profil 18,5 x 137 mm | C61: Channel 18,5 x 137 mm | D61: Channel 18,5 x 137 mm
A62: 62 | B62: Glattkant 18,5 x 137 mm | C62: Bords droits 18,5 x 137 mm | D62: Gladde Kant 18,5 x 137 mm
A63: 63 | B63: Glattkant 18,5 x 178 mm | C63: Bords droits 18,5 x 178 mm | D63: Gladde Kant 18,5 x 178 mm
A64: 64 | B64: Deckleiste 18,5 x 65 mm | C64: Cache 18,5 x 65 mm | D64: Deklijst 18,5 x 65 mm
A65: 65 | B65: Rhombusleiste 18,5 x 65 mm | C65: Losanges 18,5 x 65 mm | D65: Ruit 18,5 x 65 mm
A66: 66 | B66: Doppelrhombus 18,5 x 137 mm | C66: Double Losanges 18,5 x 137 mm | D66: Dubbele Ruit 18,5 x 137 mm
A67: 67 | B67: Außenecke 32 x 108 mm | C67: Cornière ext. 32 x 108mm | D67: Buitenhoek 32 x 108 mm
A68: 68 | B68: Außenecke 32 x 140 mm | C68: Cornière ext. 32 x 140 mm | D68: Buitenhoek 32 x 140 mm
A69: 69 | B69: Eckbrett 35 x 86 mm | C69: Planche cornière 35 x 86 mm | D69: Hoekprofiel 35 x 86 mm
A70: 70 | B70: Innenecke 32 x 32 mm | C70: Cornière int. 32 x 32 mm | D70: Binnenhoek 32 x 32 mm
A71: 71 | B71: Ausbesserungsfarbe | C71: Peinture | D71: Bijwerkverf
A72: 72 | B72: Nägel 2,7 x 64 mm | C72: Clous 2,7 x 64 mm | D72: Nagels 2,7 x 64 mm
A73: 73 | B73: Meerblau | C73: Bleu océan | D73: Zeeblauw
A74: 74 | B74: Eisblau | C74: Bleu glacé | D74: Ijsblauw
A75: 75 | B75: Mango | C75: Mangue | D75: Mango
A76: 76 | B76: Granat | C76: Grenat | D76: Granaat
A77: 77 | B77: Terracotta | C77: Terracotta | D77: Terracotta
A78: 78 | B78: Sandelholz | C78: Bois de Santal | D78: Sandelhout
A79: 79 | B79: Weiß | C79: Blanc | D79: Wit
A80: 80 | B80: Vik. Grau | C80: Gris victorien | D80: Victoriaans grijs
A81: 81 | B81: Kaminrot | C81: Rouge carmin | D81: Karmijnrood
A82: 82 | B82: Vanille | C82: Vanille | D82: Vanille
A83: 83 | B83: Kieselgrau | C83: Gris silex | D83: Kiezelgrijs
A84: 84 | B84: Schwarz | C84: Noir | D84: Zwart
A85: 85 | B85: 26 x 142 Deckmaß: 125 mm | C85: 26 x 142 couverture: 125 mm | D85: 26 x 142 dekmaat: 125 mm
A86: 86 | B86: 19,5 x 92 Deckmaß: 80 mm | C86: 19,5 x 92 couverture: 80 mm | D86: 19,5 x 92 dekmaat: 80 mm
A87: 87 | B87: 24 x 140 Deckmaß: 128 mm | C87: 24 x 140 couverture: 128 mm | D87: 24 x 140 dekmaat: 128 mm
A88: 88 | B88: 20 x 92 Deckmaß: 80 mm | C88: 20 x 92 couverture: 80 mm | D88: 20 x 92 dekmaat: 80 mm
A89: 89 | B89: 22 x 142 Deckmaß: 125 mm | C89: 22 x 142 couverture: 125 mm | D89: 22 x 142 dekmaat: 125 mm
A90: 90 | B90: 21 x 92 Deckmaß: 80 mm | C90: 21 x 92 couverture 80 mm | D90: 21 x 92 dekmaat: 80 mm
A91: 91 | B91: Qualität | C91: Qualité | D91: Kwaliteit
A92: 92 | B92: Doppelrhombus | C92: Double Losange | D92: Dubbele Ruit
A93: 93 | B93: 24 x 137 Deckmaß: 124 mm | C93: 24 x 137 couverture: 124 mm | D93: 24 x 137 dekmaat: 124 mm
A94: 94 | B94: 18,5 x 137 Deckmaß: 124 mm | C94: 18,5 x 137 couverture: 124 mm | D94: 18,5 x 137 dekmaat: 124 mm
A95: 95 | B95: 18,5 x 137 Deckmaß: 124 mm | C95: 18,5 x 137 couverture: 124 mm | D95: 18,5 x 137 dekmaat: 124 mm
A96: 96 | B96: Gebinde 3,75L | C96: Boîte 3,75L | D96: Blik 3,75 l
A97: 97 | B97: Gebinde 2,5L | C97: Boîte 2,5L | D97: Blik 2,5 l
A98: 98 | B98: Gebinde 20L | C98: Boîte 20L | D98: Blik 20 l
A99: 99 | B99: Gebinde 12L | C99: Boîte 12L | D99: Blik 12 l
A100: 100 | B100: Deckleiste | C100: Cache | D100: Deklijst
A101: 101 | B101: Rhombus 15° / Deckleiste | C101: Losange 15° / Cache | D101: Ruit 15° / Deklijst
A102: 102 | B102: Deckmaß = Berechnungsbreite | C102: Largeur utile = largeur facturée | D102: Netto dekmaat = berekeningsmaat
A103: 103 | B103: Brettbreite = Berechnungsbreite | C103: Largeur planche = largeur facturée | D103: Plankbreedte = berekeningsmaat
A104: 104 | B104: Leistenbreite = Berechnungsbreite | C104: Largeur latte = largeur facturée | D104: Breedte lijst = berekeningsmaat
A105: 105 | B105: 26 x 140 Deckmaß: 128 mm | C105: 26 x 140 couverture: 128 mm | D105: 26 x 140 dekmaat: 128 mm
A106: 106 | B106: 21 x 140 Deckmaß: 128 mm | C106: 21 x 140 couverture: 128 mm | D106: 21 x 140 dekmaat: 128 mm
A107: 107 | B107: Gültig ab 1. März 2018 ! | C107: Valable à partir du 1er mars 2018 ! | D107: Geldig vanaf 1 maart 2018 !
A108: 108 | B108: Abmessungen (mm) | C108: Dimensions (mm) | D108: Afmetingen (mm)
A109: 109 | B109: Einzelpreis (/m) | C109: Prix unitaire (/m) | D109: Prijs (/m)
A110: 110 | B110: ZUBEHÖR | C110: ACCESSOIRES | D110: ACCESSOIRES
A111: 111 | B111: Außenecke (geschlossen) aus eloxiertem Aluminium | C111: Coin extérieur fermé en alu anodisé | D111: Buitenhoek (gesloten) uit geëloxeerd aluminium
A112: 112 | B112: Außenecke (offen) aus eloxiertem Aluminium | C112: Coin extérieur ouvert en alu anodisé | D112: Buitenhoek (open) uit geëloxeerd aluminium
A113: 113 | B113: Innenecke aus eloxiertem Aluminium | C113: Coin intérieur en alu anodisé | D113: Binnenhoek uit geëloxeerd aluminium
A114: 114 | B114: Trennprofil aus eloxiertem Aluminium | C114: Profil de séparation en alu anodisé | D114: Separatie profiel uit geëloxeerd aluminium
A115: 115 | B115: Unterkonstruktion, Weißtanne, Rhombus, 1 Seite Bandsäge- schnitt, schwarz behandelt | C115: Sous-structure, sapin-blanc, losange, 1 côté aspect brut de sciage fin, traité noir | D115: Onderconstructie, zilverden, ruitvorming profiel, 1 kant zaag- snede, in het zwart behandeld
A116: 116 | B116: Zubehör Nr. 1 | C116: Accessoire n° 1 | D116: Accessoire nr 1
A117: 117 | B117: Zubehör Nr. 2 | C117: Accessoire n° 2 | D117: Accessoire nr 2
A118: 118 | B118: Zubehör Nr. 3 | C118: Accessoire n° 3 | D118: Accessoire nr 3
A119: 119 | B119: Zubehör Nr. 4 | C119: Accessoire n° 4 | D119: Accessoire nr 4
A120: 120 | B120: Zubehör Nr. 5 | C120: Accessoire n° 5 | D120: Accessoire nr 5
A121: 121 | B121: Nr. | C121: N° | D121: Nr.
A122: 122 | B122: 22 x 45 | C122: 22 x 45 | D122: 22 x 45
A123: 123 | B123: 4,0 oder 5,0 | C123: 4,0 ou 5,0 | D123: 4,0 of 5,0
A124: 124 | B124: Abschlussprofile (Länge 3,04m) | C124: Finitions (longueur 3,04m) | D124: Afsluitprofielen (lengte 3,04m)
A125: 125 | B125: Preisliste Verarbeiter 2018 | C125: Tarifs monteurs 2018 | D125: Prijslijst aannemers 2018
A126: 126 | B126: - A - | C126: - A - | D126: - A -
A127: 127 | B127: - B - | C127: - B - | D127: - B -
A128: 128 | B128: - C - | C128: - C - | D128: - C -
A129: 129 | B129: Alle Varianten, für welche keine Längen angegeben sind, können auf Kommission bestellt werden. Lieferzeit ca. 8 - 10 Wochen. | C129: Toutes les variantes pour lesquelles il n'y a pas de longueurs indiquées peuvent être commandées. Délai: 8 à 10 semaines! | D129: Alle varianten waar geen lengtes aangegeven zijn kunnen besteld worden. Levertijd 8 tot 10 weken!
A130: 130 | B130: ECO GRAU | C130: GRIS ECO | D130: ECO GRIJS
A131: 131 | B131: ECO GRAU - Weisstanne | C131: GRIS ECO - Sapin blanc | D131: ECO GRIJS - Witte den
A132: 132 | B132: ECO GRAU - Fichte | C132: GRIS ECO - Épicéa | D132: ECO GRIJS - Spar
A133: 133 | B133: - Produktion ab 50m² (kleinere Mengen nur als Sammelauftrag möglich - Achtung: evt. längere Lieferzeit!). - Mindermengenzuschlag bis 100m² - Farbtöne Kristall, Lava & Gletscher: 55,- €. - Mindermengenzuschlag bis 100m² - Farbtöne Basalt, Tundra & Schiefer: 170,- €. - Verschnittlängen (200/250/300/350 cm) bis 10% mitgehend! - Für Lieferungen ohne Kurzlängen berechnen wir 7% Aufpreis. - Bitte bei Bestellung angeben, ob Bestellmenge zzgl. oder inkl. Verschnitt ist. Wenn Sie nichts angeben, liefern wir inkl. Verschnittlängen! - Lieferzeit: 6 - 8 Wochen (Genaue Lieferzeit auf Anfrage!). | C133: - Production à partir de 50m² (des quantités plus petites sont possibles en commandes groupées - Attention: délai de livraison evt. plus long!). - Supplément pour quantité réduite jusqu'à 100m² - teintes cristal, lave & glacier: 55,- €. - Supplément pour quantité réduite jusqu'à 100m² - teintes basalte, toundra & ardoise: 170,- €. - Longueurs courtes (200/250/300/350 cm) tolérées jusqu'à 10%! - Pour des livraisons sans longueurs courtes nous facturons un supplément de 7%! - Prière d'indiquer si votre quantité commandée est hors longueurs courtes ou si elles sont comprises. Si vous ne spécifiez rien, nous partons du principe que les longueurs courtes sont comprises. - Délai de livraison: 6 - 8 semaines (Un délai précis peut être communiquer sur demande!). | D133: - Productie vanaf 50m² (kleinere hoeveelheden alleen maar als gegroepeerde bestelling mogelijk - Let op: eventueel langere levertermijn!). - Toeslag voor kleine hoeveelheden tot 100m² - kleuren kristal, lava & gletsjer: 55,- €. - Toeslag voor kleine hoeveelheden tot 100m² - kleuren basalt, toendra & leisteen: 170,- €. - Kortlengtes (200/250/300/350 cm) tot 10% getolereed. - Voor leveringen zonder kortlengtes berekenen wij 7% meerkosten! - Gelieve alltijd aan te geven of de bestelde hoeveelheid inclusief of zonder kortlengtes is. Als er niets aangegeven wordt, zullen wij uw hoeveelheden altijd inclusief kortlengtes leveren. - Levertijd 6 - 8 weken (Een precieze levertermijn op aanvraag!).
A134: 134 | B134: Eisgrau, Sandgrau, Betongrau, Steingrau, Graphitgrau | C134: Gris Glace, Gris Sable, Gris Béton, Gris Pierre, Gris Graphite | D134: Ijsgrijs, Zandgrijs, Betongrijs, Steengrijs, Graphitgrijs
A135: 135 | B135: Mattschwarz | C135: Noir mat | D135: Matzwart
A136: 136 | B136: keine Vorgabe | C136: pas applicable | D136: niet van toepassing
A137: 137 | B137: Es können alle Profile hergestellt werden, die technisch realisierbar sind! Hier einige Beispiele. Die Preise finden Sie auf Seite 4. | C137: Tous les profilés qui sont techniquement réalisables peuvent être fabriqué sur commande. Voici quelques examples. Vous trouverez les prix à la page 4. | D137: Alle profielen, die technisch mogelijk zijn, kunnen op bestelling gefabriciëert worden. Hier enkele voorbeelden. U vindt de prijzen op pagina 4.
A138: 138 | B138: Selekt | C138: Select | D138: Select
A139: 139 | B139: Premium | C139: Premium | D139: Premium
A140: 140 | B140: Keilgezinkt | C140: Aboutés | D140: Gevingerlast
A141: 141 | B141: Qualität: KEILGEZINKT | C141: Qualités: ABOUTES | D141: Kwaliteit: GEVINGERLAST
A142: 142 | B142: Große Auswahl an Profilen! Die technische Machbarkeit muss geprüft werden! Bitte fragen Sie uns! | C142: Large choix de profilés. La faisabilité doit être vérifié! Veuillez-nous contactez! | D142: Groote keuze aan profielen! De technische haalbaarheid moet gecontrolleerd worden! Contacteer ons!
A143: 143 | B143: Selekt Seitenware | C143: Select planches de dosses | D143: Select zijkantplanken
A144: 144 | B144: Selekt Rifts/Halbrifts | C144: Select Quartier/Demi-Quartier | D144: Select radiaal/half-radiaal
A145: 145 | B145: Unterkonstruktion, Douglasie (KD), kalibriert, einseitig abgeschrägt, 4-seitig lackiert (Tiefschwarz) | C145: Sous-structure, douglas (KD), calibré, 1 côté oblique, laqué 4 faces (noir profond) | D145: Onderconstructie, douglas-spar (KD), gekalibreerd en eenzijdig afgeschuind, 4-zijdig gelakt (diep zwart)
A146: 146 | B146: ROMBOFIX - UNSICHTBARE BEFESTIGUNG | C146: ROMBOFIX - FIXATION INVISIBLE | D146: ROMBOFIX - ONZICHTBARE BEVESTIGING
A147: 147 | B147: ROMBOFIX MONTAGEPACK: | C147: ROMBOFIX KIT DE MONTAGE: | D147: ROMBOFIX MONTAGEKIT:
A148: 148 | B148: * 100 Klammern inkl. Schrauben ø4,5 x 45mm * 15 Ausgleichs Clips * 1 Bit (TX20) * 10 Schrauben "BohrFix" FB ø4,2 x 22mm * Montageanleitung * Verbrauch für Rhombusleiste 21x65mm bei einem Abstand der Unterkonstruktion von 40-50cm: ca. 38-48 St./m² Bitte beachten Sie: - Bei dieser Sonderfräsung können bei allen Qualitäten zusätzlich bis 10% Kurzlängen anfallen! Eine Bestellung inklusive Kurzlängen ist nur in der Qualität "Selekt" möglich. - Erhältlich in den Längen 4,00m, 4,50m und 5,00m, je nach Verfügbarkeit! | C148: * 100 attaches, vis ø4,5 x 45mm inclus * 15 cales d'égalisation * 1 Bit (TX20) * 10 vis "BohrFix" FB ø4,2 x 22mm * Notice de montage * Consommation sur base d'un entre-axe de la sous-structure de 40-50cm et le profil losange 21x65mm env. 38-48 pce./m² Attention: - Pour des profils avec fraisage spécial RomboFix il y peut y avoir pour toutes les qualités jusqu'à 10% de longueurs courtes en supplément! Une commande avec longueurs courtes comprises est uniquement possible pour la qualité "select"! - Livrable en longueurs de 4,00m, 4,50m et 5,00m suivant disponibilité! | D148: * 100 bevestigingsclips inclusief schroeven ø4,5 x 45mm * 15 egalisatieclips * 1 Bit (TX20) * 10 schroeven "BohrFix" FB ø4,2 x 22mm * Montagehandleiding * Verbruik op basis van een asafstand van de onderconstructie van 40-50cm en het profiel ruit 21x65mm ca. 38-48 st./m² Opgelet: - Voor de profielen met een speciaal RomboFix-frezen kunnen er voor iedere kwaliteit tot 10% kortlengtes bijkomen! Een bestelling inclusief kortlengtes is alleen voor de kwaliteit "select" mogelijk! - Leverbaar in lengten van 4,00m, 4,50m en 5,00m volgens beschikbaarheid!
A149: 149 | B149: Packpreis | C149: Prix kit de montage | D149: Prijs montagekit
A150: 150 | B150: Packpreis ab 25 Pack | C150: Prix kit de montage à partir de 25 pièces | D150: Prijs vanaf 25 montagekits
A151: 151 | B151: Zuschlag auf Rhombusleiste für Sonderfräsung: 0,34 €/lfm | C151: Supplément pour rainure sur profil losange (fixation invisible): 0,34 €/mct | D151: Toeslag voor het frezen van een groef op profiel ruit: 0,34 €/m
A152: 152 | B152: Seite: | C152: page: | D152: pagina:
A153: 153 | B153: INHALT | C153: CONTENU | D153: INHOUD
A154: 154 | B154: INFORMATIONEN | C154: INFORMATIONS | D154: INFORMATIES
A155: 155 | B155: KONTAKT | C155: CONTACT | D155: CONTACT
A156: 156 | B156: Alle Preise in dieser Preisliste sind empfohlene VK-Preise bei Verkauf an den Verarbeiter. Sie verstehen sich zuzüglich der gesetzlichen MwSt.! Als Händler gewähren wir Ihnen auf diese Preise (außer Transportkosten) folgende Rabatte: - Profile, Unterkonstruktion, Rhombofix und Zuschläge: 15%. - Beistreichfarbe, Schrauben und Alu-Profile: 25%. | C156: Tous les prix de ce tarif sont des prix de vente conseillés en cas de vente vers un monteur. Ils s'entendent hors TVA! En tant que distributeur, nous vous accordons sur ces prix (sauf frais de transport) les remises suivantes: - Profilés, sous-structure, RhomboFix et supplément: 15% - Peinture, vis et profilés alu: 25% | D156: Alle prijzen in deze prijslijst zijn aanbevolen verkoopprijzen bij verkoop aan de aannemer. Ze zijn zonder btw! Als handelaar verlenen wij u op deze prijzen (zonder transportkosten) volgende kortingen: - Profielen, onderconstructie, RhomboFix en meerkosten: 15% - Verf, schroeven en alu-profielen: 25%
A157: 157 | B157: Pauschal 175,- € Ab einem netto Warenwert von 1.800,- €: Lieferung frei Haus! | C157: Forfait: 175,- € A partir d'une valeur net de marchandise de 1.800,- €: livraison franco vos ateliers! | D157: Forfait: 175,- € Vanaf een netto goederenbedrag van 1.800,- € franco levering!
A158: 158 | B158: Zubehör (Beistreichfarbe, Schrauben, usw.) bis 19 kg - BELGIEN: 10,- € - LUXEMBURG, NIEDERLANDE & FRANKREICH: 15,- € Liefrezeit: 2 bis 3 Arbeitstage! | C158: Accessoires (peinture pour traitement des champs de coupe, vis, etc.) jusqu'à 19 kg - BELGIQUE: 10,- € - LUXEMBOURG, PAYSBAS & FRANCE: 15,- € Délai de livraison: 2 à 3 jours ouvrables! | D158: Accessoires (kleur voor het behandelen van de snijkanten, schroeven, enz.) tot 19 kg - BELGIË: 10,- € - LUXEMBURG, NEDERLAND & FRANKRIJK: 15,- € Levertijd: 2 tot 3 werkdagen!
A159: 159 | B159: Siehe die jeweiligen Preislisten der verschiedenen Produktgruppen! Achtung: Auch Lagerware kann je nach Auftragslage kurzzeitig vergriffen sein! Einen genauen Liefertermin teilen wir Ihnen gerne auf Anfrage mit! | C159: Voir les listes de prix des différents groupes de produits! Attention: La marchandise de stock peut être non livrable pendant une courte durée en fonction du nombre des commandes en cours! Pour connaître le délai exact, n'hésitez pas à nous contacter! | D159: Zie de verschillende prijslijsten van de verschillende productseries! Opgelet: afhankelijk van de ordersituatie kunnen ook magazijngoederen gedurende een korte periode niet leverbaar zijn! Aarzel niet ons te contacteren voor een precieze levertermijn!
A160: 160 | B160: Preise: | C160: Prix: | D160: Prijzen:
A161: 161 | B161: Transportkosten: | C161: Frais de transport: | D161: Transportkosten:
A162: 162 | B162: Paketversand: | C162: Envoi de colis: | D162: Pakketverzending:
A163: 163 | B163: Lieferzeiten: | C163: Délai de livraison: | D163: Levertijd:
A164: 164 | B164: Lieferzeit: 6 - 8 Wochen | C164: Délai de livraison: 6 - 8 semaines | D164: Levertijd: 6 - 8 weken
A165: 165 | B165: Farbtöne: | C165: Teintes: | D165: Kleuren:
A166: 166 | B166: Bitte achten Sie darauf, immer die komplett benötigte Menge Ihres Projektes auf einmal zu bestellen! Holz ist ein natürlicher und lebendiger Rohstoff. Unterschiede in der Struktur sind naturgegeben. Bei späteren Nachlieferungen kann es deshalb zu Farbunterschieden kommen! Wir möchten darauf hinweisen, dass diese keinen Reklamationsgrund darstellen! Aufgrund einer neuen EU-Verordnung wurde das für die Behandlung verwendete Öl leicht modifiziert. Leichte Farbtonunterschiede zu alten Variante (vor 09/2015) sind möglich. Bitte bei Nachbestellungen zu älteren Lieferungen bitte immer unsere Auftragsbestätigungs-Nr angeben. Wir können immer noch in der alten Variante produzieren lassen. | C166: Prière de bien vouloir acheter toujours la quantité totale dont vous avez besoin pour votre projet! Le bois est une matière première naturelle et vivante. Des différences dans la structure du bois sont naturelles. Lors de deux livraisons séparées, il peut y avoir des différences de couleurs! Nous vous signalons que ces différences ne pourront pas faire l'objet d'une réclamation! A cause d'une nouvelle directive européenne, le produit de traitement a été modifié légèrement. Des différences dans la teinte par rapport à l'ancienne version (avant 09/2015) sont possibles. Lors de rajout de commande à des anciennes livraisons veuillez spécifier notre numéro de confirmation de commande. Nous pouvons faire produire la marchandise dans l'ancienne teinte. | D166: Bestel altijd de volledig benodigde hoeveelheid van het project in één keer! Hout is een natuurlijk en levend product. Verschillen in de structuur zijn normaal. Bij latere leveringen kunnen er derhalve kleurverschillen optreden! We zouden er graag op wijzen dat deze geen reden voor een klacht zijn! Door een nieuw europees directief wordt de samenstelling van het behandelingsproduct licht veranderd. Kleine verschillen met de oude versie (vóór 09/2015) zijn mogelijk. Indien u voor een oude levering nabestelt, deel ons het nummer van onze orderbevestiging mee. Wij kunnen alltijd nog met de oude versie laten produceren.
A167: 167 | B167: Stapler zum Abladen muss vorhanden sein! Wir beliefern keine Baustellen! | C167: Un chariot élévateur doit être sur place pour le déchargement! Nous ne livrons pas sur chantier! | D167: Een heftruck voor het afladen moet ter plaatse zijn! Wij leveren niet op de werf!
A168: 168
A169: 169 | B169: EcoGrau | C169: GrisEco | D169: EcoGrijs
A170: 170 | B170: Zubehör | C170: Accessoires | D170: Accessoires
A171: 171 | B171: Zubehör Nr. 6 | C171: Accessoire n° 6 | D171: Accessoire nr 6
A172: 172 | B172: Schrauben für DuraSidings, Edelstahl VA2, TX10, VPE 1000 Stück | C172: Vis pour DuraSidings, inox A2, TX10, unité d'emballage 1000 pièces | D172: Schroeven voor DuraSidings, inox A2, TX10, verpakking 1000 stuks
A173: 173 | B173: Wetterschutzfarbe* | C173: Peinture de protection contre les intempéries* | D173: Weerbestendige, beschermende coating*
A174: 174 | B174: Zum Streichen von Schnittkanten und zum vollflächigen Überarbeiten | C174: Pour enduire les chants de coupe et pour l'application en surface | D174: Om de snijkanten en volledige oppervlakken te behandelen
A175: 175 | B175: *Auf Basis einer Schattenfuge von 10mm!!! | C175: *Sur base d'un ajouré de 10mm!!! | D175: *Op basis van een schaduwvoeg van 10mm!!
A176: 176 | B176: Bedarf (m/m²) | C176: Consommation (m/m²) | D176: Verbruik (m/m²)
A177: 177 | B177: Einzelpreis (ab 60 lfm) | C177: Prix unitaire (à partir de 60 mct.) | D177: Prijs (vanaf 60m)
A178: 178 | B178: Paketpreis (ab 330 Stück) | C178: Prix par paquet (à partir de 330 pcs) | D178: Pakketprijs (vanaf 330 stuks)
A179: 179 | B179: Verbrauch (m²/Liter) | C179: Consommation (m²/litre) | D179: Verbruik (m²/liter)
A180: 180 | B180: Alle Preise verstehen sich ab Lager Büllingen - Transportkosten auf Anfrage! | C180: Tous les sprix s'entendent départ notre magasin à Bullange - frais de port sur demande! | D180: Alle prijzen zijn vanaf magazijn Büllingen - Transportkosten op aanvraag!
A181: 181 | B181: Alle Preise in dieser Preisliste verstehen sich rein netto zuzüglich der gesetzlichen MwSt.! | C181: Tous les prix de ce tarif sont des prix net hors TVA! | D181: Alle prijzen in deze prijslijst zijn netto zonder btw!
A182: 182 | B182: Zylinder-Senkkopf, Edelstahl V2A, mit schwarzem Kopf (lackiert in RAL9004 passend zu DuraAkzent), inkl. Spezialbit, VPE 500 Stück | C182: Vis cylindrique creuse, inox A2, tête laqué en noir (RAL9004 pour DuraAkzent), avec bit spécial, unité d'emballage 500 pièces | D182: Cilinderschroef, inox A2, kop zwart gelakt (RAL9004 voor DuraAkzent), met speciale bit, verpakking 500 stuks
A183: 183 | B183: Zum Streichen von Schnittkanten und zum vollflächigen Überarbeiten. Für Farbtöne: Arizona, Nubia, Savanna | C183: Pour enduire les chants de coupe et pour l'application en surface. Pour les teintes: Arizona, Nubia, Savanna | D183: Om de snijkanten en volledige oppervlakken te behandelen. Voor de kleuren: Arizona, Nubia, Savanna
A184: 184 | B184: Für angrenzende Bauteile aus Fichte gehobelt, z.Bsp. Sichtgebälk, Schalung, usw. Imprägnierlasur 3.01 für Farbtöne: Arizona, Nubia, Savanna | C184: Pour des éléments voisins en épicéa raboté, comme p. ex. gîtage apparent etc. Lasure d'imprégnation 3.01 pour les teintes: Arizona, Nubia, Savanna | D184: Voor aangrenzende bouwdelen uit geschaafde spar, bijv. zichtbare balken. Voor de kleuren: Arizona, Nubia, Savanna
A185: 185 | B185: v01 | C185: v01 | D185: v01
A186: 186 | B186: Zubehör Nr. 7 | C186: Accessoire n° 7 | D186: Accessoire nr 7
A187: 187 | B187: Zubehör Nr. 8 | C187: Accessoire n° 8 | D187: Accessoire nr 8
A188: 188 | B188: Zubehör Nr. 9 | C188: Accessoire n° 9 | D188: Accessoire nr 9
A189: 189
A190: 190 | B190: - Preisbasis: Qualität "Selekt" + 5% Aufschlag. | C190: - Prix de base: Qualité "select" + 5% de supplément. | D190: - Prijsbasis: Kwaliteit "select" + 5% toeslag.
A191: 191 | B191: - Sonderlängen (z. Bsp. 3,54m oder 5,42m) sowie Überlängen (>6,0m) auf Anfrage möglich. | C191: - Longueurs spéciales (p. ex. 3,54m ou 5,42m) ainsi que des surlongueurs (>6,0m) sur demande. | D191: - Speciale lengtes (bvb. 3,54m of 5,42m), alsook grotere lengtes (>6,0m) op aanvraag mogelijk.
A192: 192 | B192: Beispielprofile finden Sie auf Seite 5. | C192: Vous trouverez des examples de profilés à la page 5. | D192: Voorbeeldprofielen vind u op pagina 5.
A193: 193 | B193: KOMMISSIONSWARE | C193: DISPONIBLE SUR COMMANDE | D193: OP BESTELLING BESCHIKBAAR
A194: 194 | B194: KOMMISSIONSWARE (Fortsetzung) | C194: DISPONIBLE SUR COMMANDE (suite) | D194: OP BESTELLING BESCHIKBAAR (voortzetting)
A195: 195 | B195: 3D-Fassade | C195: La façade 3D | D195: 3D-gevelbekleding
A196: 196 | B196: Profil | C196: Profilé | D196: Profiel
A197: 197 | B197: Richtpreis bei 100m²: | C197: Prix indicatif pour 100m²: | D197: Richtprijs voor 100m²:
A198: 198 | B198: Verbrauch pro Profil: ca. 2,8 lfm/m² | C198: Consommation par profilé: env. 2,8 m'/m² | D198: Verbruik per profiel: ca. 2,8 m'/m²
A199: 199 | B199: Für diese 3D-Fassade in den Serien DuraAkzent oder DuraNatur (Qualität "Selekt") berechnen wir 8% Aufschlag! | C199: Pour des façades 3D en DuraAkzent ou DuraNatur (qualité "select") nous facturons un supplément de 8%! | D199: Voor deze 3D-gevelbekleding in DuraAkzent of DuraNatur (kwaliteit "select") berekenen wij meerkosten van 8%!
A200: 200 | B200: Beispielfassade in der Qualität "Selekt" (3D-Fassaden sind in unendlich vielen Ausführungen möglich. Für Ihre persönliche Variante kontaktieren Sie uns!) | C200: Examples de façades 3D en qualité "select" (Les façades 3D sont disponibles dans un nombre infini de variantes. Pour votre version personnelle, contactez-nous!) | D200: Voorbeeldgevelbekleding in de kwaliteit "select" (3D-gevelbekleding is beschikbaar in een oneindelijk vele variaties. Voor uw persoonlijke variatie, contacteer ons!
... 6 more rows

Sheet Änd. nächste Preisliste
A1: Änderungen für nächste Preisliste
A3: Farbnamen Gross-Kleinschreibung

Sheet MargenVersionen
A2: Preisberechnung je nach Kundengruppe
A4: Einstellungen zur Preisberechnung:
B6: Händlerpreisliste (A) | D6: Monteurspreisliste (B) | F6: xxx (C) | J6: Anzahl Seiten: | K6: 13
B8: Marge auf EK HABIS | C8: Marge auf Anbruchpreis | D8: Marge auf EK HABIS | E8: Marge auf Anbruchpreis | F8: Marge auf EK HABIS | G8: Marge auf Anbruchpreis
A9: 1 | B9: 0.3 | C9: 0.4 | D9: 0.3 | E9: 0.4
A10: 2 | B10: 0.35 | C10: 0.45 | D10: 0.35 | E10: 0.45
A11: 3 | B11: 0.4 | C11: 0.4 | D11: 0.4 | E11: 0.4
A12: 4 | B12: 0.6 | C12: 0.6 | D12: 0.6 | E12: 0.6
A18: Versionen der Preiliste
B20: v01 | C20: Erste Version vom 30.01.2018
B21: v02 | C21: …wäre nächtse Version

Sheet Qualitätskriterien
A2: Qualitätskriterien
A4: In der Regel gilt die Sortierung auf 95% der Ware:
A6: Qualitätskriterien Weisstanne:
A8: Selekt:
A10: - astarme Qualität mit max. 1 kleinen Schwarzast je laufendem Meter (Äste bis max. 2 cm Größe, Schwarzäste sind eingeleimt)
A12: PREMIUM:
A14: - im Prinzip astfrei, vereinzelt kleine Punktäste erlaubt
A16: KEILZINKUNG:
A18: - PU-verleimt, Abstände der Zinkung 17 - 90 cm
A20: Premium und Standard:
A22: - 90% Rifts/Halbrifts (ausgenommen Glattkant)
A23: - Flügeläste auf der Sichtseite nicht erlaubt
A24: - Rückseite ohne Qualitätsanforderung, solange die Bruchfestigkeit gewährleistet ist
A25: - Defekte auf der Sichtseite nicht erlaubt
A26: - Fäule ist ausgeschlossen
A27: - Holzfeuchte bis max. 20% zulässig
A28: - Endrisse bis 10 cm erlaubt, ansonsten keine Risse zugelassen
A29: - Stirnende sauber gekappt
A30: - Wuchsgebiet zu 100% aus Schwarzwald, Allgäu und Österreich
A34: Qualitätskriterien Douglasie:
A36: - Fest verwachsene Äste bis 5 cm ohne Einschränkungen zulässig, Flügeläste bis 1/2 Brettbreite erlaubt, Kantenausbruch möglich
A37: - Splint bis zu 30% auf der Sichtseite erlaubt
A38: - Kleine Risse zulässig, durchgehende Risse nicht zulässig
A39: - Endrisse bis Brettbreite erlaubt
A40: - Wurmlöcher sind nicht zulässig
A41: - Hobelqualität: Längskanten und Sichtseite ohne Hobelfehler, im Astbereich leichte raue Stellen zulässig
A42: - Keine Harzgallen, Harzaustritt jedoch tröpfchenförmig möglich
A43: - Douglasie ist PEFC-Zertifiziert
A45: Qualitätskriterien Thermo Kiefer:
A47: - Fest verwachsene Äste ohne Einschränkungen erlaubt, Durchfalläste sind nicht erlaubt, ein gebrochener Flügelast pro Brett zulässig
A48: - Splint ist nicht erlaubt
A49: - Kleine Haarrisse zulässig
A50: - Endrisse sind bis zur Brettbreite erlaubt
A51: - Wurmlöcher sind nicht zulässig
A52: - Längskanten und Sichtseite ohne Hobelfehler
A53: - Harzfrei
A54: - Thermo Kiefer ist PEFC-Zertifiziert
